{"text_format":"1","workbook":"xlsx","n_sheets":29,"sheets":["TD LISTA OPERACI","Datos Operaciones seleccionadas","TD CUADRO 1","COPIA TDCUADRO1 ORDENAR CAT.REG","CUADRO 1 ","TD CUADRO 2","Copia TDCuadro 2 para carga SFC","FICHERO CARGA CUADRO2 SFC","Copia TDCuadro 2 con TSec","CUADRO 2 ","CUADRO 6 NO APLICA","LISTAS PERSONALIZADAS","Programas","Fondos","Tasa cofinanciación","Prioridades","Objeticos específicos","Categorías de región","Aplicación art 94 o 95","Métodos de Gestión","Tipología de operación","CAMPO DE INTERVENCIÓN","Forma de ayuda","D. Intervención territorial","D. Actividad económica","D. Ubicación","D. Tema secundario del FSE+","D. Igualdad de género","Macrorregionales y Cuencas M"],"not_rendered":{"charts":0,"images":3,"macros":1,"external_links":0,"defined_names":17,"comments":0,"pivot_tables":3},"unopened":[],"bounds":{"document_bytes":16777216,"sheet_cells":100000,"rows_first":2000,"rows_last":500,"rows_between":2000,"halvings":0,"cell_chars":16384,"cell_head_chars":4096},"cells_cut":0,"cells_raw":0,"read":"whole","date_system":"1900"}

{"sheet":"TD LISTA OPERACI","index":0,"n_rows":13,"n_cols":15,"rows_kept":13,"cut":false,"hidden":true,"merged":[]}
[]
["Programa ",{"$f":"'Datos Operaciones seleccionadas'!B9","v":"FSE+ de Asistencia Material Básica "}]
["LISTA DE OPERACIONES SELECCIONADAS"]
["Según requerimiento del artículo 49, apartado 3 del Reglamento (UE) 2021/1060"]
["Actualizado el ","DD/MM/AAAA"]
[]
["Código operación","Beneficiario","Contratista","Finalidad operación","Logros previstos o reales","Fecha Inicio","Fecha\nFinalización","Fondo","Objetivo específico","Categoría de región","Porcentaje de cofinanciación","D. Ubicación","País","Campo de intervención","Coste total "]
["Título Programa","(Todas)"]
[]
["Código operación","Beneficiario","Contratista","Finalidad operación","Logros previstos o reales","Fecha Inicio","Fecha\nFinalización","Fondo","Objetivo específico","Categoría de región","Porcentaje de cofinanciación","D. Ubicación","País","Campo de intervención","Suma de Coste subvencionable de la operación aprobada"]
["(en blanco)","(en blanco)","(en blanco)","(en blanco)","(en blanco)","(en blanco)","(en blanco)","(en blanco)","(en blanco)","(en blanco)","(en blanco)","(en blanco)","(en blanco)","(en blanco)"]
["BALCompraAlimentos","Dirección General de Bienestar Social","(en blanco)","Cubrir necesidades básicas de personas y familias en situación de precariedad económica con la distribución de alimentos y asistencia material básica mediante tarjetas, con la finalidad de reducir la intensidad y frecuencia de las situaciones de vulnerabildad y/o riesgo de exclusión social de las personas que se encuentran en ellas, facilitando así su insercion social y autonomía personal, y también favorecer una mayor cohesión social en el territorio de las Illes Balears","Proporcionar alimentos y asistencia material básica a las personas que más lo necesitan a través de la entrega de tarjetas monedero",45658,47118,"ESF","ESO4.13","T","(en blanco)","(en blanco)","ES",164,11947471.25]
["BALMedidasAc","Dirección General de Bienestar Social","(en blanco)","Prestar medidas de acompañamiento a las personas y familias beneficiarias de las tarjetas para compra de alimentos y asistencia material básica para coadyuvar a reducir su situación de vulnerabildad y/o riesgo de exclusión social, facilitando su insercion social y autonomía personal, y también favorecer una mayor cohesión social en el territorio de las Illes Balears","Prestar medidas de acompañamiento a personas vulnerables para promover su inserción social y autonomía personal",45292,47118,"ESF","ESO4.13","T","(en blanco)","(en blanco)","ES",164,873446.94]

{"sheet":"Datos Operaciones seleccionadas","index":1,"n_rows":9,"n_cols":46,"rows_kept":9,"cut":false,"hidden":false,"merged":[]}
["Programa:",{"$f":"B9","v":"FSE+ de Asistencia Material Básica "}]
[]
[]
["DATOS OPERACIONES SELECCIONADAS."]
[]
[]
["CCI Programa","Título Programa","Prioridad","Objetivo específico","Fondo","Categoría de región","Código global de la operación","Descripción de la operación","Operación estratégica\n(SI/NO)","Aplicación art. 94 o art.95","Código común \nmétodos de gestión","Método de Gestión","Tipología de operación","Código operación","Nombre  operación","Beneficiario","Contratista","Finalidad operación","Logros previstos o reales","Fecha Inicio","Fecha\nFinalización","Coste subvencionable de la operación aprobada","Financiación privada nacional","País","Campo de intervención","Forma de ayuda","D. Aplicación Territorial","D. Actividad Económica","D. Ubicación","D. Tema secundario del FSE+ 01","D. Tema secundario del FSE+ 02","D. Tema secundario del FSE+ 03","D. Tema secundario del FSE+ 04","D. Tema secundario del FSE+ 05","D. Tema secundario del FSE+ 06","D. Tema secundario del FSE+ 07","D. Tema secundario del FSE+ 08","D. Tema secundario del FSE+ 09","D. Tema secundario del FSE+ 10","D. Igualdad de Género","D. Macrorregional y de las cuencas marítimas","Importe total del gasto subvencionable declarado por los beneficiarios","Contribución pública total (nacional+comunitaria)","Financiación pública nacional","Contribución de los fondos a las operaciones seleccionadas (EUR)","Porcentaje de cofinanciación"]
["2021ES05SFPR004","FSE+ de Asistencia Material Básica ",4,"ESO4.13","ESF","T","BALCompraAlimentos","Convocatoria de subvenciones para financiar los gastos derivados de la provisión de tarjetas para la adquisición de productos englobados en el Programa Básico así como la entrega a las familias destinatarias y el control de su uso","SI","N/A",null,"CS",15,"BALCompraAlimentos","\t\nBAL CompraAlimentos","Dirección General de Bienestar Social",null,"Cubrir necesidades básicas de personas y familias en situación de precariedad económica con la distribución de alimentos y asistencia material básica mediante tarjetas, con la finalidad de reducir la intensidad y frecuencia de las situaciones de vulnerabildad y/o riesgo de exclusión social de las personas que se encuentran en ellas, facilitando así su insercion social y autonomía personal, y también favorecer una mayor cohesión social en el territorio de las Illes Balears","Proporcionar alimentos y asistencia material básica a las personas que más lo necesitan a través de la entrega de tarjetas monedero",45658,47118,11947471.25,0,"ES",164,null,null,null,null,null,null,null,null,null,null,null,null,null,null,null,null,3066915.89]
["2021ES05SFPR004","FSE+ de Asistencia Material Básica ",4,"ESO4.13","ESF","T","BALMedidasAc","Convocatoria de subvenciones para financiar las medidas de acompañamiento a las familias usuarias de tarjetas de alimentos dentro del Programa Asistencia Material Básica y que comprenden todas aquellas actuaciones enmarcadas en un itinerario personalizado orientado a la inclusión social, previa valoración singularizada y diagnóstico social de las situaciones personales, familiares y de grupo","NO","N/A",null,"GD-ED",15,"BALMedidasAc","BAL Medidas Acompañamiento ","Dirección General de Bienestar Social",null,"Prestar medidas de acompañamiento a las personas y familias beneficiarias de las tarjetas para compra de alimentos y asistencia material básica para coadyuvar a reducir su situación de vulnerabildad y/o riesgo de exclusión social, facilitando su insercion social y autonomía personal, y también favorecer una mayor cohesión social en el territorio de las Illes Balears","Prestar medidas de acompañamiento a personas vulnerables para promover su inserción social y autonomía personal",45292,47118,873446.94,0,"ES",164,null,null,null,null,null,null,null,null,null,null,null,null,null,null,null,null,37123.949999999997]

{"sheet":"TD CUADRO 1","index":2,"n_rows":6,"n_cols":8,"rows_kept":6,"cut":false,"hidden":true,"merged":[]}
[]
["Programa","(Todas)",null,"1. Si  no aparecen datos, selecciona tu programa"]
[]
["Prioridad","Objetivo específico","Fondo","Categoría de región","Porcentaje de cofinanciación","Suma de Coste subvencionable de la operación aprobada","Suma de Importe total del gasto subvencionable declarado por los beneficiarios","Cuenta de Código operación"]
[4,"ESO4.13","ESF","T","(en blanco)",12820918.189999999,3104039.8400000003,2]
["(en blanco)","(en blanco)","(en blanco)","(en blanco)","(en blanco)"]

{"sheet":"COPIA TDCUADRO1 ORDENAR CAT.REG","index":3,"n_rows":7,"n_cols":15,"rows_kept":7,"cut":false,"hidden":true,"merged":[[1,0,1,6],[1,7,1,12]]}
[1,2,3,4,5,6,7,8,9,10,11,12,13]
["Asignación financiera de la prioridad en función del programa",null,null,null,null,null,null,"Datos acumulativos sobre la situación financiera del programa",null,null,null,null,null,null,"1. Arrastra hasta mostrar tantas filas como TD Cuadro 1."]
[]
["Prioridad","Objetivo específico","Fondo","Categoría de región","Base para el cálculo de la contribución de la Unión","Asignación financiera total por fondo y contribución nacional (EUR)","Porcentaje de cofinanciación (%)","Coste total subvencionable de las operaciones seleccionadas (EUR)","Contribución de los fondos a las operaciones seleccionadas (EUR)","Proporción de la asignación financiera total cubierta por las operaciones seleccionadas (%)","Importe total del gasto subvencionable declarado por los beneficiarios","Proporción de la asignación financiera total cubierta por el gasto subvencionable declarado por los beneficiarios (%)","Número de operaciones seleccionadas"]
[{"$f":"'TD CUADRO 1'!A6","v":"(en blanco)"},{"$f":"'TD CUADRO 1'!B6","v":"(en blanco)"},{"$f":"'TD CUADRO 1'!C6","v":"(en blanco)"},{"$f":"'TD CUADRO 1'!D6","v":"(en blanco)"},null,null,{"$f":"'TD CUADRO 1'!E6","v":"(en blanco)"},{"$f":"'TD CUADRO 1'!F6","v":0},{"$f":"IFERROR(H5*G5,\"\")","v":""},{"$f":"IFERROR(H5/F5,\"\")","v":""},{"$f":"'TD CUADRO 1'!G6","v":0},{"$f":"IFERROR(K5/F5,\"\")","v":""},{"$f":"'TD CUADRO 1'!H6","v":0},null,"Compara/copia las columnas en gris con/en Cuadro 1"]
[{"$f":"'TD CUADRO 1'!A5","v":4},{"$f":"'TD CUADRO 1'!B5","v":"ESO4.13"},{"$f":"'TD CUADRO 1'!C5","v":"ESF"},{"$f":"'TD CUADRO 1'!D5","v":"T"},null,null,{"$f":"'TD CUADRO 1'!E5","v":"(en blanco)"},{"$f":"'TD CUADRO 1'!F5","v":12820918.189999999},{"$f":"IFERROR(H6*G6,\"\")","v":""},{"$f":"IFERROR(H6/F6,\"\")","v":""},{"$f":"'TD CUADRO 1'!G5","v":3104039.8400000003},{"$f":"IFERROR(K6/F6,\"\")","v":""},{"$f":"'TD CUADRO 1'!H5","v":2}]
[{"$f":"'TD CUADRO 1'!A7","v":0},{"$f":"'TD CUADRO 1'!B7","v":0},{"$f":"'TD CUADRO 1'!C7","v":0},{"$f":"'TD CUADRO 1'!D7","v":0},null,null,{"$f":"'TD CUADRO 1'!E7","v":0},{"$f":"'TD CUADRO 1'!F7","v":0},{"$f":"IFERROR(H7*G7,\"\")","v":0},{"$f":"IFERROR(H7/F7,\"\")","v":""},{"$f":"'TD CUADRO 1'!G7","v":0},{"$f":"IFERROR(K7/F7,\"\")","v":""},{"$f":"'TD CUADRO 1'!H7","v":0}]

{"sheet":"CUADRO 1 ","index":4,"n_rows":11,"n_cols":13,"rows_kept":11,"cut":false,"hidden":true,"merged":[[1,0,1,6],[1,7,1,12]]}
[1,2,3,4,5,6,7,8,9,10,11,12,13]
["Asignación financiera de la prioridad en función del programa",null,null,null,null,null,null,"Datos acumulativos sobre la situación financiera del programa"]
[]
["Prioridad","Objetivo específico","Fondo","Categoría de región","Base para el cálculo de la contribución de la Unión","Asignación financiera total por fondo y contribución nacional (EUR)","Porcentaje de cofinanciación (%)","Coste total subvencionable de las operaciones seleccionadas (EUR)","Contribución de los fondos a las operaciones seleccionadas (EUR)","Proporción de la asignación financiera total cubierta por las operaciones seleccionadas (%)","Importe total del gasto subvencionable declarado por los beneficiarios","Proporción de la asignación financiera total cubierta por el gasto subvencionable declarado por los beneficiarios (%)","Número de operaciones seleccionadas"]
[4,"ESO4.13","FSE+","Más desarrolladas","Total",208451308.52000001,0.89999999680200005,34936007,{"$f":"IFERROR(H5*G5,\"\")","v":31442406.188274652},{"$f":"IFERROR(H5/F5,\"\")","v":0.16759792609624247},0,{"$f":"IFERROR(K5/F5,\"\")","v":0},1]
[4,"ESO4.13","FSE+","Transición","Total",235480092.53999999,0.89999999878699999,39478724,{"$f":"IFERROR(H6*G6,\"\")","v":35530851.552112304},{"$f":"IFERROR(H6/F6,\"\")","v":0.16765206593119508},0,0,1]
[4,"ESO4.13","FSE+","Menos desarrolladas","Total",154040791.11000001,0.9,25821842,23239657.800000001,{"$f":"IFERROR(H7/F7,\"\")","v":0.16762989734037856},0,0,1]
["Total",null,"FSE+","Más desarrolladas",null,{"$f":"+F5","v":208451308.52000001},null,{"$f":"+H5","v":34936007},0,{"$f":"IFERROR(H8/F8,\"\")","v":0.16759792609624247},{"$f":"+K5","v":0},0,{"$f":"+M5","v":1}]
["Total",null,"FSE+","Transición",null,{"$f":"+F6","v":235480092.53999999},null,{"$f":"+H6","v":39478724},0,{"$f":"IFERROR(H9/F9,\"\")","v":0.16765206593119508},{"$f":"+K6","v":0},{"$f":"IFERROR(K9/F9,\"\")","v":0},{"$f":"+M6","v":1}]
["Total",null,"FSE+","Menos desarrolladas",null,{"$f":"+F7","v":154040791.11000001},null,{"$f":"+H7","v":25821842},0,0.16762989734037856,{"$f":"+K7","v":0},0,{"$f":"+M7","v":1}]
["Total general",null,null,null,null,{"$f":"+F8+F9+F10","v":597972192.17000008},null,{"$f":"+H8+H9+H10","v":100236573},0,0.16762748220155246,{"$f":"+K8+K9+K10","v":0},0,{"$f":"+M8+M9+M10","v":3}]

{"sheet":"TD CUADRO 2","index":5,"n_rows":6,"n_cols":24,"rows_kept":6,"cut":false,"hidden":true,"merged":[]}
[]
["Título Programa","(Todas)"]
[]
["Prioridad","Objetivo específico","Fondo","Categoría de región","Campo de intervención","Forma de ayuda","D. Aplicación Territorial","D. Actividad Económica","D. Ubicación","D. Igualdad de Género","D. Macrorregional y de las cuencas marítimas","D. Tema secundario del FSE+ 01","D. Tema secundario del FSE+ 02","D. Tema secundario del FSE+ 03","D. Tema secundario del FSE+ 04","D. Tema secundario del FSE+ 05","D. Tema secundario del FSE+ 06","D. Tema secundario del FSE+ 07","D. Tema secundario del FSE+ 08","D. Tema secundario del FSE+ 09","D. Tema secundario del FSE+ 10","Suma de Coste subvencionable de la operación aprobada","Suma de Importe total del gasto subvencionable declarado por los beneficiarios","Cuenta de Código operación"]
[4,"ESO4.13","ESF","T",164,"(en blanco)","(en blanco)","(en blanco)","(en blanco)","(en blanco)","(en blanco)",null,null,null,null,null,null,null,null,null,null,12820918.189999999,3104039.8400000003,2]
["(en blanco)","(en blanco)","(en blanco)","(en blanco)","(en blanco)","(en blanco)","(en blanco)","(en blanco)","(en blanco)","(en blanco)","(en blanco)"]

{"sheet":"Copia TDCuadro 2 para carga SFC","index":6,"n_rows":7,"n_cols":24,"rows_kept":7,"cut":false,"hidden":true,"merged":[]}
[]
[]
[]
["Priority","Specific objective","Fund","Category of region","Intervention field","Form of support","Territorial delivery dimension","Economic activity dimension","Location dimension","ESF+ secondary theme","ESF+ secondary theme\n02","ESF+ secondary theme\n03","ESF+ secondary theme\n04","ESF+ secondary theme\n05","ESF+ secondary theme\n06","ESF+ secondary theme\n07","ESF+ secondary theme\n08","ESF+ secondary theme\n09","ESF+ secondary theme\n10","Gender equality dimension","Macro-regional and sea-basin dimension","Total eligible cost of selected operations (EUR)","Total eligible expenditure declared by beneficiaries","Number of selected operations"]
[{"$f":"'TD CUADRO 2'!A6","v":"(en blanco)"},{"$f":"'TD CUADRO 2'!B6","v":"(en blanco)"},{"$f":"'TD CUADRO 2'!C6","v":"(en blanco)"},{"$f":"'TD CUADRO 2'!D6","v":"(en blanco)"},null,null,null,null,null,null,null,null,null,null,null,null,null,null,null,null,null,{"$f":"'TD CUADRO 2'!V6","v":0},{"$f":"'TD CUADRO 2'!W6","v":0},{"$f":"'TD CUADRO 2'!X6","v":0}]
[{"$f":"'TD CUADRO 2'!A7","v":0},{"$f":"'TD CUADRO 2'!B7","v":0},{"$f":"'TD CUADRO 2'!C7","v":0},{"$f":"'TD CUADRO 2'!D7","v":0},null,null,null,null,null,null,null,null,null,null,null,null,null,null,null,null,null,{"$f":"'TD CUADRO 2'!V7","v":0},{"$f":"'TD CUADRO 2'!W7","v":0},{"$f":"'TD CUADRO 2'!X7","v":0}]
[{"$f":"'TD CUADRO 2'!A5","v":4},{"$f":"'TD CUADRO 2'!B5","v":"ESO4.13"},{"$f":"'TD CUADRO 2'!C5","v":"ESF"},{"$f":"'TD CUADRO 2'!D5","v":"T"},null,null,null,null,null,null,null,null,null,null,null,null,null,null,null,null,null,{"$f":"'TD CUADRO 2'!V5","v":12820918.189999999},{"$f":"'TD CUADRO 2'!W5","v":3104039.8400000003},{"$f":"'TD CUADRO 2'!X5","v":2}]

{"sheet":"FICHERO CARGA CUADRO2 SFC","index":7,"n_rows":4,"n_cols":25,"rows_kept":4,"cut":false,"hidden":true,"merged":[[1,24,2,28]]}
["Priority","Specific objective","Fund","Category of region","Intervention field","Form of support","Territorial delivery dimension","Economic activity dimension","Location dimension","ESF+ secondary theme","ESF+ secondary theme\n02","ESF+ secondary theme\n03","ESF+ secondary theme\n04","ESF+ secondary theme\n05","ESF+ secondary theme\n06","ESF+ secondary theme\n07","ESF+ secondary theme\n08","ESF+ secondary theme\n09","ESF+ secondary theme\n10","Gender equality dimension","Macro-regional and sea-basin dimension","Total eligible cost of selected operations (EUR)","Total eligible expenditure declared by beneficiaries","Number of selected operations"]
[4,"ESO4.13","ESF","M",null,null,null,null,null,null,null,null,null,null,null,null,null,null,null,null,null,34936007.909999996,0,1,"Pega los datos de Copia TDCuadro2 para carga SFC aquí. \n¡¡¡Pegalos como valor¡¡¡"]
[4,"ESO4.13","ESF","T",null,null,null,null,null,null,null,null,null,null,null,null,null,null,null,null,null,39478724.600000001,0,1]
[4,"ESO4.13","ESF","L",null,null,null,null,null,null,null,null,null,null,null,null,null,null,null,null,null,25821840.98,0,1]

{"sheet":"Copia TDCuadro 2 con TSec","index":8,"n_rows":4,"n_cols":24,"rows_kept":4,"cut":false,"hidden":true,"merged":[]}
[]
[]
[]
["Priority","Specific objective","Fund","Category of region","Intervention field","Form of support","Territorial delivery dimension","Economic activity dimension","Location dimension","ESF+ secondary theme","ESF+ secondary theme\n02","ESF+ secondary theme\n03","ESF+ secondary theme\n04","ESF+ secondary theme\n05","ESF+ secondary theme\n06","ESF+ secondary theme\n07","ESF+ secondary theme\n08","ESF+ secondary theme\n09","ESF+ secondary theme\n10","Gender equality dimension","Macro-regional and sea-basin dimension","Total eligible cost of selected operations (EUR)","Total eligible expenditure declared by beneficiaries","Number of selected operations"]

{"sheet":"CUADRO 2 ","index":9,"n_rows":3,"n_cols":24,"rows_kept":3,"cut":false,"hidden":true,"merged":[[0,0,0,3],[0,21,0,23],[1,0,2,0],[1,1,2,1],[1,2,2,2],[1,3,2,3],[1,21,2,21],[1,22,2,22],[1,23,2,23],[1,9,1,18],[0,4,0,20]]}
["Características del gasto",null,null,null,"Dimensión de categorización",null,null,null,null,null,null,null,null,null,null,null,null,null,null,null,null,"Datos financieros"]
["Prioridad","Objetivo específico","Fondo","Categoría de región",1,2,3,4,5,6,null,null,null,null,null,null,null,null,null,7,8,"Coste total subvencionable de las operaciones seleccionadas (EUR)","Importe total del gasto subvencionable declarado por los beneficiarios","Número de operaciones seleccionadas"]
[null,null,null,null,"Campo de intervención","Forma de ayuda","Dimensión de la aplicación territorial","Dimensión de la actividad económica","Dimensión de ubicación","Tema secundario del FSE+ 01","Tema secundario del FSE+ 02","Tema secundario del FSE+ 03","Tema secundario del FSE+ 04","Tema secundario del FSE+ 05","Tema secundario del FSE+ 06","Tema secundario del FSE+ 07","Tema secundario del FSE+ 08","Tema secundario del FSE+ 09","Tema secundario del FSE+ 10","Dimensión de igualdad de género","Dimensión macrorregional y de las cuencas marítimas"]

{"sheet":"CUADRO 6 NO APLICA","index":10,"n_rows":1455,"n_cols":26,"rows_kept":1455,"cut":false,"hidden":true,"merged":[[4,21,4,25],[4,8,4,11],[4,12,4,15],[4,16,4,19],[0,0,0,20],[2,8,2,11],[2,12,2,15],[2,16,2,19],[3,0,3,11],[3,12,3,20]]}
["Cuadro 6: Indicadores de realización comunes y específicos del programa para el FSE+ [artículo 42, apartado 2, letra b)] "]
[]
[1,2,3,4,5,6,7,8,9,null,null,null,10,null,null,null,11,null,null,null,12]
["Datos relativos a todos los indicadores comunes de realización que figuran en los anexos I, II y III del Reglamento del FSE+ y relativos a los indicadores específicos del programa [extraídos del anexo V, punto 2.1.1.1.2, cuadro 2, y del anexo V, punto 2.1.1.2.2, cuadro 2] ",null,null,null,null,null,null,null,null,null,null,null,"Evolución de los indicadores de realización"]
[null,null,null,null,null,null,null,null,"Meta 2029 (desglose por género opcional)",null,null,null,"Valores alcanzados hasta la fecha",null,null,null,"Coeficiente de logros",null,null,null,null,"VALIDACIONES"]
[]
["Prioridad","Objetivo específico","Fondo","Categoría de región","Identificador","Nombre del indicador","Unidad de medida","Hito (2024)","M","F","No","T","M","F","No","T","M","F","No","T","Observaciones","VALIDACIONES","H","M","NB","TOTAL"]
[1,"ESO4.4","FSE+","Más desarrolladas","EECO01","Número total de participantes","personas",null,null,null,null,null,0,0,0,0,{"$f":"IFERROR(M8/I8,\"\")","v":""},{"$f":"IFERROR(N8/J8,\"\")","v":""},"","",null,"VALIDACION  S.LABORAL",{"$f":"IF(M8=M9+M11+M12,\"OK S.LABORAL H\",\"ERROR S.LABORAL H\")","v":"OK S.LABORAL H"},{"$f":"IF(N8=N9+N11+N12,\"OK S.LABORAL M\",\"ERROR S.LABORAL M\")","v":"OK S.LABORAL M"},{"$f":"IF(O8=O9+O11+O12,\"OK S.LABORAL NB\",\"ERROR S.LABORAL NB\")","v":"OK S.LABORAL NB"},{"$f":"IF(P8=P9+P11+P12,\"OK S.LABORAL TOTAL\",\"ERROR S.LABORAL TOTAL\")","v":"OK S.LABORAL TOTAL"}]
[1,"ESO4.4","FSE+","Más desarrolladas","EECO02","Desempleados, incluidos los de larga duración","personas",494,0,0,0,1978,0,0,0,0,{"$f":"IFERROR(M9/I9,\"\")","v":""},{"$f":"IFERROR(N9/J9,\"\")","v":""},{"$f":"IFERROR(O9/K9,\"\")","v":""},{"$f":"IFERROR(P9/L9,\"\")","v":0}]
[1,"ESO4.4","FSE+","Más desarrolladas","EECO03","Desempleados de larga duración","personas",null,null,null,null,null,0,0,0,0,"","","",""]
[1,"ESO4.4","FSE+","Más desarrolladas","EECO04","Inactivo","personas",null,null,null,null,null,0,0,0,0,"","","",""]
[1,"ESO4.4","FSE+","Más desarrolladas","EECO05","Empleados, incluso por cuenta propia","personas",3477,0,0,0,6953,0,0,0,0,"","","",0]
[1,"ESO4.4","FSE+","Más desarrolladas","EECO06","Menores (menos de 18 años)","personas",null,null,null,null,null,0,0,0,0,"","","","",null,"VALIDACIÓN EDAD",{"$f":"IF(M13+M14+M15<=M8,\"Ok EDAD H\",\"ERROREDADH\")","v":"Ok EDAD H"},{"$f":"IF(N13+N14+N15<=N8,\"Ok EDAD M\",\"ERROREDADM\")","v":"Ok EDAD M"},{"$f":"IF(O13+O14+O15<=O8,\"Ok EDAD NB\",\"ERROREDADNB\")","v":"Ok EDAD NB"},{"$f":"IF(P13+P14+P15<=P8,\"Ok TOTAL\",\"ERROR TOTAL\")","v":"Ok TOTAL"}]
[1,"ESO4.4","FSE+","Más desarrolladas","EECO07","Número de personas jóvenes de edades comprendidas entre los 18 y los 29 años","personas",null,null,null,null,null,0,0,0,0,"","","",""]
[1,"ESO4.4","FSE+","Más desarrolladas","EECO08","Participantes de más de 54 años","personas",null,null,null,null,null,0,0,0,0,"","","",""]
[1,"ESO4.4","FSE+","Más desarrolladas","EECO09","Participantes con el primer ciclo de enseñanza secundaria como máximo","personas",null,null,null,null,null,0,0,0,0,"","","","",null,"VALIDACIÓN N.EDUCATIVO",{"$f":"IF(M16+M17+M18=M8,\"OK M.EDUCATIVO H\",\"ERROR M.EDUCATIVO H\")","v":"OK M.EDUCATIVO H"},{"$f":"IF(N16+N17+N18=N8,\"OK F.EDUCATIVO M\",\"ERROR F.EDUCATIVO M\")","v":"OK F.EDUCATIVO M"},{"$f":"IF(O16+O17+O18=O8,\"OK NB.EDUCATIVO NB\",\"ERROR NB.EDUCATIVO NB\")","v":"OK NB.EDUCATIVO NB"},{"$f":"IF(P16+P17+P18=P8,\"OK TOTAL N.EDUCATIVO\",\"ERROR TOTAL N.EDUCATIVO\")","v":"OK TOTAL N.EDUCATIVO"}]
[1,"ESO4.4","FSE+","Más desarrolladas","EECO10","Participantes con el segundo ciclo de enseñanza secundaria o con enseñanza postsecundaria","personas",null,null,null,null,null,0,0,0,0,"","","",""]
[1,"ESO4.4","FSE+","Más desarrolladas","EECO11","Participantes con enseñanza superior o terciaria","personas",null,null,null,null,null,0,0,0,0,"","","",""]
[1,"ESO4.4","FSE+","Más desarrolladas","EECO12","Participantes con discapacidad","personas",null,null,null,null,null,0,0,0,0,"","","","",null,"VALIDACIÓN EECO12",{"$f":"IF(M19<=M8,\"OK P.DISCAPACIDAD H\",\"ERROR P.DISCAPACIDAD H\")","v":"OK P.DISCAPACIDAD H"},{"$f":"IF(N19<=N8,\"OK P.DISCAPACIDAD M\",\"ERROR P.DISCAPACIDAD M\")","v":"OK P.DISCAPACIDAD M"},{"$f":"IF(O19<=O8,\"OK P.DISCAPACIDAD NB\",\"ERROR P.DISCAPACIDAD NB\")","v":"OK P.DISCAPACIDAD NB"},{"$f":"IF(P19<=P8,\"OK  P.DISCAPACIDAD TOTAL\",\"ERROR P.DISCAPACIDAD TOTAL\")","v":"OK  P.DISCAPACIDAD TOTAL"}]
[1,"ESO4.4","FSE+","Más desarrolladas","EECO13","Nacionales de terceros países","personas",null,null,null,null,null,0,0,0,0,"","","","",null,"VALIDACIÓN EECO13",{"$f":"IF(M20<=M8,\"OK P.EECO13 H\",\"ERROR EECO13 H\")","v":"OK P.EECO13 H"},{"$f":"IF(N20<=N8,\"OK P.EECO13 M\",\"ERROR EECO13 M\")","v":"OK P.EECO13 M"},{"$f":"IF(O20<=O8,\"OK P.EECO13 NB\",\"ERROR EECO13 NB\")","v":"OK P.EECO13 NB"},{"$f":"IF(P20<=P8,\"OK P.EECO13 TOTAL\",\"ERROR EECO13 TOTAL\")","v":"OK P.EECO13 TOTAL"}]
[1,"ESO4.4","FSE+","Más desarrolladas","EECO14","Participantes de origen extranjero","personas",null,null,null,null,null,0,0,0,0,"","","","",null,"VALIDACIÓN EECO14",{"$f":"IF(M21<=M8,\"OK EECO14 H\",\"ERROR EECO14 H\")","v":"OK EECO14 H"},{"$f":"IF(N21<=N8,\"OK EECO14 M\",\"ERROR EECO14 M\")","v":"OK EECO14 M"},{"$f":"IF(O21<=O8,\"OK EECO14 NB\",\"ERROR EECO14 NB\")","v":"OK EECO14 NB"},{"$f":"IF(P21<=P8,\"OK EECO14 TOTAL\",\"ERROR EECO14 TOTAL\")","v":"OK EECO14 TOTAL"}]
[1,"ESO4.4","FSE+","Más desarrolladas","EECO15","Participantes pertenecientes a minorías (incluidas las comunidades marginadas, como la romaní)","personas",null,null,null,null,null,0,0,0,0,"","","","",null,"VALIDACIÓN EECO15",{"$f":"IF(M22<=M8,\"OK EECO15 H\",\"ERROR EECO15 H\")","v":"OK EECO15 H"},{"$f":"IF(N22<=N8,\"OK EECO15 M\",\"ERROR EECO15 M\")","v":"OK EECO15 M"},{"$f":"IF(O22<=O8,\"OK EECO15 NB\",\"ERROR EECO15 NB\")","v":"OK EECO15 NB"},{"$f":"IF(P22<=P8,\"OK EECO15 TOTAL\",\"ERROR EECO15 TOTAL\")","v":"OK EECO15 TOTAL"}]
[1,"ESO4.4","FSE+","Más desarrolladas","EECO16","Personas sin hogar o afectadas por la exclusión en materia de vivienda","personas",null,null,null,null,null,0,0,0,0,"","","","",null,"VALIDACIÓN EECO16",{"$f":"IF(M23<=M8,\"OK EECO16 H\",\"ERROR EECO16 H\")","v":"OK EECO16 H"},{"$f":"IF(N23<=N8,\"OK EECO16 M\",\"ERROR EECO16 M\")","v":"OK EECO16 M"},{"$f":"IF(O23<=O8,\"OK EECO16 NB\",\"ERROR EECO16 NB\")","v":"OK EECO16 NB"},{"$f":"IF(P23<=P8,\"OK EECO16 TOTAL\",\"ERROR EECO16 TOTAL\")","v":"OK EECO16 TOTAL"}]
[1,"ESO4.4","FSE+","Más desarrolladas","EECO17","Participantes de zonas rurales ","personas",null,null,null,null,null,0,0,0,0,"","","","",null,"VALIDACIÓN EECO17",{"$f":"IF(M24<=M8,\"OK EECO17 H\",\"ERROR EECO17 H\")","v":"OK EECO17 H"},{"$f":"IF(N24<=N8,\"OK EECO17 M\",\"ERROR EECO17 M\")","v":"OK EECO17 M"},{"$f":"IF(O24<=O8,\"OK EECO17 NB\",\"ERROR EECO17 NB\")","v":"OK EECO17 NB"},{"$f":"IF(P24<=P8,\"OK EECO17 TOTAL\",\"ERROR EECO17 TOTAL\")","v":"OK EECO17 TOTAL"}]
[1,"ESO4.4","FSE+","Más desarrolladas","EECO18","Número de administraciones públicas o servicios públicos objeto de apoyo","entidades",null,null,null,null,null,null,null,null,0,"","","",""]
[1,"ESO4.4","FSE+","Más desarrolladas","EECO19","Número de microempresas y pequeñas y medianas empresas objeto de apoyo","empresas",null,null,null,null,null,null,null,null,0,"","","",""]
[1,"ESO4.4","FSE+","Transición","EECO01","Número total de participantes","personas",null,null,null,null,null,0,0,0,0,"","","","",null,"VALIDACION  S.LABORAL",{"$f":"IF(M27=M28+M30+M31,\"OK S.LABORAL H\",\"ERROR S.LABORAL H\")","v":"OK S.LABORAL H"},{"$f":"IF(N27=N28+N30+N31,\"OK S.LABORAL M\",\"ERROR S.LABORAL M\")","v":"OK S.LABORAL M"},{"$f":"IF(O27=O28+O30+O31,\"OK S.LABORAL NB\",\"ERROR S.LABORAL NB\")","v":"OK S.LABORAL NB"},{"$f":"IF(P27=P28+P30+P31,\"OK S.LABORAL TOTAL\",\"ERROR S.LABORAL TOTAL\")","v":"OK S.LABORAL TOTAL"}]
[1,"ESO4.4","FSE+","Transición","EECO02","Desempleados, incluidos los de larga duración","personas",2501,0,0,0,10004,0,0,0,0,"","","",0]
[1,"ESO4.4","FSE+","Transición","EECO03","Desempleados de larga duración","personas",null,null,null,null,null,0,0,0,0,"","","",""]
[1,"ESO4.4","FSE+","Transición","EECO04","Inactivo","personas",null,null,null,null,null,0,0,0,0,"","","",""]
[1,"ESO4.4","FSE+","Transición","EECO05","Empleados, incluso por cuenta propia","personas",17587,0,0,0,35174,0,0,0,0,"","","",0]
[1,"ESO4.4","FSE+","Transición","EECO06","Menores (menos de 18 años)","personas",null,null,null,null,null,0,0,0,0,"","","","",null,"VALIDACIÓN EDAD",{"$f":"IF(M32+M33+M34<=M27,\"Ok EDAD H\",\"ERROREDADH\")","v":"Ok EDAD H"},{"$f":"IF(N32+N33+N34<=N27,\"Ok EDAD M\",\"ERROREDADM\")","v":"Ok EDAD M"},{"$f":"IF(O32+O33+O34<=O27,\"Ok EDAD NB\",\"ERROREDADNB\")","v":"Ok EDAD NB"},{"$f":"IF(P32+P33+P34<=P27,\"Ok TOTAL\",\"ERROR TOTAL\")","v":"Ok TOTAL"}]
[1,"ESO4.4","FSE+","Transición","EECO07","Número de personas jóvenes de edades comprendidas entre los 18 y los 29 años","personas",null,null,null,null,null,0,0,0,0,"","","",""]
[1,"ESO4.4","FSE+","Transición","EECO08","Participantes de más de 54 años","personas",null,null,null,null,null,0,0,0,0,"","","",""]
[1,"ESO4.4","FSE+","Transición","EECO09","Participantes con el primer ciclo de enseñanza secundaria como máximo","personas",null,null,null,null,null,0,0,0,0,"","","","",null,"VALIDACIÓN N.EDUCATIVO",{"$f":"IF(M35+M36+M37=M27,\"OK M.EDUCATIVO H\",\"ERROR M.EDUCATIVO H\")","v":"OK M.EDUCATIVO H"},{"$f":"IF(N35+N36+N37=N27,\"OK F.EDUCATIVO M\",\"ERROR F.EDUCATIVO M\")","v":"OK F.EDUCATIVO M"},{"$f":"IF(O35+O36+O37=O27,\"OK NB.EDUCATIVO NB\",\"ERROR NB.EDUCATIVO NB\")","v":"OK NB.EDUCATIVO NB"},{"$f":"IF(P35+P36+P37=P27,\"OK TOTAL N.EDUCATIVO\",\"ERROR TOTAL N.EDUCATIVO\")","v":"OK TOTAL N.EDUCATIVO"}]
[1,"ESO4.4","FSE+","Transición","EECO10","Participantes con el segundo ciclo de enseñanza secundaria o con enseñanza postsecundaria","personas",null,null,null,null,null,0,0,0,0,"","","",""]
[1,"ESO4.4","FSE+","Transición","EECO11","Participantes con enseñanza superior o terciaria","personas",null,null,null,null,null,0,0,0,0,"","","",""]
[1,"ESO4.4","FSE+","Transición","EECO12","Participantes con discapacidad","personas",null,null,null,null,null,0,0,0,0,"","","","",null,"VALIDACIÓN EECO12",{"$f":"IF(M38<=M27,\"OK P.DISCAPACIDAD H\",\"ERROR P.DISCAPACIDAD H\")","v":"OK P.DISCAPACIDAD H"},{"$f":"IF(N38<=N27,\"OK P.DISCAPACIDAD M\",\"ERROR P.DISCAPACIDAD M\")","v":"OK P.DISCAPACIDAD M"},{"$f":"IF(O38<=O27,\"OK P.DISCAPACIDAD NB\",\"ERROR P.DISCAPACIDAD NB\")","v":"OK P.DISCAPACIDAD NB"},{"$f":"IF(P38<=P27,\"OK  P.DISCAPACIDAD TOTAL\",\"ERROR P.DISCAPACIDAD TOTAL\")","v":"OK  P.DISCAPACIDAD TOTAL"}]
[1,"ESO4.4","FSE+","Transición","EECO13","Nacionales de terceros países","personas",null,null,null,null,null,0,0,0,0,"","","","",null,"VALIDACIÓN EECO13",{"$f":"IF(M39<=M27,\"OK P.EECO13 H\",\"ERROR EECO13 H\")","v":"OK P.EECO13 H"},{"$f":"IF(N39<=N27,\"OK P.EECO13 M\",\"ERROR EECO13 M\")","v":"OK P.EECO13 M"},{"$f":"IF(O39<=O27,\"OK P.EECO13 NB\",\"ERROR EECO13 NB\")","v":"OK P.EECO13 NB"},{"$f":"IF(P39<=P27,\"OK P.EECO13 TOTAL\",\"ERROR EECO13 TOTAL\")","v":"OK P.EECO13 TOTAL"}]
[1,"ESO4.4","FSE+","Transición","EECO14","Participantes de origen extranjero","personas",null,null,null,null,null,0,0,0,0,"","","","",null,"VALIDACIÓN EECO14",{"$f":"IF(M40<=M27,\"OK EECO14 H\",\"ERROR EECO14 H\")","v":"OK EECO14 H"},{"$f":"IF(N40<=N27,\"OK EECO14 M\",\"ERROR EECO14 M\")","v":"OK EECO14 M"},{"$f":"IF(O40<=O27,\"OK EECO14 NB\",\"ERROR EECO14 NB\")","v":"OK EECO14 NB"},{"$f":"IF(P40<=P27,\"OK EECO14 TOTAL\",\"ERROR EECO14 TOTAL\")","v":"OK EECO14 TOTAL"}]
[1,"ESO4.4","FSE+","Transición","EECO15","Participantes pertenecientes a minorías (incluidas las comunidades marginadas, como la romaní)","personas",null,null,null,null,null,0,0,0,0,"","","","",null,"VALIDACIÓN EECO15",{"$f":"IF(M41<=M27,\"OK EECO15 H\",\"ERROR EECO15 H\")","v":"OK EECO15 H"},{"$f":"IF(N41<=N27,\"OK EECO15 M\",\"ERROR EECO15 M\")","v":"OK EECO15 M"},{"$f":"IF(O41<=O27,\"OK EECO15 NB\",\"ERROR EECO15 NB\")","v":"OK EECO15 NB"},{"$f":"IF(P41<=P27,\"OK EECO15 TOTAL\",\"ERROR EECO15 TOTAL\")","v":"OK EECO15 TOTAL"}]
[1,"ESO4.4","FSE+","Transición","EECO16","Personas sin hogar o afectadas por la exclusión en materia de vivienda","personas",null,null,null,null,null,0,0,0,0,"","","","",null,"VALIDACIÓN EECO16",{"$f":"IF(M42<=M27,\"OK EECO16 H\",\"ERROR EECO16 H\")","v":"OK EECO16 H"},{"$f":"IF(N42<=N27,\"OK EECO16 M\",\"ERROR EECO16 M\")","v":"OK EECO16 M"},{"$f":"IF(O42<=O27,\"OK EECO16 NB\",\"ERROR EECO16 NB\")","v":"OK EECO16 NB"},{"$f":"IF(P42<=P27,\"OK EECO16 TOTAL\",\"ERROR EECO16 TOTAL\")","v":"OK EECO16 TOTAL"}]
[1,"ESO4.4","FSE+","Transición","EECO17","Participantes de zonas rurales ","personas",null,null,null,null,null,0,0,0,0,"","","","",null,"VALIDACIÓN EECO17",{"$f":"IF(M43<=M27,\"OK EECO17 H\",\"ERROR EECO17 H\")","v":"OK EECO17 H"},{"$f":"IF(N43<=N27,\"OK EECO17 M\",\"ERROR EECO17 M\")","v":"OK EECO17 M"},{"$f":"IF(O43<=O27,\"OK EECO17 NB\",\"ERROR EECO17 NB\")","v":"OK EECO17 NB"},{"$f":"IF(P43<=P27,\"OK EECO17 TOTAL\",\"ERROR EECO17 TOTAL\")","v":"OK EECO17 TOTAL"}]
[1,"ESO4.4","FSE+","Transición","EECO18","Número de administraciones públicas o servicios públicos objeto de apoyo","entidades",null,null,null,null,null,null,null,null,0,"","","",""]
[1,"ESO4.4","FSE+","Transición","EECO19","Número de microempresas y pequeñas y medianas empresas objeto de apoyo","empresas",null,null,null,null,null,null,null,null,0,"","","",""]
[1,"ESO4.4","FSE+","Menos desarrolladas","EECO01","Número total de participantes","personas",null,null,null,null,null,0,0,0,0,"","","","",null,"VALIDACION  S.LABORAL",{"$f":"IF(M46=M47+M49+M50,\"OK S.LABORAL H\",\"ERROR S.LABORAL H\")","v":"OK S.LABORAL H"},{"$f":"IF(N46=N47+N49+N50,\"OK S.LABORAL M\",\"ERROR S.LABORAL M\")","v":"OK S.LABORAL M"},{"$f":"IF(O46=O47+O49+O50,\"OK S.LABORAL NB\",\"ERROR S.LABORAL NB\")","v":"OK S.LABORAL NB"},{"$f":"IF(P46=P47+P49+P50,\"OK S.LABORAL TOTAL\",\"ERROR S.LABORAL TOTAL\")","v":"OK S.LABORAL TOTAL"}]
[1,"ESO4.4","FSE+","Menos desarrolladas","EECO02","Desempleados, incluidos los de larga duración","personas",4251,0,0,0,17004,0,0,0,0,"","","",0]
[1,"ESO4.4","FSE+","Menos desarrolladas","EECO03","Desempleados de larga duración","personas",null,null,null,null,null,0,0,0,0,"","","",""]
[1,"ESO4.4","FSE+","Menos desarrolladas","EECO04","Inactivo","personas",null,null,null,null,null,0,0,0,0,"","","",""]
[1,"ESO4.4","FSE+","Menos desarrolladas","EECO05","Empleados, incluso por cuenta propia","personas",29895,0,0,0,59789,0,0,0,0,"","","",0]
[1,"ESO4.4","FSE+","Menos desarrolladas","EECO06","Menores (menos de 18 años)","personas",null,null,null,null,null,0,0,0,0,"","","","",null,"VALIDACIÓN EDAD",{"$f":"IF(M51+M52+M53<=M46,\"Ok EDAD H\",\"ERROREDADH\")","v":"Ok EDAD H"},{"$f":"IF(N51+N52+N53<=N46,\"Ok EDAD M\",\"ERROREDADM\")","v":"Ok EDAD M"},{"$f":"IF(O51+O52+O53<=O46,\"Ok EDAD NB\",\"ERROREDADNB\")","v":"Ok EDAD NB"},{"$f":"IF(P51+P52+P53<=P46,\"Ok TOTAL\",\"ERROR TOTAL\")","v":"Ok TOTAL"}]
[1,"ESO4.4","FSE+","Menos desarrolladas","EECO07","Número de personas jóvenes de edades comprendidas entre los 18 y los 29 años","personas",null,null,null,null,null,0,0,0,0,"","","",""]
[1,"ESO4.4","FSE+","Menos desarrolladas","EECO08","Participantes de más de 54 años","personas",null,null,null,null,null,0,0,0,0,"","","",""]
[1,"ESO4.4","FSE+","Menos desarrolladas","EECO09","Participantes con el primer ciclo de enseñanza secundaria como máximo","personas",null,null,null,null,null,0,0,0,0,"","","","",null,"VALIDACIÓN N.EDUCATIVO",{"$f":"IF(M54+M55+M56=M46,\"OK M.EDUCATIVO H\",\"ERROR M.EDUCATIVO H\")","v":"OK M.EDUCATIVO H"},{"$f":"IF(N54+N55+N56=N46,\"OK F.EDUCATIVO M\",\"ERROR F.EDUCATIVO M\")","v":"OK F.EDUCATIVO M"},{"$f":"IF(O54+O55+O56=O46,\"OK NB.EDUCATIVO NB\",\"ERROR NB.EDUCATIVO NB\")","v":"OK NB.EDUCATIVO NB"},{"$f":"IF(P54+P55+P56=P46,\"OK TOTAL N.EDUCATIVO\",\"ERROR TOTAL N.EDUCATIVO\")","v":"OK TOTAL N.EDUCATIVO"}]
[1,"ESO4.4","FSE+","Menos desarrolladas","EECO10","Participantes con el segundo ciclo de enseñanza secundaria o con enseñanza postsecundaria","personas",null,null,null,null,null,0,0,0,0,"","","",""]
[1,"ESO4.4","FSE+","Menos desarrolladas","EECO11","Participantes con enseñanza superior o terciaria","personas",null,null,null,null,null,0,0,0,0,"","","",""]
[1,"ESO4.4","FSE+","Menos desarrolladas","EECO12","Participantes con discapacidad","personas",null,null,null,null,null,0,0,0,0,"","","","",null,"VALIDACIÓN EECO12",{"$f":"IF(M57<=M46,\"OK P.DISCAPACIDAD H\",\"ERROR P.DISCAPACIDAD H\")","v":"OK P.DISCAPACIDAD H"},{"$f":"IF(N57<=N46,\"OK P.DISCAPACIDAD M\",\"ERROR P.DISCAPACIDAD M\")","v":"OK P.DISCAPACIDAD M"},{"$f":"IF(O57<=O46,\"OK P.DISCAPACIDAD NB\",\"ERROR P.DISCAPACIDAD NB\")","v":"OK P.DISCAPACIDAD NB"},{"$f":"IF(P57<=P46,\"OK  P.DISCAPACIDAD TOTAL\",\"ERROR P.DISCAPACIDAD TOTAL\")","v":"OK  P.DISCAPACIDAD TOTAL"}]
[1,"ESO4.4","FSE+","Menos desarrolladas","EECO13","Nacionales de terceros países","personas",null,null,null,null,null,0,0,0,0,"","","","",null,"VALIDACIÓN EECO13",{"$f":"IF(M58<=M46,\"OK P.EECO13 H\",\"ERROR EECO13 H\")","v":"OK P.EECO13 H"},{"$f":"IF(N58<=N46,\"OK P.EECO13 M\",\"ERROR EECO13 M\")","v":"OK P.EECO13 M"},{"$f":"IF(O58<=O46,\"OK P.EECO13 NB\",\"ERROR EECO13 NB\")","v":"OK P.EECO13 NB"},{"$f":"IF(P58<=P46,\"OK P.EECO13 TOTAL\",\"ERROR EECO13 TOTAL\")","v":"OK P.EECO13 TOTAL"}]
[1,"ESO4.4","FSE+","Menos desarrolladas","EECO14","Participantes de origen extranjero","personas",null,null,null,null,null,0,0,0,0,"","","","",null,"VALIDACIÓN EECO14",{"$f":"IF(M59<=M46,\"OK EECO14 H\",\"ERROR EECO14 H\")","v":"OK EECO14 H"},{"$f":"IF(N59<=N46,\"OK EECO14 M\",\"ERROR EECO14 M\")","v":"OK EECO14 M"},{"$f":"IF(O59<=O46,\"OK EECO14 NB\",\"ERROR EECO14 NB\")","v":"OK EECO14 NB"},{"$f":"IF(P59<=P46,\"OK EECO14 TOTAL\",\"ERROR EECO14 TOTAL\")","v":"OK EECO14 TOTAL"}]
[1,"ESO4.4","FSE+","Menos desarrolladas","EECO15","Participantes pertenecientes a minorías (incluidas las comunidades marginadas, como la romaní)","personas",null,null,null,null,null,0,0,0,0,"","","","",null,"VALIDACIÓN EECO15",{"$f":"IF(M60<=M46,\"OK EECO15 H\",\"ERROR EECO15 H\")","v":"OK EECO15 H"},{"$f":"IF(N60<=N46,\"OK EECO15 M\",\"ERROR EECO15 M\")","v":"OK EECO15 M"},{"$f":"IF(O60<=O46,\"OK EECO15 NB\",\"ERROR EECO15 NB\")","v":"OK EECO15 NB"},{"$f":"IF(P60<=P46,\"OK EECO15 TOTAL\",\"ERROR EECO15 TOTAL\")","v":"OK EECO15 TOTAL"}]
[1,"ESO4.4","FSE+","Menos desarrolladas","EECO16","Personas sin hogar o afectadas por la exclusión en materia de vivienda","personas",null,null,null,null,null,0,0,0,0,"","","","",null,"VALIDACIÓN EECO16",{"$f":"IF(M61<=M46,\"OK EECO16 H\",\"ERROR EECO16 H\")","v":"OK EECO16 H"},{"$f":"IF(N61<=N46,\"OK EECO16 M\",\"ERROR EECO16 M\")","v":"OK EECO16 M"},{"$f":"IF(O61<=O46,\"OK EECO16 NB\",\"ERROR EECO16 NB\")","v":"OK EECO16 NB"},{"$f":"IF(P61<=P46,\"OK EECO16 TOTAL\",\"ERROR EECO16 TOTAL\")","v":"OK EECO16 TOTAL"}]
[1,"ESO4.4","FSE+","Menos desarrolladas","EECO17","Participantes de zonas rurales ","personas",null,null,null,null,null,0,0,0,0,"","","","",null,"VALIDACIÓN EECO17",{"$f":"IF(M62<=M46,\"OK EECO17 H\",\"ERROR EECO17 H\")","v":"OK EECO17 H"},{"$f":"IF(N62<=N46,\"OK EECO17 M\",\"ERROR EECO17 M\")","v":"OK EECO17 M"},{"$f":"IF(O62<=O46,\"OK EECO17 NB\",\"ERROR EECO17 NB\")","v":"OK EECO17 NB"},{"$f":"IF(P62<=P46,\"OK EECO17 TOTAL\",\"ERROR EECO17 TOTAL\")","v":"OK EECO17 TOTAL"}]
[1,"ESO4.4","FSE+","Menos desarrolladas","EECO18","Número de administraciones públicas o servicios públicos objeto de apoyo","entidades",null,null,null,null,null,null,null,null,0,"","","",""]
[1,"ESO4.4","FSE+","Menos desarrolladas","EECO19","Número de microempresas y pequeñas y medianas empresas objeto de apoyo","empresas",null,null,null,null,null,null,null,null,0,"","","",""]
[1,"ESO4.8","FSE+","Más desarrolladas","EECO01","Número total de participantes","personas",null,null,null,null,null,0,0,0,0,"","","","",null,"VALIDACION  S.LABORAL",{"$f":"IF(M65=M66+M68+M69,\"OK S.LABORAL H\",\"ERROR S.LABORAL H\")","v":"OK S.LABORAL H"},{"$f":"IF(N65=N66+N68+N69,\"OK S.LABORAL M\",\"ERROR S.LABORAL M\")","v":"OK S.LABORAL M"},{"$f":"IF(O65=O66+O68+O69,\"OK S.LABORAL NB\",\"ERROR S.LABORAL NB\")","v":"OK S.LABORAL NB"},{"$f":"IF(P65=P66+P68+P69,\"OK S.LABORAL TOTAL\",\"ERROR S.LABORAL TOTAL\")","v":"OK S.LABORAL TOTAL"}]
[1,"ESO4.8","FSE+","Más desarrolladas","EECO02","Desempleados, incluidos los de larga duración","personas",6613,0,0,0,19203,0,0,0,0,"","","",0]
[1,"ESO4.8","FSE+","Más desarrolladas","EECO03","Desempleados de larga duración","personas",null,null,null,null,null,0,0,0,0,"","","",""]
[1,"ESO4.8","FSE+","Más desarrolladas","EECO04","Inactivo","personas",null,null,null,null,null,0,0,0,0,"","","",""]
[1,"ESO4.8","FSE+","Más desarrolladas","EECO05","Empleados, incluso por cuenta propia","personas",null,null,null,null,null,0,0,0,0,"","","",""]
[1,"ESO4.8","FSE+","Más desarrolladas","EECO06","Menores (menos de 18 años)","personas",null,null,null,null,null,0,0,0,0,"","","","",null,"VALIDACIÓN EDAD",{"$f":"IF(M70+M71+M72<=M65,\"Ok EDAD H\",\"ERROREDADH\")","v":"Ok EDAD H"},{"$f":"IF(N70+N71+N72<=N65,\"Ok EDAD M\",\"ERROREDADM\")","v":"Ok EDAD M"},{"$f":"IF(O70+O71+O72<=O65,\"Ok EDAD NB\",\"ERROREDADNB\")","v":"Ok EDAD NB"},{"$f":"IF(P70+P71+P72<=P65,\"Ok TOTAL\",\"ERROR TOTAL\")","v":"Ok TOTAL"}]
[1,"ESO4.8","FSE+","Más desarrolladas","EECO07","Número de personas jóvenes de edades comprendidas entre los 18 y los 29 años","personas",null,null,null,null,null,0,0,0,0,"","","",""]
[1,"ESO4.8","FSE+","Más desarrolladas","EECO08","Participantes de más de 54 años","personas",null,null,null,null,null,0,0,0,0,"","","",""]
[1,"ESO4.8","FSE+","Más desarrolladas","EECO09","Participantes con el primer ciclo de enseñanza secundaria como máximo","personas",null,null,null,null,null,0,0,0,0,{"$f":"IFERROR(M73/I73,\"\")","v":""},{"$f":"IFERROR(N73/J73,\"\")","v":""},{"$f":"IFERROR(O73/K73,\"\")","v":""},{"$f":"IFERROR(P73/L73,\"\")","v":""},null,"VALIDACIÓN N.EDUCATIVO",{"$f":"IF(M73+M74+M75=M65,\"OK M.EDUCATIVO H\",\"ERROR M.EDUCATIVO H\")","v":"OK M.EDUCATIVO H"},{"$f":"IF(N73+N74+N75=N65,\"OK F.EDUCATIVO M\",\"ERROR F.EDUCATIVO M\")","v":"OK F.EDUCATIVO M"},{"$f":"IF(O73+O74+O75=O65,\"OK NB.EDUCATIVO NB\",\"ERROR NB.EDUCATIVO NB\")","v":"OK NB.EDUCATIVO NB"},{"$f":"IF(P73+P74+P75=P65,\"OK TOTAL N.EDUCATIVO\",\"ERROR TOTAL N.EDUCATIVO\")","v":"OK TOTAL N.EDUCATIVO"}]
[1,"ESO4.8","FSE+","Más desarrolladas","EECO10","Participantes con el segundo ciclo de enseñanza secundaria o con enseñanza postsecundaria","personas",null,null,null,null,null,0,0,0,0,"","","",""]
[1,"ESO4.8","FSE+","Más desarrolladas","EECO11","Participantes con enseñanza superior o terciaria","personas",null,null,null,null,null,0,0,0,0,"","","",""]
[1,"ESO4.8","FSE+","Más desarrolladas","EECO12","Participantes con discapacidad","personas",null,null,null,null,null,0,0,0,0,"","","","",null,"VALIDACIÓN EECO12",{"$f":"IF(M76<=M65,\"OK P.DISCAPACIDAD H\",\"ERROR P.DISCAPACIDAD H\")","v":"OK P.DISCAPACIDAD H"},{"$f":"IF(N76<=N65,\"OK P.DISCAPACIDAD M\",\"ERROR P.DISCAPACIDAD M\")","v":"OK P.DISCAPACIDAD M"},{"$f":"IF(O76<=O65,\"OK P.DISCAPACIDAD NB\",\"ERROR P.DISCAPACIDAD NB\")","v":"OK P.DISCAPACIDAD NB"},{"$f":"IF(P76<=P65,\"OK  P.DISCAPACIDAD TOTAL\",\"ERROR P.DISCAPACIDAD TOTAL\")","v":"OK  P.DISCAPACIDAD TOTAL"}]
[1,"ESO4.8","FSE+","Más desarrolladas","EECO13","Nacionales de terceros países","personas",null,null,null,null,null,0,0,0,0,"","","","",null,"VALIDACIÓN EECO13",{"$f":"IF(M77<=M65,\"OK P.EECO13 H\",\"ERROR EECO13 H\")","v":"OK P.EECO13 H"},{"$f":"IF(N77<=N65,\"OK P.EECO13 M\",\"ERROR EECO13 M\")","v":"OK P.EECO13 M"},{"$f":"IF(O77<=O65,\"OK P.EECO13 NB\",\"ERROR EECO13 NB\")","v":"OK P.EECO13 NB"},{"$f":"IF(P77<=P65,\"OK P.EECO13 TOTAL\",\"ERROR EECO13 TOTAL\")","v":"OK P.EECO13 TOTAL"}]
[1,"ESO4.8","FSE+","Más desarrolladas","EECO14","Participantes de origen extranjero","personas",null,null,null,null,null,0,0,0,0,"","","","",null,"VALIDACIÓN EECO14",{"$f":"IF(M78<=M65,\"OK EECO14 H\",\"ERROR EECO14 H\")","v":"OK EECO14 H"},{"$f":"IF(N78<=N65,\"OK EECO14 M\",\"ERROR EECO14 M\")","v":"OK EECO14 M"},{"$f":"IF(O78<=O65,\"OK EECO14 NB\",\"ERROR EECO14 NB\")","v":"OK EECO14 NB"},{"$f":"IF(P78<=P65,\"OK EECO14 TOTAL\",\"ERROR EECO14 TOTAL\")","v":"OK EECO14 TOTAL"}]
[1,"ESO4.8","FSE+","Más desarrolladas","EECO15","Participantes pertenecientes a minorías (incluidas las comunidades marginadas, como la romaní)","personas",null,null,null,null,null,0,0,0,0,"","","","",null,"VALIDACIÓN EECO15",{"$f":"IF(M79<=M65,\"OK EECO15 H\",\"ERROR EECO15 H\")","v":"OK EECO15 H"},{"$f":"IF(N79<=N65,\"OK EECO15 M\",\"ERROR EECO15 M\")","v":"OK EECO15 M"},{"$f":"IF(O79<=O65,\"OK EECO15 NB\",\"ERROR EECO15 NB\")","v":"OK EECO15 NB"},{"$f":"IF(P79<=P65,\"OK EECO15 TOTAL\",\"ERROR EECO15 TOTAL\")","v":"OK EECO15 TOTAL"}]
[1,"ESO4.8","FSE+","Más desarrolladas","EECO16","Personas sin hogar o afectadas por la exclusión en materia de vivienda","personas",null,null,null,null,null,0,0,0,0,"","","","",null,"VALIDACIÓN EECO16",{"$f":"IF(M80<=M65,\"OK EECO16 H\",\"ERROR EECO16 H\")","v":"OK EECO16 H"},{"$f":"IF(N80<=N65,\"OK EECO16 M\",\"ERROR EECO16 M\")","v":"OK EECO16 M"},{"$f":"IF(O80<=O65,\"OK EECO16 NB\",\"ERROR EECO16 NB\")","v":"OK EECO16 NB"},{"$f":"IF(P80<=P65,\"OK EECO16 TOTAL\",\"ERROR EECO16 TOTAL\")","v":"OK EECO16 TOTAL"}]
[1,"ESO4.8","FSE+","Más desarrolladas","EECO17","Participantes de zonas rurales ","personas",null,null,null,null,null,0,0,0,0,"","","","",null,"VALIDACIÓN EECO17",{"$f":"IF(M81<=M65,\"OK EECO17 H\",\"ERROR EECO17 H\")","v":"OK EECO17 H"},{"$f":"IF(N81<=N65,\"OK EECO17 M\",\"ERROR EECO17 M\")","v":"OK EECO17 M"},{"$f":"IF(O81<=O65,\"OK EECO17 NB\",\"ERROR EECO17 NB\")","v":"OK EECO17 NB"},{"$f":"IF(P81<=P65,\"OK EECO17 TOTAL\",\"ERROR EECO17 TOTAL\")","v":"OK EECO17 TOTAL"}]
[1,"ESO4.8","FSE+","Más desarrolladas","EECO18","Número de administraciones públicas o servicios públicos objeto de apoyo","entidades",null,null,null,null,null,null,null,null,0,"","","",""]
[1,"ESO4.8","FSE+","Más desarrolladas","EECO19","Número de microempresas y pequeñas y medianas empresas objeto de apoyo","empresas",null,null,null,null,null,null,null,null,0,"","","",""]
[1,"ESO4.8","FSE+","Transición","EECO01","Número total de participantes","personas",null,null,null,null,null,0,0,0,0,"","","","",null,"VALIDACION  S.LABORAL",{"$f":"IF(M84=M85+M87+M88,\"OK S.LABORAL H\",\"ERROR S.LABORAL H\")","v":"OK S.LABORAL H"},{"$f":"IF(N84=N85+N87+N88,\"OK S.LABORAL M\",\"ERROR S.LABORAL M\")","v":"OK S.LABORAL M"},{"$f":"IF(O84=O85+O87+O88,\"OK S.LABORAL NB\",\"ERROR S.LABORAL NB\")","v":"OK S.LABORAL NB"},{"$f":"IF(P84=P85+P87+P88,\"OK S.LABORAL TOTAL\",\"ERROR S.LABORAL TOTAL\")","v":"OK S.LABORAL TOTAL"}]
[1,"ESO4.8","FSE+","Transición","EECO02","Desempleados, incluidos los de larga duración","personas",33452,0,0,0,97141,0,0,0,0,"","","",0]
[1,"ESO4.8","FSE+","Transición","EECO03","Desempleados de larga duración","personas",null,null,null,null,null,0,0,0,0,"","","",""]
[1,"ESO4.8","FSE+","Transición","EECO04","Inactivo","personas",null,null,null,null,null,0,0,0,0,"","","",""]
[1,"ESO4.8","FSE+","Transición","EECO05","Empleados, incluso por cuenta propia","personas",null,null,null,null,null,0,0,0,0,"","","",""]
[1,"ESO4.8","FSE+","Transición","EECO06","Menores (menos de 18 años)","personas",null,null,null,null,null,0,0,0,0,"","","","",null,"VALIDACIÓN EDAD",{"$f":"IF(M89+M90+M91<=M84,\"Ok EDAD H\",\"ERROREDADH\")","v":"Ok EDAD H"},{"$f":"IF(N89+N90+N91<=N84,\"Ok EDAD M\",\"ERROREDADM\")","v":"Ok EDAD M"},{"$f":"IF(O89+O90+O91<=O84,\"Ok EDAD NB\",\"ERROREDADNB\")","v":"Ok EDAD NB"},{"$f":"IF(P89+P90+P91<=P84,\"Ok TOTAL\",\"ERROR TOTAL\")","v":"Ok TOTAL"}]
[1,"ESO4.8","FSE+","Transición","EECO07","Número de personas jóvenes de edades comprendidas entre los 18 y los 29 años","personas",null,null,null,null,null,0,0,0,0,"","","",""]
[1,"ESO4.8","FSE+","Transición","EECO08","Participantes de más de 54 años","personas",null,null,null,null,null,0,0,0,0,"","","",""]
[1,"ESO4.8","FSE+","Transición","EECO09","Participantes con el primer ciclo de enseñanza secundaria como máximo","personas",null,null,null,null,null,0,0,0,0,"","","","",null,"VALIDACIÓN N.EDUCATIVO",{"$f":"IF(M92+M93+M94=M84,\"OK M.EDUCATIVO H\",\"ERROR M.EDUCATIVO H\")","v":"OK M.EDUCATIVO H"},{"$f":"IF(N92+N93+N94=N84,\"OK F.EDUCATIVO M\",\"ERROR F.EDUCATIVO M\")","v":"OK F.EDUCATIVO M"},{"$f":"IF(O92+O93+O94=O84,\"OK NB.EDUCATIVO NB\",\"ERROR NB.EDUCATIVO NB\")","v":"OK NB.EDUCATIVO NB"},{"$f":"IF(P92+P93+P94=P84,\"OK TOTAL N.EDUCATIVO\",\"ERROR TOTAL N.EDUCATIVO\")","v":"OK TOTAL N.EDUCATIVO"}]
[1,"ESO4.8","FSE+","Transición","EECO10","Participantes con el segundo ciclo de enseñanza secundaria o con enseñanza postsecundaria","personas",null,null,null,null,null,0,0,0,0,"","","",""]
[1,"ESO4.8","FSE+","Transición","EECO11","Participantes con enseñanza superior o terciaria","personas",null,null,null,null,null,0,0,0,0,"","","",""]
[1,"ESO4.8","FSE+","Transición","EECO12","Participantes con discapacidad","personas",null,null,null,null,null,0,0,0,0,"","","","",null,"VALIDACIÓN EECO12",{"$f":"IF(M95<=M84,\"OK P.DISCAPACIDAD H\",\"ERROR P.DISCAPACIDAD H\")","v":"OK P.DISCAPACIDAD H"},{"$f":"IF(N95<=N84,\"OK P.DISCAPACIDAD M\",\"ERROR P.DISCAPACIDAD M\")","v":"OK P.DISCAPACIDAD M"},{"$f":"IF(O95<=O84,\"OK P.DISCAPACIDAD NB\",\"ERROR P.DISCAPACIDAD NB\")","v":"OK P.DISCAPACIDAD NB"},{"$f":"IF(P95<=P84,\"OK  P.DISCAPACIDAD TOTAL\",\"ERROR P.DISCAPACIDAD TOTAL\")","v":"OK  P.DISCAPACIDAD TOTAL"}]
[1,"ESO4.8","FSE+","Transición","EECO13","Nacionales de terceros países","personas",null,null,null,null,null,0,0,0,0,"","","","",null,"VALIDACIÓN EECO13",{"$f":"IF(M96<=M84,\"OK P.EECO13 H\",\"ERROR EECO13 H\")","v":"OK P.EECO13 H"},{"$f":"IF(N96<=N84,\"OK P.EECO13 M\",\"ERROR EECO13 M\")","v":"OK P.EECO13 M"},{"$f":"IF(O96<=O84,\"OK P.EECO13 NB\",\"ERROR EECO13 NB\")","v":"OK P.EECO13 NB"},{"$f":"IF(P96<=P84,\"OK P.EECO13 TOTAL\",\"ERROR EECO13 TOTAL\")","v":"OK P.EECO13 TOTAL"}]
[1,"ESO4.8","FSE+","Transición","EECO14","Participantes de origen extranjero","personas",null,null,null,null,null,0,0,0,0,"","","","",null,"VALIDACIÓN EECO14",{"$f":"IF(M97<=M84,\"OK EECO14 H\",\"ERROR EECO14 H\")","v":"OK EECO14 H"},{"$f":"IF(N97<=N84,\"OK EECO14 M\",\"ERROR EECO14 M\")","v":"OK EECO14 M"},{"$f":"IF(O97<=O84,\"OK EECO14 NB\",\"ERROR EECO14 NB\")","v":"OK EECO14 NB"},{"$f":"IF(P97<=P84,\"OK EECO14 TOTAL\",\"ERROR EECO14 TOTAL\")","v":"OK EECO14 TOTAL"}]
[1,"ESO4.8","FSE+","Transición","EECO15","Participantes pertenecientes a minorías (incluidas las comunidades marginadas, como la romaní)","personas",null,null,null,null,null,0,0,0,0,"","","","",null,"VALIDACIÓN EECO15",{"$f":"IF(M98<=M84,\"OK EECO15 H\",\"ERROR EECO15 H\")","v":"OK EECO15 H"},{"$f":"IF(N98<=N84,\"OK EECO15 M\",\"ERROR EECO15 M\")","v":"OK EECO15 M"},{"$f":"IF(O98<=O84,\"OK EECO15 NB\",\"ERROR EECO15 NB\")","v":"OK EECO15 NB"},{"$f":"IF(P98<=P84,\"OK EECO15 TOTAL\",\"ERROR EECO15 TOTAL\")","v":"OK EECO15 TOTAL"}]
[1,"ESO4.8","FSE+","Transición","EECO16","Personas sin hogar o afectadas por la exclusión en materia de vivienda","personas",null,null,null,null,null,0,0,0,0,"","","","",null,"VALIDACIÓN EECO16",{"$f":"IF(M99<=M84,\"OK EECO16 H\",\"ERROR EECO16 H\")","v":"OK EECO16 H"},{"$f":"IF(N99<=N84,\"OK EECO16 M\",\"ERROR EECO16 M\")","v":"OK EECO16 M"},{"$f":"IF(O99<=O84,\"OK EECO16 NB\",\"ERROR EECO16 NB\")","v":"OK EECO16 NB"},{"$f":"IF(P99<=P84,\"OK EECO16 TOTAL\",\"ERROR EECO16 TOTAL\")","v":"OK EECO16 TOTAL"}]
[1,"ESO4.8","FSE+","Transición","EECO17","Participantes de zonas rurales ","personas",null,null,null,null,null,0,0,0,0,"","","","",null,"VALIDACIÓN EECO17",{"$f":"IF(M100<=M84,\"OK EECO17 H\",\"ERROR EECO17 H\")","v":"OK EECO17 H"},{"$f":"IF(N100<=N84,\"OK EECO17 M\",\"ERROR EECO17 M\")","v":"OK EECO17 M"},{"$f":"IF(O100<=O84,\"OK EECO17 NB\",\"ERROR EECO17 NB\")","v":"OK EECO17 NB"},{"$f":"IF(P100<=P84,\"OK EECO17 TOTAL\",\"ERROR EECO17 TOTAL\")","v":"OK EECO17 TOTAL"}]
[1,"ESO4.8","FSE+","Transición","EECO18","Número de administraciones públicas o servicios públicos objeto de apoyo","entidades",null,null,null,null,null,null,null,null,0,"","","",""]
[1,"ESO4.8","FSE+","Transición","EECO19","Número de microempresas y pequeñas y medianas empresas objeto de apoyo","empresas",null,null,null,null,null,null,null,null,0,"","","",""]
[1,"ESO4.8","FSE+","Menos desarrolladas","EECO01","Número total de participantes","personas",null,null,null,null,null,0,0,0,0,"","","","",null,"VALIDACION  S.LABORAL",{"$f":"IF(M103=M104+M106+M107,\"OK S.LABORAL H\",\"ERROR S.LABORAL H\")","v":"OK S.LABORAL H"},{"$f":"IF(N103=N104+N106+N107,\"OK S.LABORAL M\",\"ERROR S.LABORAL M\")","v":"OK S.LABORAL M"},{"$f":"IF(O103=O104+O106+O107,\"OK S.LABORAL NB\",\"ERROR S.LABORAL NB\")","v":"OK S.LABORAL NB"},{"$f":"IF(P103=P104+P106+P107,\"OK S.LABORAL TOTAL\",\"ERROR S.LABORAL TOTAL\")","v":"OK S.LABORAL TOTAL"}]
[1,"ESO4.8","FSE+","Menos desarrolladas","EECO02","Desempleados, incluidos los de larga duración","personas",56860,0,0,0,165120,0,0,0,0,"","","",0]
[1,"ESO4.8","FSE+","Menos desarrolladas","EECO03","Desempleados de larga duración","personas",null,null,null,null,null,0,0,0,0,"","","",""]
[1,"ESO4.8","FSE+","Menos desarrolladas","EECO04","Inactivo","personas",null,null,null,null,null,0,0,0,0,"","","",""]
[1,"ESO4.8","FSE+","Menos desarrolladas","EECO05","Empleados, incluso por cuenta propia","personas",null,null,null,null,null,0,0,0,0,"","","",""]
[1,"ESO4.8","FSE+","Menos desarrolladas","EECO06","Menores (menos de 18 años)","personas",null,null,null,null,null,0,0,0,0,"","","","",null,"VALIDACIÓN EDAD",{"$f":"IF(M108+M109+M110<=M103,\"Ok EDAD H\",\"ERROREDADH\")","v":"Ok EDAD H"},{"$f":"IF(N108+N109+N110<=N103,\"Ok EDAD M\",\"ERROREDADM\")","v":"Ok EDAD M"},{"$f":"IF(O108+O109+O110<=O103,\"Ok EDAD NB\",\"ERROREDADNB\")","v":"Ok EDAD NB"},{"$f":"IF(P108+P109+P110<=P103,\"Ok TOTAL\",\"ERROR TOTAL\")","v":"Ok TOTAL"}]
[1,"ESO4.8","FSE+","Menos desarrolladas","EECO07","Número de personas jóvenes de edades comprendidas entre los 18 y los 29 años","personas",null,null,null,null,null,0,0,0,0,"","","",""]
[1,"ESO4.8","FSE+","Menos desarrolladas","EECO08","Participantes de más de 54 años","personas",null,null,null,null,null,0,0,0,0,"","","",""]
[1,"ESO4.8","FSE+","Menos desarrolladas","EECO09","Participantes con el primer ciclo de enseñanza secundaria como máximo","personas",null,null,null,null,null,0,0,0,0,"","","","",null,"VALIDACIÓN N.EDUCATIVO",{"$f":"IF(M111+M112+M113=M103,\"OK M.EDUCATIVO H\",\"ERROR M.EDUCATIVO H\")","v":"OK M.EDUCATIVO H"},{"$f":"IF(N111+N112+N113=N103,\"OK F.EDUCATIVO M\",\"ERROR F.EDUCATIVO M\")","v":"OK F.EDUCATIVO M"},{"$f":"IF(O111+O112+O113=O103,\"OK NB.EDUCATIVO NB\",\"ERROR NB.EDUCATIVO NB\")","v":"OK NB.EDUCATIVO NB"},{"$f":"IF(P111+P112+P113=P103,\"OK TOTAL N.EDUCATIVO\",\"ERROR TOTAL N.EDUCATIVO\")","v":"OK TOTAL N.EDUCATIVO"}]
[1,"ESO4.8","FSE+","Menos desarrolladas","EECO10","Participantes con el segundo ciclo de enseñanza secundaria o con enseñanza postsecundaria","personas",null,null,null,null,null,0,0,0,0,"","","",""]
[1,"ESO4.8","FSE+","Menos desarrolladas","EECO11","Participantes con enseñanza superior o terciaria","personas",null,null,null,null,null,0,0,0,0,"","","",""]
[1,"ESO4.8","FSE+","Menos desarrolladas","EECO12","Participantes con discapacidad","personas",null,null,null,null,null,0,0,0,0,"","","","",null,"VALIDACIÓN EECO12",{"$f":"IF(M114<=M103,\"OK P.DISCAPACIDAD H\",\"ERROR P.DISCAPACIDAD H\")","v":"OK P.DISCAPACIDAD H"},{"$f":"IF(N114<=N103,\"OK P.DISCAPACIDAD M\",\"ERROR P.DISCAPACIDAD M\")","v":"OK P.DISCAPACIDAD M"},{"$f":"IF(O114<=O103,\"OK P.DISCAPACIDAD NB\",\"ERROR P.DISCAPACIDAD NB\")","v":"OK P.DISCAPACIDAD NB"},{"$f":"IF(P114<=P103,\"OK  P.DISCAPACIDAD TOTAL\",\"ERROR P.DISCAPACIDAD TOTAL\")","v":"OK  P.DISCAPACIDAD TOTAL"}]
[1,"ESO4.8","FSE+","Menos desarrolladas","EECO13","Nacionales de terceros países","personas",null,null,null,null,null,0,0,0,0,"","","","",null,"VALIDACIÓN EECO13",{"$f":"IF(M115<=M103,\"OK P.EECO13 H\",\"ERROR EECO13 H\")","v":"OK P.EECO13 H"},{"$f":"IF(N115<=N103,\"OK P.EECO13 M\",\"ERROR EECO13 M\")","v":"OK P.EECO13 M"},{"$f":"IF(O115<=O103,\"OK P.EECO13 NB\",\"ERROR EECO13 NB\")","v":"OK P.EECO13 NB"},{"$f":"IF(P115<=P103,\"OK P.EECO13 TOTAL\",\"ERROR EECO13 TOTAL\")","v":"OK P.EECO13 TOTAL"}]
[1,"ESO4.8","FSE+","Menos desarrolladas","EECO14","Participantes de origen extranjero","personas",null,null,null,null,null,0,0,0,0,"","","","",null,"VALIDACIÓN EECO14",{"$f":"IF(M116<=M103,\"OK EECO14 H\",\"ERROR EECO14 H\")","v":"OK EECO14 H"},{"$f":"IF(N116<=N103,\"OK EECO14 M\",\"ERROR EECO14 M\")","v":"OK EECO14 M"},{"$f":"IF(O116<=O103,\"OK EECO14 NB\",\"ERROR EECO14 NB\")","v":"OK EECO14 NB"},{"$f":"IF(P116<=P103,\"OK EECO14 TOTAL\",\"ERROR EECO14 TOTAL\")","v":"OK EECO14 TOTAL"}]
[1,"ESO4.8","FSE+","Menos desarrolladas","EECO15","Participantes pertenecientes a minorías (incluidas las comunidades marginadas, como la romaní)","personas",null,null,null,null,null,0,0,0,0,"","","","",null,"VALIDACIÓN EECO15",{"$f":"IF(M117<=M103,\"OK EECO15 H\",\"ERROR EECO15 H\")","v":"OK EECO15 H"},{"$f":"IF(N117<=N103,\"OK EECO15 M\",\"ERROR EECO15 M\")","v":"OK EECO15 M"},{"$f":"IF(O117<=O103,\"OK EECO15 NB\",\"ERROR EECO15 NB\")","v":"OK EECO15 NB"},{"$f":"IF(P117<=P103,\"OK EECO15 TOTAL\",\"ERROR EECO15 TOTAL\")","v":"OK EECO15 TOTAL"}]
[1,"ESO4.8","FSE+","Menos desarrolladas","EECO16","Personas sin hogar o afectadas por la exclusión en materia de vivienda","personas",null,null,null,null,null,0,0,0,0,"","","","",null,"VALIDACIÓN EECO16",{"$f":"IF(M118<=M103,\"OK EECO16 H\",\"ERROR EECO16 H\")","v":"OK EECO16 H"},{"$f":"IF(N118<=N103,\"OK EECO16 M\",\"ERROR EECO16 M\")","v":"OK EECO16 M"},{"$f":"IF(O118<=O103,\"OK EECO16 NB\",\"ERROR EECO16 NB\")","v":"OK EECO16 NB"},{"$f":"IF(P118<=P103,\"OK EECO16 TOTAL\",\"ERROR EECO16 TOTAL\")","v":"OK EECO16 TOTAL"}]
[1,"ESO4.8","FSE+","Menos desarrolladas","EECO17","Participantes de zonas rurales ","personas",null,null,null,null,null,0,0,0,0,"","","","",null,"VALIDACIÓN EECO17",{"$f":"IF(M119<=M103,\"OK EECO17 H\",\"ERROR EECO17 H\")","v":"OK EECO17 H"},{"$f":"IF(N119<=N103,\"OK EECO17 M\",\"ERROR EECO17 M\")","v":"OK EECO17 M"},{"$f":"IF(O119<=O103,\"OK EECO17 NB\",\"ERROR EECO17 NB\")","v":"OK EECO17 NB"},{"$f":"IF(P119<=P103,\"OK EECO17 TOTAL\",\"ERROR EECO17 TOTAL\")","v":"OK EECO17 TOTAL"}]
[1,"ESO4.8","FSE+","Menos desarrolladas","EECO18","Número de administraciones públicas o servicios públicos objeto de apoyo","entidades",null,null,null,null,null,null,null,null,0,"","","",""]
[1,"ESO4.8","FSE+","Menos desarrolladas","EECO19","Número de microempresas y pequeñas y medianas empresas objeto de apoyo","empresas",null,null,null,null,null,null,null,null,0,"","","",""]
[5,"ESO4.1","FSE+","Más desarrolladas","EECO01","Número total de participantes","personas",null,null,null,null,null,0,0,0,0,"","","","",null,"VALIDACION  S.LABORAL",{"$f":"IF(M122=M123+M125+M126,\"OK S.LABORAL H\",\"ERROR S.LABORAL H\")","v":"OK S.LABORAL H"},{"$f":"IF(N122=N123+N125+N126,\"OK S.LABORAL M\",\"ERROR S.LABORAL M\")","v":"OK S.LABORAL M"},{"$f":"IF(O122=O123+O125+O126,\"OK S.LABORAL NB\",\"ERROR S.LABORAL NB\")","v":"OK S.LABORAL NB"},{"$f":"IF(P122=P123+P125+P126,\"OK S.LABORAL TOTAL\",\"ERROR S.LABORAL TOTAL\")","v":"OK S.LABORAL TOTAL"}]
[5,"ESO4.1","FSE+","Más desarrolladas","EECO02","Desempleados, incluidos los de larga duración","personas",21406,0,0,0,48442,0,0,0,0,"","","",0]
[5,"ESO4.1","FSE+","Más desarrolladas","EECO03","Desempleados de larga duración","personas",null,null,null,null,null,0,0,0,0,"","","",""]
[5,"ESO4.1","FSE+","Más desarrolladas","EECO04","Inactivo","personas",null,null,null,null,null,0,0,0,0,"","","",""]
[5,"ESO4.1","FSE+","Más desarrolladas","EECO05","Empleados, incluso por cuenta propia","personas",null,null,null,null,null,0,0,0,0,"","","",""]
[5,"ESO4.1","FSE+","Más desarrolladas","EECO06","Menores (menos de 18 años)","personas",null,null,null,null,null,0,0,0,0,"","","","",null,"VALIDACIÓN EDAD",{"$f":"IF(M127+M128+M129<=M122,\"Ok EDAD H\",\"ERROREDADH\")","v":"Ok EDAD H"},{"$f":"IF(N127+N128+N129<=N122,\"Ok EDAD M\",\"ERROREDADM\")","v":"Ok EDAD M"},{"$f":"IF(O127+O128+O129<=O122,\"Ok EDAD NB\",\"ERROREDADNB\")","v":"Ok EDAD NB"},{"$f":"IF(P127+P128+P129<=P122,\"Ok TOTAL\",\"ERROR TOTAL\")","v":"Ok TOTAL"}]
[5,"ESO4.1","FSE+","Más desarrolladas","EECO07","Número de personas jóvenes de edades comprendidas entre los 18 y los 29 años","personas",null,null,null,null,null,0,0,0,0,"","","",""]
[5,"ESO4.1","FSE+","Más desarrolladas","EECO08","Participantes de más de 54 años","personas",null,null,null,null,null,0,0,0,0,"","","",""]
[5,"ESO4.1","FSE+","Más desarrolladas","EECO09","Participantes con el primer ciclo de enseñanza secundaria como máximo","personas",null,null,null,null,null,0,0,0,0,"","","","",null,"VALIDACIÓN N.EDUCATIVO",{"$f":"IF(M130+M131+M132=M122,\"OK M.EDUCATIVO H\",\"ERROR M.EDUCATIVO H\")","v":"OK M.EDUCATIVO H"},{"$f":"IF(N130+N131+N132=N122,\"OK F.EDUCATIVO M\",\"ERROR F.EDUCATIVO M\")","v":"OK F.EDUCATIVO M"},{"$f":"IF(O130+O131+O132=O122,\"OK NB.EDUCATIVO NB\",\"ERROR NB.EDUCATIVO NB\")","v":"OK NB.EDUCATIVO NB"},{"$f":"IF(P130+P131+P132=P122,\"OK TOTAL N.EDUCATIVO\",\"ERROR TOTAL N.EDUCATIVO\")","v":"OK TOTAL N.EDUCATIVO"}]
[5,"ESO4.1","FSE+","Más desarrolladas","EECO10","Participantes con el segundo ciclo de enseñanza secundaria o con enseñanza postsecundaria","personas",null,null,null,null,null,0,0,0,0,"","","",""]
[5,"ESO4.1","FSE+","Más desarrolladas","EECO11","Participantes con enseñanza superior o terciaria","personas",null,null,null,null,null,0,0,0,0,"","","",""]
[5,"ESO4.1","FSE+","Más desarrolladas","EECO12","Participantes con discapacidad","personas",null,null,null,null,null,0,0,0,0,"","","","",null,"VALIDACIÓN EECO12",{"$f":"IF(M133<=M122,\"OK P.DISCAPACIDAD H\",\"ERROR P.DISCAPACIDAD H\")","v":"OK P.DISCAPACIDAD H"},{"$f":"IF(N133<=N122,\"OK P.DISCAPACIDAD M\",\"ERROR P.DISCAPACIDAD M\")","v":"OK P.DISCAPACIDAD M"},{"$f":"IF(O133<=O122,\"OK P.DISCAPACIDAD NB\",\"ERROR P.DISCAPACIDAD NB\")","v":"OK P.DISCAPACIDAD NB"},{"$f":"IF(P133<=P122,\"OK  P.DISCAPACIDAD TOTAL\",\"ERROR P.DISCAPACIDAD TOTAL\")","v":"OK  P.DISCAPACIDAD TOTAL"}]
[5,"ESO4.1","FSE+","Más desarrolladas","EECO13","Nacionales de terceros países","personas",null,null,null,null,null,0,0,0,0,"","","","",null,"VALIDACIÓN EECO13",{"$f":"IF(M134<=M122,\"OK P.EECO13 H\",\"ERROR EECO13 H\")","v":"OK P.EECO13 H"},{"$f":"IF(N134<=N122,\"OK P.EECO13 M\",\"ERROR EECO13 M\")","v":"OK P.EECO13 M"},{"$f":"IF(O134<=O122,\"OK P.EECO13 NB\",\"ERROR EECO13 NB\")","v":"OK P.EECO13 NB"},{"$f":"IF(P134<=P122,\"OK P.EECO13 TOTAL\",\"ERROR EECO13 TOTAL\")","v":"OK P.EECO13 TOTAL"}]
[5,"ESO4.1","FSE+","Más desarrolladas","EECO14","Participantes de origen extranjero","personas",null,null,null,null,null,0,0,0,0,"","","","",null,"VALIDACIÓN EECO14",{"$f":"IF(M135<=M122,\"OK EECO14 H\",\"ERROR EECO14 H\")","v":"OK EECO14 H"},{"$f":"IF(N135<=N122,\"OK EECO14 M\",\"ERROR EECO14 M\")","v":"OK EECO14 M"},{"$f":"IF(O135<=O122,\"OK EECO14 NB\",\"ERROR EECO14 NB\")","v":"OK EECO14 NB"},{"$f":"IF(P135<=P122,\"OK EECO14 TOTAL\",\"ERROR EECO14 TOTAL\")","v":"OK EECO14 TOTAL"}]
[5,"ESO4.1","FSE+","Más desarrolladas","EECO15","Participantes pertenecientes a minorías (incluidas las comunidades marginadas, como la romaní)","personas",null,null,null,null,null,0,0,0,0,"","","","",null,"VALIDACIÓN EECO15",{"$f":"IF(M136<=M122,\"OK EECO15 H\",\"ERROR EECO15 H\")","v":"OK EECO15 H"},{"$f":"IF(N136<=N122,\"OK EECO15 M\",\"ERROR EECO15 M\")","v":"OK EECO15 M"},{"$f":"IF(O136<=O122,\"OK EECO15 NB\",\"ERROR EECO15 NB\")","v":"OK EECO15 NB"},{"$f":"IF(P136<=P122,\"OK EECO15 TOTAL\",\"ERROR EECO15 TOTAL\")","v":"OK EECO15 TOTAL"}]
[5,"ESO4.1","FSE+","Más desarrolladas","EECO16","Personas sin hogar o afectadas por la exclusión en materia de vivienda","personas",null,null,null,null,null,0,0,0,0,{"$f":"IFERROR(M137/I137,\"\")","v":""},{"$f":"IFERROR(N137/J137,\"\")","v":""},{"$f":"IFERROR(O137/K137,\"\")","v":""},{"$f":"IFERROR(P137/L137,\"\")","v":""},null,"VALIDACIÓN EECO16",{"$f":"IF(M137<=M122,\"OK EECO16 H\",\"ERROR EECO16 H\")","v":"OK EECO16 H"},{"$f":"IF(N137<=N122,\"OK EECO16 M\",\"ERROR EECO16 M\")","v":"OK EECO16 M"},{"$f":"IF(O137<=O122,\"OK EECO16 NB\",\"ERROR EECO16 NB\")","v":"OK EECO16 NB"},{"$f":"IF(P137<=P122,\"OK EECO16 TOTAL\",\"ERROR EECO16 TOTAL\")","v":"OK EECO16 TOTAL"}]
[5,"ESO4.1","FSE+","Más desarrolladas","EECO17","Participantes de zonas rurales ","personas",null,null,null,null,null,0,0,0,0,"","","","",null,"VALIDACIÓN EECO17",{"$f":"IF(M138<=M122,\"OK EECO17 H\",\"ERROR EECO17 H\")","v":"OK EECO17 H"},{"$f":"IF(N138<=N122,\"OK EECO17 M\",\"ERROR EECO17 M\")","v":"OK EECO17 M"},{"$f":"IF(O138<=O122,\"OK EECO17 NB\",\"ERROR EECO17 NB\")","v":"OK EECO17 NB"},{"$f":"IF(P138<=P122,\"OK EECO17 TOTAL\",\"ERROR EECO17 TOTAL\")","v":"OK EECO17 TOTAL"}]
[5,"ESO4.1","FSE+","Más desarrolladas","EECO18","Número de administraciones públicas o servicios públicos objeto de apoyo","entidades",null,null,null,null,null,null,null,null,0,"","","",""]
[5,"ESO4.1","FSE+","Más desarrolladas","EECO19","Número de microempresas y pequeñas y medianas empresas objeto de apoyo","empresas",null,null,null,null,null,null,null,null,0,"","","",""]
[5,"ESO4.1","FSE+","Transición","EECO01","Número total de participantes","personas",null,null,null,null,null,0,0,0,0,"","","","",null,"VALIDACION  S.LABORAL",{"$f":"IF(M141=M142+M144+M145,\"OK S.LABORAL H\",\"ERROR S.LABORAL H\")","v":"OK S.LABORAL H"},{"$f":"IF(N141=N142+N144+N145,\"OK S.LABORAL M\",\"ERROR S.LABORAL M\")","v":"OK S.LABORAL M"},{"$f":"IF(O141=O142+O144+O145,\"OK S.LABORAL NB\",\"ERROR S.LABORAL NB\")","v":"OK S.LABORAL NB"},{"$f":"IF(P141=P142+P144+P145,\"OK S.LABORAL TOTAL\",\"ERROR S.LABORAL TOTAL\")","v":"OK S.LABORAL TOTAL"}]
[5,"ESO4.1","FSE+","Transición","EECO02","Desempleados, incluidos los de larga duración","personas",108285,0,0,0,245046,0,0,0,0,"","","",0]
[5,"ESO4.1","FSE+","Transición","EECO03","Desempleados de larga duración","personas",null,null,null,null,null,0,0,0,0,"","","",""]
[5,"ESO4.1","FSE+","Transición","EECO04","Inactivo","personas",null,null,null,null,null,0,0,0,0,"","","",""]
[5,"ESO4.1","FSE+","Transición","EECO05","Empleados, incluso por cuenta propia","personas",null,null,null,null,null,0,0,0,0,"","","",""]
[5,"ESO4.1","FSE+","Transición","EECO06","Menores (menos de 18 años)","personas",null,null,null,null,null,0,0,0,0,"","","","",null,"VALIDACIÓN EDAD",{"$f":"IF(M146+M147+M148<=M141,\"Ok EDAD H\",\"ERROREDADH\")","v":"Ok EDAD H"},{"$f":"IF(N146+N147+N148<=N141,\"Ok EDAD M\",\"ERROREDADM\")","v":"Ok EDAD M"},{"$f":"IF(O146+O147+O148<=O141,\"Ok EDAD NB\",\"ERROREDADNB\")","v":"Ok EDAD NB"},{"$f":"IF(P146+P147+P148<=P141,\"Ok TOTAL\",\"ERROR TOTAL\")","v":"Ok TOTAL"}]
[5,"ESO4.1","FSE+","Transición","EECO07","Número de personas jóvenes de edades comprendidas entre los 18 y los 29 años","personas",null,null,null,null,null,0,0,0,0,"","","",""]
[5,"ESO4.1","FSE+","Transición","EECO08","Participantes de más de 54 años","personas",null,null,null,null,null,0,0,0,0,"","","",""]
[5,"ESO4.1","FSE+","Transición","EECO09","Participantes con el primer ciclo de enseñanza secundaria como máximo","personas",null,null,null,null,null,0,0,0,0,"","","","",null,"VALIDACIÓN N.EDUCATIVO",{"$f":"IF(M149+M150+M151=M141,\"OK M.EDUCATIVO H\",\"ERROR M.EDUCATIVO H\")","v":"OK M.EDUCATIVO H"},{"$f":"IF(N149+N150+N151=N141,\"OK F.EDUCATIVO M\",\"ERROR F.EDUCATIVO M\")","v":"OK F.EDUCATIVO M"},{"$f":"IF(O149+O150+O151=O141,\"OK NB.EDUCATIVO NB\",\"ERROR NB.EDUCATIVO NB\")","v":"OK NB.EDUCATIVO NB"},{"$f":"IF(P149+P150+P151=P141,\"OK TOTAL N.EDUCATIVO\",\"ERROR TOTAL N.EDUCATIVO\")","v":"OK TOTAL N.EDUCATIVO"}]
[5,"ESO4.1","FSE+","Transición","EECO10","Participantes con el segundo ciclo de enseñanza secundaria o con enseñanza postsecundaria","personas",null,null,null,null,null,0,0,0,0,"","","",""]
[5,"ESO4.1","FSE+","Transición","EECO11","Participantes con enseñanza superior o terciaria","personas",null,null,null,null,null,0,0,0,0,"","","",""]
[5,"ESO4.1","FSE+","Transición","EECO12","Participantes con discapacidad","personas",null,null,null,null,null,0,0,0,0,"","","","",null,"VALIDACIÓN EECO12",{"$f":"IF(M152<=M141,\"OK P.DISCAPACIDAD H\",\"ERROR P.DISCAPACIDAD H\")","v":"OK P.DISCAPACIDAD H"},{"$f":"IF(N152<=N141,\"OK P.DISCAPACIDAD M\",\"ERROR P.DISCAPACIDAD M\")","v":"OK P.DISCAPACIDAD M"},{"$f":"IF(O152<=O141,\"OK P.DISCAPACIDAD NB\",\"ERROR P.DISCAPACIDAD NB\")","v":"OK P.DISCAPACIDAD NB"},{"$f":"IF(P152<=P141,\"OK  P.DISCAPACIDAD TOTAL\",\"ERROR P.DISCAPACIDAD TOTAL\")","v":"OK  P.DISCAPACIDAD TOTAL"}]
[5,"ESO4.1","FSE+","Transición","EECO13","Nacionales de terceros países","personas",null,null,null,null,null,0,0,0,0,"","","","",null,"VALIDACIÓN EECO13",{"$f":"IF(M153<=M141,\"OK P.EECO13 H\",\"ERROR EECO13 H\")","v":"OK P.EECO13 H"},{"$f":"IF(N153<=N141,\"OK P.EECO13 M\",\"ERROR EECO13 M\")","v":"OK P.EECO13 M"},{"$f":"IF(O153<=O141,\"OK P.EECO13 NB\",\"ERROR EECO13 NB\")","v":"OK P.EECO13 NB"},{"$f":"IF(P153<=P141,\"OK P.EECO13 TOTAL\",\"ERROR EECO13 TOTAL\")","v":"OK P.EECO13 TOTAL"}]
[5,"ESO4.1","FSE+","Transición","EECO14","Participantes de origen extranjero","personas",null,null,null,null,null,0,0,0,0,"","","","",null,"VALIDACIÓN EECO14",{"$f":"IF(M154<=M141,\"OK EECO14 H\",\"ERROR EECO14 H\")","v":"OK EECO14 H"},{"$f":"IF(N154<=N141,\"OK EECO14 M\",\"ERROR EECO14 M\")","v":"OK EECO14 M"},{"$f":"IF(O154<=O141,\"OK EECO14 NB\",\"ERROR EECO14 NB\")","v":"OK EECO14 NB"},{"$f":"IF(P154<=P141,\"OK EECO14 TOTAL\",\"ERROR EECO14 TOTAL\")","v":"OK EECO14 TOTAL"}]
[5,"ESO4.1","FSE+","Transición","EECO15","Participantes pertenecientes a minorías (incluidas las comunidades marginadas, como la romaní)","personas",null,null,null,null,null,0,0,0,0,"","","","",null,"VALIDACIÓN EECO15",{"$f":"IF(M155<=M141,\"OK EECO15 H\",\"ERROR EECO15 H\")","v":"OK EECO15 H"},{"$f":"IF(N155<=N141,\"OK EECO15 M\",\"ERROR EECO15 M\")","v":"OK EECO15 M"},{"$f":"IF(O155<=O141,\"OK EECO15 NB\",\"ERROR EECO15 NB\")","v":"OK EECO15 NB"},{"$f":"IF(P155<=P141,\"OK EECO15 TOTAL\",\"ERROR EECO15 TOTAL\")","v":"OK EECO15 TOTAL"}]
[5,"ESO4.1","FSE+","Transición","EECO16","Personas sin hogar o afectadas por la exclusión en materia de vivienda","personas",null,null,null,null,null,0,0,0,0,"","","","",null,"VALIDACIÓN EECO16",{"$f":"IF(M156<=M141,\"OK EECO16 H\",\"ERROR EECO16 H\")","v":"OK EECO16 H"},{"$f":"IF(N156<=N141,\"OK EECO16 M\",\"ERROR EECO16 M\")","v":"OK EECO16 M"},{"$f":"IF(O156<=O141,\"OK EECO16 NB\",\"ERROR EECO16 NB\")","v":"OK EECO16 NB"},{"$f":"IF(P156<=P141,\"OK EECO16 TOTAL\",\"ERROR EECO16 TOTAL\")","v":"OK EECO16 TOTAL"}]
[5,"ESO4.1","FSE+","Transición","EECO17","Participantes de zonas rurales ","personas",null,null,null,null,null,0,0,0,0,"","","","",null,"VALIDACIÓN EECO17",{"$f":"IF(M157<=M141,\"OK EECO17 H\",\"ERROR EECO17 H\")","v":"OK EECO17 H"},{"$f":"IF(N157<=N141,\"OK EECO17 M\",\"ERROR EECO17 M\")","v":"OK EECO17 M"},{"$f":"IF(O157<=O141,\"OK EECO17 NB\",\"ERROR EECO17 NB\")","v":"OK EECO17 NB"},{"$f":"IF(P157<=P141,\"OK EECO17 TOTAL\",\"ERROR EECO17 TOTAL\")","v":"OK EECO17 TOTAL"}]
[5,"ESO4.1","FSE+","Transición","EECO18","Número de administraciones públicas o servicios públicos objeto de apoyo","entidades",null,null,null,null,null,null,null,null,0,"","","",""]
[5,"ESO4.1","FSE+","Transición","EECO19","Número de microempresas y pequeñas y medianas empresas objeto de apoyo","empresas",null,null,null,null,null,null,null,null,0,"","","",""]
[5,"ESO4.1","FSE+","Menos desarrolladas","EECO01","Número total de participantes","personas",null,null,null,null,null,0,0,0,0,"","","","",null,"VALIDACION  S.LABORAL",{"$f":"IF(M160=M161+M163+M164,\"OK S.LABORAL H\",\"ERROR S.LABORAL H\")","v":"OK S.LABORAL H"},{"$f":"IF(N160=N161+N163+N164,\"OK S.LABORAL M\",\"ERROR S.LABORAL M\")","v":"OK S.LABORAL M"},{"$f":"IF(O160=O161+O163+O164,\"OK S.LABORAL NB\",\"ERROR S.LABORAL NB\")","v":"OK S.LABORAL NB"},{"$f":"IF(P160=P161+P163+P164,\"OK S.LABORAL TOTAL\",\"ERROR S.LABORAL TOTAL\")","v":"OK S.LABORAL TOTAL"}]
[5,"ESO4.1","FSE+","Menos desarrolladas","EECO02","Desempleados, incluidos los de larga duración","personas",184062,0,0,0,416528,0,0,0,0,"","","",0]
[5,"ESO4.1","FSE+","Menos desarrolladas","EECO03","Desempleados de larga duración","personas",null,null,null,null,null,0,0,0,0,"","","",""]
[5,"ESO4.1","FSE+","Menos desarrolladas","EECO04","Inactivo","personas",null,null,null,null,null,0,0,0,0,"","","",""]
[5,"ESO4.1","FSE+","Menos desarrolladas","EECO05","Empleados, incluso por cuenta propia","personas",null,null,null,null,null,0,0,0,0,"","","",""]
[5,"ESO4.1","FSE+","Menos desarrolladas","EECO06","Menores (menos de 18 años)","personas",null,null,null,null,null,0,0,0,0,"","","","",null,"VALIDACIÓN EDAD",{"$f":"IF(M165+M166+M167<=M160,\"Ok EDAD H\",\"ERROREDADH\")","v":"Ok EDAD H"},{"$f":"IF(N165+N166+N167<=N160,\"Ok EDAD M\",\"ERROREDADM\")","v":"Ok EDAD M"},{"$f":"IF(O165+O166+O167<=O160,\"Ok EDAD NB\",\"ERROREDADNB\")","v":"Ok EDAD NB"},{"$f":"IF(P165+P166+P167<=P160,\"Ok TOTAL\",\"ERROR TOTAL\")","v":"Ok TOTAL"}]
[5,"ESO4.1","FSE+","Menos desarrolladas","EECO07","Número de personas jóvenes de edades comprendidas entre los 18 y los 29 años","personas",null,null,null,null,null,0,0,0,0,"","","",""]
[5,"ESO4.1","FSE+","Menos desarrolladas","EECO08","Participantes de más de 54 años","personas",null,null,null,null,null,0,0,0,0,"","","",""]
[5,"ESO4.1","FSE+","Menos desarrolladas","EECO09","Participantes con el primer ciclo de enseñanza secundaria como máximo","personas",null,null,null,null,null,0,0,0,0,"","","","",null,"VALIDACIÓN N.EDUCATIVO",{"$f":"IF(M168+M169+M170=M160,\"OK M.EDUCATIVO H\",\"ERROR M.EDUCATIVO H\")","v":"OK M.EDUCATIVO H"},{"$f":"IF(N168+N169+N170=N160,\"OK F.EDUCATIVO M\",\"ERROR F.EDUCATIVO M\")","v":"OK F.EDUCATIVO M"},{"$f":"IF(O168+O169+O170=O160,\"OK NB.EDUCATIVO NB\",\"ERROR NB.EDUCATIVO NB\")","v":"OK NB.EDUCATIVO NB"},{"$f":"IF(P168+P169+P170=P160,\"OK TOTAL N.EDUCATIVO\",\"ERROR TOTAL N.EDUCATIVO\")","v":"OK TOTAL N.EDUCATIVO"}]
[5,"ESO4.1","FSE+","Menos desarrolladas","EECO10","Participantes con el segundo ciclo de enseñanza secundaria o con enseñanza postsecundaria","personas",null,null,null,null,null,0,0,0,0,"","","",""]
[5,"ESO4.1","FSE+","Menos desarrolladas","EECO11","Participantes con enseñanza superior o terciaria","personas",null,null,null,null,null,0,0,0,0,"","","",""]
[5,"ESO4.1","FSE+","Menos desarrolladas","EECO12","Participantes con discapacidad","personas",null,null,null,null,null,0,0,0,0,"","","","",null,"VALIDACIÓN EECO12",{"$f":"IF(M171<=M160,\"OK P.DISCAPACIDAD H\",\"ERROR P.DISCAPACIDAD H\")","v":"OK P.DISCAPACIDAD H"},{"$f":"IF(N171<=N160,\"OK P.DISCAPACIDAD M\",\"ERROR P.DISCAPACIDAD M\")","v":"OK P.DISCAPACIDAD M"},{"$f":"IF(O171<=O160,\"OK P.DISCAPACIDAD NB\",\"ERROR P.DISCAPACIDAD NB\")","v":"OK P.DISCAPACIDAD NB"},{"$f":"IF(P171<=P160,\"OK  P.DISCAPACIDAD TOTAL\",\"ERROR P.DISCAPACIDAD TOTAL\")","v":"OK  P.DISCAPACIDAD TOTAL"}]
[5,"ESO4.1","FSE+","Menos desarrolladas","EECO13","Nacionales de terceros países","personas",null,null,null,null,null,0,0,0,0,"","","","",null,"VALIDACIÓN EECO13",{"$f":"IF(M172<=M160,\"OK P.EECO13 H\",\"ERROR EECO13 H\")","v":"OK P.EECO13 H"},{"$f":"IF(N172<=N160,\"OK P.EECO13 M\",\"ERROR EECO13 M\")","v":"OK P.EECO13 M"},{"$f":"IF(O172<=O160,\"OK P.EECO13 NB\",\"ERROR EECO13 NB\")","v":"OK P.EECO13 NB"},{"$f":"IF(P172<=P160,\"OK P.EECO13 TOTAL\",\"ERROR EECO13 TOTAL\")","v":"OK P.EECO13 TOTAL"}]
[5,"ESO4.1","FSE+","Menos desarrolladas","EECO14","Participantes de origen extranjero","personas",null,null,null,null,null,0,0,0,0,"","","","",null,"VALIDACIÓN EECO14",{"$f":"IF(M173<=M160,\"OK EECO14 H\",\"ERROR EECO14 H\")","v":"OK EECO14 H"},{"$f":"IF(N173<=N160,\"OK EECO14 M\",\"ERROR EECO14 M\")","v":"OK EECO14 M"},{"$f":"IF(O173<=O160,\"OK EECO14 NB\",\"ERROR EECO14 NB\")","v":"OK EECO14 NB"},{"$f":"IF(P173<=P160,\"OK EECO14 TOTAL\",\"ERROR EECO14 TOTAL\")","v":"OK EECO14 TOTAL"}]
[5,"ESO4.1","FSE+","Menos desarrolladas","EECO15","Participantes pertenecientes a minorías (incluidas las comunidades marginadas, como la romaní)","personas",null,null,null,null,null,0,0,0,0,"","","","",null,"VALIDACIÓN EECO15",{"$f":"IF(M174<=M160,\"OK EECO15 H\",\"ERROR EECO15 H\")","v":"OK EECO15 H"},{"$f":"IF(N174<=N160,\"OK EECO15 M\",\"ERROR EECO15 M\")","v":"OK EECO15 M"},{"$f":"IF(O174<=O160,\"OK EECO15 NB\",\"ERROR EECO15 NB\")","v":"OK EECO15 NB"},{"$f":"IF(P174<=P160,\"OK EECO15 TOTAL\",\"ERROR EECO15 TOTAL\")","v":"OK EECO15 TOTAL"}]
[5,"ESO4.1","FSE+","Menos desarrolladas","EECO16","Personas sin hogar o afectadas por la exclusión en materia de vivienda","personas",null,null,null,null,null,0,0,0,0,"","","","",null,"VALIDACIÓN EECO16",{"$f":"IF(M175<=M160,\"OK EECO16 H\",\"ERROR EECO16 H\")","v":"OK EECO16 H"},{"$f":"IF(N175<=N160,\"OK EECO16 M\",\"ERROR EECO16 M\")","v":"OK EECO16 M"},{"$f":"IF(O175<=O160,\"OK EECO16 NB\",\"ERROR EECO16 NB\")","v":"OK EECO16 NB"},{"$f":"IF(P175<=P160,\"OK EECO16 TOTAL\",\"ERROR EECO16 TOTAL\")","v":"OK EECO16 TOTAL"}]
[5,"ESO4.1","FSE+","Menos desarrolladas","EECO17","Participantes de zonas rurales ","personas",null,null,null,null,null,0,0,0,0,"","","","",null,"VALIDACIÓN EECO17",{"$f":"IF(M176<=M160,\"OK EECO17 H\",\"ERROR EECO17 H\")","v":"OK EECO17 H"},{"$f":"IF(N176<=N160,\"OK EECO17 M\",\"ERROR EECO17 M\")","v":"OK EECO17 M"},{"$f":"IF(O176<=O160,\"OK EECO17 NB\",\"ERROR EECO17 NB\")","v":"OK EECO17 NB"},{"$f":"IF(P176<=P160,\"OK EECO17 TOTAL\",\"ERROR EECO17 TOTAL\")","v":"OK EECO17 TOTAL"}]
[5,"ESO4.1","FSE+","Menos desarrolladas","EECO18","Número de administraciones públicas o servicios públicos objeto de apoyo","entidades",null,null,null,null,null,null,null,null,0,"","","",""]
[5,"ESO4.1","FSE+","Menos desarrolladas","EECO19","Número de microempresas y pequeñas y medianas empresas objeto de apoyo","empresas",null,null,null,null,null,null,null,null,0,"","","",""]
[null,null,null,null,null,null,null,null,null,null,null,null,null,null,null,null,"","","",""]
[null,null,null,null,null,null,null,null,null,null,null,null,null,null,null,null,"","","",""]
[null,null,null,null,null,null,null,null,null,null,null,null,null,null,null,null,"","","",""]
[null,null,null,null,null,null,null,null,null,null,null,null,null,null,null,null,"","","",""]
[null,null,null,null,null,null,null,null,null,null,null,null,null,null,null,null,"","","",""]
[null,null,null,null,null,null,null,null,null,null,null,null,null,null,null,null,"","","",""]
[null,null,null,null,null,null,null,null,null,null,null,null,null,null,null,null,"","","",""]
[null,null,null,null,null,null,null,null,null,null,null,null,null,null,null,null,"","","",""]
[null,null,null,null,null,null,null,null,null,null,null,null,null,null,null,null,"","","",""]
[null,null,null,null,null,null,null,null,null,null,null,null,null,null,null,null,"","","",""]
[null,null,null,null,null,null,null,null,null,null,null,null,null,null,null,null,"","","",""]
[null,null,null,null,null,null,null,null,null,null,null,null,null,null,null,null,"","","",""]
[null,null,null,null,null,null,null,null,null,null,null,null,null,null,null,null,"","","",""]
[null,null,null,null,null,null,null,null,null,null,null,null,null,null,null,null,"","","",""]
[null,null,null,null,null,null,null,null,null,null,null,null,null,null,null,null,"","","",""]
[null,null,null,null,null,null,null,null,null,null,null,null,null,null,null,null,"","","",""]
[null,null,null,null,null,null,null,null,null,null,null,null,null,null,null,null,"","","",""]
[null,null,null,null,null,null,null,null,null,null,null,null,null,null,null,null,"","","",""]
[null,null,null,null,null,null,null,null,null,null,null,null,null,null,null,null,"","","",""]
[null,null,null,null,null,null,null,null,null,null,null,null,null,null,null,null,"","","",""]
[null,null,null,null,null,null,null,null,null,null,null,null,null,null,null,null,"","","",""]
[null,null,null,null,null,null,null,null,null,null,null,null,null,null,null,null,"","","",""]
[null,null,null,null,null,null,null,null,null,null,null,null,null,null,null,null,{"$f":"IFERROR(M201/I201,\"\")","v":""},{"$f":"IFERROR(N201/J201,\"\")","v":""},{"$f":"IFERROR(O201/K201,\"\")","v":""},{"$f":"IFERROR(P201/L201,\"\")","v":""}]
[null,null,null,null,null,null,null,null,null,null,null,null,null,null,null,null,"","","",""]
[null,null,null,null,null,null,null,null,null,null,null,null,null,null,null,null,"","","",""]
[null,null,null,null,null,null,null,null,null,null,null,null,null,null,null,null,"","","",""]
[null,null,null,null,null,null,null,null,null,null,null,null,null,null,null,null,"","","",""]
[null,null,null,null,null,null,null,null,null,null,null,null,null,null,null,null,"","","",""]
[null,null,null,null,null,null,null,null,null,null,null,null,null,null,null,null,"","","",""]
[null,null,null,null,null,null,null,null,null,null,null,null,null,null,null,null,"","","",""]
[null,null,null,null,null,null,null,null,null,null,null,null,null,null,null,null,"","","",""]
[null,null,null,null,null,null,null,null,null,null,null,null,null,null,null,null,"","","",""]
[null,null,null,null,null,null,null,null,null,null,null,null,null,null,null,null,"","","",""]
[null,null,null,null,null,null,null,null,null,null,null,null,null,null,null,null,"","","",""]
[null,null,null,null,null,null,null,null,null,null,null,null,null,null,null,null,"","","",""]
[null,null,null,null,null,null,null,null,null,null,null,null,null,null,null,null,"","","",""]
[null,null,null,null,null,null,null,null,null,null,null,null,null,null,null,null,"","","",""]
[null,null,null,null,null,null,null,null,null,null,null,null,null,null,null,null,"","","",""]
[null,null,null,null,null,null,null,null,null,null,null,null,null,null,null,null,"","","",""]
[null,null,null,null,null,null,null,null,null,null,null,null,null,null,null,null,"","","",""]
[null,null,null,null,null,null,null,null,null,null,null,null,null,null,null,null,"","","",""]
[null,null,null,null,null,null,null,null,null,null,null,null,null,null,null,null,"","","",""]
[null,null,null,null,null,null,null,null,null,null,null,null,null,null,null,null,"","","",""]
[null,null,null,null,null,null,null,null,null,null,null,null,null,null,null,null,"","","",""]
[null,null,null,null,null,null,null,null,null,null,null,null,null,null,null,null,"","","",""]
[null,null,null,null,null,null,null,null,null,null,null,null,null,null,null,null,"","","",""]
[null,null,null,null,null,null,null,null,null,null,null,null,null,null,null,null,"","","",""]
[null,null,null,null,null,null,null,null,null,null,null,null,null,null,null,null,"","","",""]
[null,null,null,null,null,null,null,null,null,null,null,null,null,null,null,null,"","","",""]
[null,null,null,null,null,null,null,null,null,null,null,null,null,null,null,null,"","","",""]
[null,null,null,null,null,null,null,null,null,null,null,null,null,null,null,null,"","","",""]
[null,null,null,null,null,null,null,null,null,null,null,null,null,null,null,null,"","","",""]
[null,null,null,null,null,null,null,null,null,null,null,null,null,null,null,null,"","","",""]
[null,null,null,null,null,null,null,null,null,null,null,null,null,null,null,null,"","","",""]
[null,null,null,null,null,null,null,null,null,null,null,null,null,null,null,null,"","","",""]
[null,null,null,null,null,null,null,null,null,null,null,null,null,null,null,null,"","","",""]
[null,null,null,null,null,null,null,null,null,null,null,null,null,null,null,null,"","","",""]
[null,null,null,null,null,null,null,null,null,null,null,null,null,null,null,null,"","","",""]
[null,null,null,null,null,null,null,null,null,null,null,null,null,null,null,null,"","","",""]
[null,null,null,null,null,null,null,null,null,null,null,null,null,null,null,null,"","","",""]
[null,null,null,null,null,null,null,null,null,null,null,null,null,null,null,null,"","","",""]
[null,null,null,null,null,null,null,null,null,null,null,null,null,null,null,null,"","","",""]
[null,null,null,null,null,null,null,null,null,null,null,null,null,null,null,null,"","","",""]
[null,null,null,null,null,null,null,null,null,null,null,null,null,null,null,null,"","","",""]
[null,null,null,null,null,null,null,null,null,null,null,null,null,null,null,null,"","","",""]
[null,null,null,null,null,null,null,null,null,null,null,null,null,null,null,null,"","","",""]
[null,null,null,null,null,null,null,null,null,null,null,null,null,null,null,null,"","","",""]
[null,null,null,null,null,null,null,null,null,null,null,null,null,null,null,null,"","","",""]
[null,null,null,null,null,null,null,null,null,null,null,null,null,null,null,null,"","","",""]
[null,null,null,null,null,null,null,null,null,null,null,null,null,null,null,null,"","","",""]
[null,null,null,null,null,null,null,null,null,null,null,null,null,null,null,null,"","","",""]
[null,null,null,null,null,null,null,null,null,null,null,null,null,null,null,null,"","","",""]
[null,null,null,null,null,null,null,null,null,null,null,null,null,null,null,null,"","","",""]
[null,null,null,null,null,null,null,null,null,null,null,null,null,null,null,null,"","","",""]
[null,null,null,null,null,null,null,null,null,null,null,null,null,null,null,null,"","","",""]
[null,null,null,null,null,null,null,null,null,null,null,null,null,null,null,null,"","","",""]
[null,null,null,null,null,null,null,null,null,null,null,null,null,null,null,null,"","","",""]
[null,null,null,null,null,null,null,null,null,null,null,null,null,null,null,null,"","","",""]
[null,null,null,null,null,null,null,null,null,null,null,null,null,null,null,null,"","","",""]
[null,null,null,null,null,null,null,null,null,null,null,null,null,null,null,null,"","","",""]
[null,null,null,null,null,null,null,null,null,null,null,null,null,null,null,null,"","","",""]
[null,null,null,null,null,null,null,null,null,null,null,null,null,null,null,null,"","","",""]
[null,null,null,null,null,null,null,null,null,null,null,null,null,null,null,null,"","","",""]
[null,null,null,null,null,null,null,null,null,null,null,null,null,null,null,null,"","","",""]
[null,null,null,null,null,null,null,null,null,null,null,null,null,null,null,null,"","","",""]
[null,null,null,null,null,null,null,null,null,null,null,null,null,null,null,null,"","","",""]
[null,null,null,null,null,null,null,null,null,null,null,null,null,null,null,null,{"$f":"IFERROR(M265/I265,\"\")","v":""},{"$f":"IFERROR(N265/J265,\"\")","v":""},{"$f":"IFERROR(O265/K265,\"\")","v":""},{"$f":"IFERROR(P265/L265,\"\")","v":""}]
[null,null,null,null,null,null,null,null,null,null,null,null,null,null,null,null,"","","",""]
[null,null,null,null,null,null,null,null,null,null,null,null,null,null,null,null,"","","",""]
[null,null,null,null,null,null,null,null,null,null,null,null,null,null,null,null,"","","",""]
[null,null,null,null,null,null,null,null,null,null,null,null,null,null,null,null,"","","",""]
[null,null,null,null,null,null,null,null,null,null,null,null,null,null,null,null,"","","",""]
[null,null,null,null,null,null,null,null,null,null,null,null,null,null,null,null,"","","",""]
[null,null,null,null,null,null,null,null,null,null,null,null,null,null,null,null,"","","",""]
[null,null,null,null,null,null,null,null,null,null,null,null,null,null,null,null,"","","",""]
[null,null,null,null,null,null,null,null,null,null,null,null,null,null,null,null,"","","",""]
[null,null,null,null,null,null,null,null,null,null,null,null,null,null,null,null,"","","",""]
[null,null,null,null,null,null,null,null,null,null,null,null,null,null,null,null,"","","",""]
[null,null,null,null,null,null,null,null,null,null,null,null,null,null,null,null,"","","",""]
[null,null,null,null,null,null,null,null,null,null,null,null,null,null,null,null,"","","",""]
[null,null,null,null,null,null,null,null,null,null,null,null,null,null,null,null,"","","",""]
[null,null,null,null,null,null,null,null,null,null,null,null,null,null,null,null,"","","",""]
[null,null,null,null,null,null,null,null,null,null,null,null,null,null,null,null,"","","",""]
[null,null,null,null,null,null,null,null,null,null,null,null,null,null,null,null,"","","",""]
[null,null,null,null,null,null,null,null,null,null,null,null,null,null,null,null,"","","",""]
[null,null,null,null,null,null,null,null,null,null,null,null,null,null,null,null,"","","",""]
[null,null,null,null,null,null,null,null,null,null,null,null,null,null,null,null,"","","",""]
[null,null,null,null,null,null,null,null,null,null,null,null,null,null,null,null,"","","",""]
[null,null,null,null,null,null,null,null,null,null,null,null,null,null,null,null,"","","",""]
[null,null,null,null,null,null,null,null,null,null,null,null,null,null,null,null,"","","",""]
[null,null,null,null,null,null,null,null,null,null,null,null,null,null,null,null,"","","",""]
[null,null,null,null,null,null,null,null,null,null,null,null,null,null,null,null,"","","",""]
[null,null,null,null,null,null,null,null,null,null,null,null,null,null,null,null,"","","",""]
[null,null,null,null,null,null,null,null,null,null,null,null,null,null,null,null,"","","",""]
[null,null,null,null,null,null,null,null,null,null,null,null,null,null,null,null,"","","",""]
[null,null,null,null,null,null,null,null,null,null,null,null,null,null,null,null,"","","",""]
[null,null,null,null,null,null,null,null,null,null,null,null,null,null,null,null,"","","",""]
[null,null,null,null,null,null,null,null,null,null,null,null,null,null,null,null,"","","",""]
[null,null,null,null,null,null,null,null,null,null,null,null,null,null,null,null,"","","",""]
[null,null,null,null,null,null,null,null,null,null,null,null,null,null,null,null,"","","",""]
[null,null,null,null,null,null,null,null,null,null,null,null,null,null,null,null,"","","",""]
[null,null,null,null,null,null,null,null,null,null,null,null,null,null,null,null,"","","",""]
[null,null,null,null,null,null,null,null,null,null,null,null,null,null,null,null,"","","",""]
[null,null,null,null,null,null,null,null,null,null,null,null,null,null,null,null,"","","",""]
[null,null,null,null,null,null,null,null,null,null,null,null,null,null,null,null,"","","",""]
[null,null,null,null,null,null,null,null,null,null,null,null,null,null,null,null,"","","",""]
[null,null,null,null,null,null,null,null,null,null,null,null,null,null,null,null,"","","",""]
[null,null,null,null,null,null,null,null,null,null,null,null,null,null,null,null,"","","",""]
[null,null,null,null,null,null,null,null,null,null,null,null,null,null,null,null,"","","",""]
[null,null,null,null,null,null,null,null,null,null,null,null,null,null,null,null,"","","",""]
[null,null,null,null,null,null,null,null,null,null,null,null,null,null,null,null,"","","",""]
[null,null,null,null,null,null,null,null,null,null,null,null,null,null,null,null,"","","",""]
[null,null,null,null,null,null,null,null,null,null,null,null,null,null,null,null,"","","",""]
[null,null,null,null,null,null,null,null,null,null,null,null,null,null,null,null,"","","",""]
[null,null,null,null,null,null,null,null,null,null,null,null,null,null,null,null,"","","",""]
[null,null,null,null,null,null,null,null,null,null,null,null,null,null,null,null,"","","",""]
[null,null,null,null,null,null,null,null,null,null,null,null,null,null,null,null,"","","",""]
[null,null,null,null,null,null,null,null,null,null,null,null,null,null,null,null,"","","",""]
[null,null,null,null,null,null,null,null,null,null,null,null,null,null,null,null,"","","",""]
[null,null,null,null,null,null,null,null,null,null,null,null,null,null,null,null,"","","",""]
[null,null,null,null,null,null,null,null,null,null,null,null,null,null,null,null,"","","",""]
[null,null,null,null,null,null,null,null,null,null,null,null,null,null,null,null,"","","",""]
[null,null,null,null,null,null,null,null,null,null,null,null,null,null,null,null,"","","",""]
[null,null,null,null,null,null,null,null,null,null,null,null,null,null,null,null,"","","",""]
[null,null,null,null,null,null,null,null,null,null,null,null,null,null,null,null,"","","",""]
[null,null,null,null,null,null,null,null,null,null,null,null,null,null,null,null,"","","",""]
[null,null,null,null,null,null,null,null,null,null,null,null,null,null,null,null,"","","",""]
[null,null,null,null,null,null,null,null,null,null,null,null,null,null,null,null,"","","",""]
[null,null,null,null,null,null,null,null,null,null,null,null,null,null,null,null,"","","",""]
[null,null,null,null,null,null,null,null,null,null,null,null,null,null,null,null,"","","",""]
[null,null,null,null,null,null,null,null,null,null,null,null,null,null,null,null,{"$f":"IFERROR(M329/I329,\"\")","v":""},{"$f":"IFERROR(N329/J329,\"\")","v":""},{"$f":"IFERROR(O329/K329,\"\")","v":""},{"$f":"IFERROR(P329/L329,\"\")","v":""}]
[null,null,null,null,null,null,null,null,null,null,null,null,null,null,null,null,"","","",""]
[null,null,null,null,null,null,null,null,null,null,null,null,null,null,null,null,"","","",""]
[null,null,null,null,null,null,null,null,null,null,null,null,null,null,null,null,"","","",""]
[null,null,null,null,null,null,null,null,null,null,null,null,null,null,null,null,"","","",""]
[null,null,null,null,null,null,null,null,null,null,null,null,null,null,null,null,"","","",""]
[null,null,null,null,null,null,null,null,null,null,null,null,null,null,null,null,"","","",""]
[null,null,null,null,null,null,null,null,null,null,null,null,null,null,null,null,"","","",""]
[null,null,null,null,null,null,null,null,null,null,null,null,null,null,null,null,"","","",""]
[null,null,null,null,null,null,null,null,null,null,null,null,null,null,null,null,"","","",""]
[null,null,null,null,null,null,null,null,null,null,null,null,null,null,null,null,"","","",""]
[null,null,null,null,null,null,null,null,null,null,null,null,null,null,null,null,"","","",""]
[null,null,null,null,null,null,null,null,null,null,null,null,null,null,null,null,"","","",""]
[null,null,null,null,null,null,null,null,null,null,null,null,null,null,null,null,"","","",""]
[null,null,null,null,null,null,null,null,null,null,null,null,null,null,null,null,"","","",""]
[null,null,null,null,null,null,null,null,null,null,null,null,null,null,null,null,"","","",""]
[null,null,null,null,null,null,null,null,null,null,null,null,null,null,null,null,"","","",""]
[null,null,null,null,null,null,null,null,null,null,null,null,null,null,null,null,"","","",""]
[null,null,null,null,null,null,null,null,null,null,null,null,null,null,null,null,"","","",""]
[null,null,null,null,null,null,null,null,null,null,null,null,null,null,null,null,"","","",""]
[null,null,null,null,null,null,null,null,null,null,null,null,null,null,null,null,"","","",""]
[null,null,null,null,null,null,null,null,null,null,null,null,null,null,null,null,"","","",""]
[null,null,null,null,null,null,null,null,null,null,null,null,null,null,null,null,"","","",""]
[null,null,null,null,null,null,null,null,null,null,null,null,null,null,null,null,"","","",""]
[null,null,null,null,null,null,null,null,null,null,null,null,null,null,null,null,"","","",""]
[null,null,null,null,null,null,null,null,null,null,null,null,null,null,null,null,"","","",""]
[null,null,null,null,null,null,null,null,null,null,null,null,null,null,null,null,"","","",""]
[null,null,null,null,null,null,null,null,null,null,null,null,null,null,null,null,"","","",""]
[null,null,null,null,null,null,null,null,null,null,null,null,null,null,null,null,"","","",""]
[null,null,null,null,null,null,null,null,null,null,null,null,null,null,null,null,"","","",""]
[null,null,null,null,null,null,null,null,null,null,null,null,null,null,null,null,"","","",""]
[null,null,null,null,null,null,null,null,null,null,null,null,null,null,null,null,"","","",""]
[null,null,null,null,null,null,null,null,null,null,null,null,null,null,null,null,"","","",""]
[null,null,null,null,null,null,null,null,null,null,null,null,null,null,null,null,"","","",""]
[null,null,null,null,null,null,null,null,null,null,null,null,null,null,null,null,"","","",""]
[null,null,null,null,null,null,null,null,null,null,null,null,null,null,null,null,"","","",""]
[null,null,null,null,null,null,null,null,null,null,null,null,null,null,null,null,"","","",""]
[null,null,null,null,null,null,null,null,null,null,null,null,null,null,null,null,"","","",""]
[null,null,null,null,null,null,null,null,null,null,null,null,null,null,null,null,"","","",""]
[null,null,null,null,null,null,null,null,null,null,null,null,null,null,null,null,"","","",""]
[null,null,null,null,null,null,null,null,null,null,null,null,null,null,null,null,"","","",""]
[null,null,null,null,null,null,null,null,null,null,null,null,null,null,null,null,"","","",""]
[null,null,null,null,null,null,null,null,null,null,null,null,null,null,null,null,"","","",""]
[null,null,null,null,null,null,null,null,null,null,null,null,null,null,null,null,"","","",""]
[null,null,null,null,null,null,null,null,null,null,null,null,null,null,null,null,"","","",""]
[null,null,null,null,null,null,null,null,null,null,null,null,null,null,null,null,"","","",""]
[null,null,null,null,null,null,null,null,null,null,null,null,null,null,null,null,"","","",""]
[null,null,null,null,null,null,null,null,null,null,null,null,null,null,null,null,"","","",""]
[null,null,null,null,null,null,null,null,null,null,null,null,null,null,null,null,"","","",""]
[null,null,null,null,null,null,null,null,null,null,null,null,null,null,null,null,"","","",""]
[null,null,null,null,null,null,null,null,null,null,null,null,null,null,null,null,"","","",""]
[null,null,null,null,null,null,null,null,null,null,null,null,null,null,null,null,"","","",""]
[null,null,null,null,null,null,null,null,null,null,null,null,null,null,null,null,"","","",""]
[null,null,null,null,null,null,null,null,null,null,null,null,null,null,null,null,"","","",""]
[null,null,null,null,null,null,null,null,null,null,null,null,null,null,null,null,"","","",""]
[null,null,null,null,null,null,null,null,null,null,null,null,null,null,null,null,"","","",""]
[null,null,null,null,null,null,null,null,null,null,null,null,null,null,null,null,"","","",""]
[null,null,null,null,null,null,null,null,null,null,null,null,null,null,null,null,"","","",""]
[null,null,null,null,null,null,null,null,null,null,null,null,null,null,null,null,"","","",""]
[null,null,null,null,null,null,null,null,null,null,null,null,null,null,null,null,"","","",""]
[null,null,null,null,null,null,null,null,null,null,null,null,null,null,null,null,"","","",""]
[null,null,null,null,null,null,null,null,null,null,null,null,null,null,null,null,"","","",""]
[null,null,null,null,null,null,null,null,null,null,null,null,null,null,null,null,"","","",""]
[null,null,null,null,null,null,null,null,null,null,null,null,null,null,null,null,"","","",""]
[null,null,null,null,null,null,null,null,null,null,null,null,null,null,null,null,{"$f":"IFERROR(M393/I393,\"\")","v":""},{"$f":"IFERROR(N393/J393,\"\")","v":""},{"$f":"IFERROR(O393/K393,\"\")","v":""},{"$f":"IFERROR(P393/L393,\"\")","v":""}]
[null,null,null,null,null,null,null,null,null,null,null,null,null,null,null,null,"","","",""]
[null,null,null,null,null,null,null,null,null,null,null,null,null,null,null,null,"","","",""]
[null,null,null,null,null,null,null,null,null,null,null,null,null,null,null,null,"","","",""]
[null,null,null,null,null,null,null,null,null,null,null,null,null,null,null,null,"","","",""]
[null,null,null,null,null,null,null,null,null,null,null,null,null,null,null,null,"","","",""]
[null,null,null,null,null,null,null,null,null,null,null,null,null,null,null,null,"","","",""]
[null,null,null,null,null,null,null,null,null,null,null,null,null,null,null,null,"","","",""]
[null,null,null,null,null,null,null,null,null,null,null,null,null,null,null,null,"","","",""]
[null,null,null,null,null,null,null,null,null,null,null,null,null,null,null,null,"","","",""]
[null,null,null,null,null,null,null,null,null,null,null,null,null,null,null,null,"","","",""]
[null,null,null,null,null,null,null,null,null,null,null,null,null,null,null,null,"","","",""]
[null,null,null,null,null,null,null,null,null,null,null,null,null,null,null,null,"","","",""]
[null,null,null,null,null,null,null,null,null,null,null,null,null,null,null,null,"","","",""]
[null,null,null,null,null,null,null,null,null,null,null,null,null,null,null,null,"","","",""]
[null,null,null,null,null,null,null,null,null,null,null,null,null,null,null,null,"","","",""]
[null,null,null,null,null,null,null,null,null,null,null,null,null,null,null,null,"","","",""]
[null,null,null,null,null,null,null,null,null,null,null,null,null,null,null,null,"","","",""]
[null,null,null,null,null,null,null,null,null,null,null,null,null,null,null,null,"","","",""]
[null,null,null,null,null,null,null,null,null,null,null,null,null,null,null,null,"","","",""]
[null,null,null,null,null,null,null,null,null,null,null,null,null,null,null,null,"","","",""]
[null,null,null,null,null,null,null,null,null,null,null,null,null,null,null,null,"","","",""]
[null,null,null,null,null,null,null,null,null,null,null,null,null,null,null,null,"","","",""]
[null,null,null,null,null,null,null,null,null,null,null,null,null,null,null,null,"","","",""]
[null,null,null,null,null,null,null,null,null,null,null,null,null,null,null,null,"","","",""]
[null,null,null,null,null,null,null,null,null,null,null,null,null,null,null,null,"","","",""]
[null,null,null,null,null,null,null,null,null,null,null,null,null,null,null,null,"","","",""]
[null,null,null,null,null,null,null,null,null,null,null,null,null,null,null,null,"","","",""]
[null,null,null,null,null,null,null,null,null,null,null,null,null,null,null,null,"","","",""]
[null,null,null,null,null,null,null,null,null,null,null,null,null,null,null,null,"","","",""]
[null,null,null,null,null,null,null,null,null,null,null,null,null,null,null,null,"","","",""]
[null,null,null,null,null,null,null,null,null,null,null,null,null,null,null,null,"","","",""]
[null,null,null,null,null,null,null,null,null,null,null,null,null,null,null,null,"","","",""]
[null,null,null,null,null,null,null,null,null,null,null,null,null,null,null,null,"","","",""]
[null,null,null,null,null,null,null,null,null,null,null,null,null,null,null,null,"","","",""]
[null,null,null,null,null,null,null,null,null,null,null,null,null,null,null,null,"","","",""]
[null,null,null,null,null,null,null,null,null,null,null,null,null,null,null,null,"","","",""]
[null,null,null,null,null,null,null,null,null,null,null,null,null,null,null,null,"","","",""]
[null,null,null,null,null,null,null,null,null,null,null,null,null,null,null,null,"","","",""]
[null,null,null,null,null,null,null,null,null,null,null,null,null,null,null,null,"","","",""]
[null,null,null,null,null,null,null,null,null,null,null,null,null,null,null,null,"","","",""]
[null,null,null,null,null,null,null,null,null,null,null,null,null,null,null,null,"","","",""]
[null,null,null,null,null,null,null,null,null,null,null,null,null,null,null,null,"","","",""]
[null,null,null,null,null,null,null,null,null,null,null,null,null,null,null,null,"","","",""]
[null,null,null,null,null,null,null,null,null,null,null,null,null,null,null,null,"","","",""]
[null,null,null,null,null,null,null,null,null,null,null,null,null,null,null,null,"","","",""]
[null,null,null,null,null,null,null,null,null,null,null,null,null,null,null,null,"","","",""]
[null,null,null,null,null,null,null,null,null,null,null,null,null,null,null,null,"","","",""]
[null,null,null,null,null,null,null,null,null,null,null,null,null,null,null,null,"","","",""]
[null,null,null,null,null,null,null,null,null,null,null,null,null,null,null,null,"","","",""]
[null,null,null,null,null,null,null,null,null,null,null,null,null,null,null,null,"","","",""]
[null,null,null,null,null,null,null,null,null,null,null,null,null,null,null,null,"","","",""]
[null,null,null,null,null,null,null,null,null,null,null,null,null,null,null,null,"","","",""]
[null,null,null,null,null,null,null,null,null,null,null,null,null,null,null,null,"","","",""]
[null,null,null,null,null,null,null,null,null,null,null,null,null,null,null,null,"","","",""]
[null,null,null,null,null,null,null,null,null,null,null,null,null,null,null,null,"","","",""]
[null,null,null,null,null,null,null,null,null,null,null,null,null,null,null,null,"","","",""]
[null,null,null,null,null,null,null,null,null,null,null,null,null,null,null,null,"","","",""]
[null,null,null,null,null,null,null,null,null,null,null,null,null,null,null,null,"","","",""]
[null,null,null,null,null,null,null,null,null,null,null,null,null,null,null,null,"","","",""]
[null,null,null,null,null,null,null,null,null,null,null,null,null,null,null,null,"","","",""]
[null,null,null,null,null,null,null,null,null,null,null,null,null,null,null,null,"","","",""]
[null,null,null,null,null,null,null,null,null,null,null,null,null,null,null,null,"","","",""]
[null,null,null,null,null,null,null,null,null,null,null,null,null,null,null,null,"","","",""]
[null,null,null,null,null,null,null,null,null,null,null,null,null,null,null,null,{"$f":"IFERROR(M457/I457,\"\")","v":""},{"$f":"IFERROR(N457/J457,\"\")","v":""},{"$f":"IFERROR(O457/K457,\"\")","v":""},{"$f":"IFERROR(P457/L457,\"\")","v":""}]
[null,null,null,null,null,null,null,null,null,null,null,null,null,null,null,null,"","","",""]
[null,null,null,null,null,null,null,null,null,null,null,null,null,null,null,null,"","","",""]
[null,null,null,null,null,null,null,null,null,null,null,null,null,null,null,null,"","","",""]
[null,null,null,null,null,null,null,null,null,null,null,null,null,null,null,null,"","","",""]
[null,null,null,null,null,null,null,null,null,null,null,null,null,null,null,null,"","","",""]
[null,null,null,null,null,null,null,null,null,null,null,null,null,null,null,null,"","","",""]
[null,null,null,null,null,null,null,null,null,null,null,null,null,null,null,null,"","","",""]
[null,null,null,null,null,null,null,null,null,null,null,null,null,null,null,null,"","","",""]
[null,null,null,null,null,null,null,null,null,null,null,null,null,null,null,null,"","","",""]
[null,null,null,null,null,null,null,null,null,null,null,null,null,null,null,null,"","","",""]
[null,null,null,null,null,null,null,null,null,null,null,null,null,null,null,null,"","","",""]
[null,null,null,null,null,null,null,null,null,null,null,null,null,null,null,null,"","","",""]
[null,null,null,null,null,null,null,null,null,null,null,null,null,null,null,null,"","","",""]
[null,null,null,null,null,null,null,null,null,null,null,null,null,null,null,null,"","","",""]
[null,null,null,null,null,null,null,null,null,null,null,null,null,null,null,null,"","","",""]
[null,null,null,null,null,null,null,null,null,null,null,null,null,null,null,null,"","","",""]
[null,null,null,null,null,null,null,null,null,null,null,null,null,null,null,null,"","","",""]
[null,null,null,null,null,null,null,null,null,null,null,null,null,null,null,null,"","","",""]
[null,null,null,null,null,null,null,null,null,null,null,null,null,null,null,null,"","","",""]
[null,null,null,null,null,null,null,null,null,null,null,null,null,null,null,null,"","","",""]
[null,null,null,null,null,null,null,null,null,null,null,null,null,null,null,null,"","","",""]
[null,null,null,null,null,null,null,null,null,null,null,null,null,null,null,null,"","","",""]
[null,null,null,null,null,null,null,null,null,null,null,null,null,null,null,null,"","","",""]
[null,null,null,null,null,null,null,null,null,null,null,null,null,null,null,null,"","","",""]
[null,null,null,null,null,null,null,null,null,null,null,null,null,null,null,null,"","","",""]
[null,null,null,null,null,null,null,null,null,null,null,null,null,null,null,null,"","","",""]
[null,null,null,null,null,null,null,null,null,null,null,null,null,null,null,null,"","","",""]
[null,null,null,null,null,null,null,null,null,null,null,null,null,null,null,null,"","","",""]
[null,null,null,null,null,null,null,null,null,null,null,null,null,null,null,null,"","","",""]
[null,null,null,null,null,null,null,null,null,null,null,null,null,null,null,null,"","","",""]
[null,null,null,null,null,null,null,null,null,null,null,null,null,null,null,null,"","","",""]
[null,null,null,null,null,null,null,null,null,null,null,null,null,null,null,null,"","","",""]
[null,null,null,null,null,null,null,null,null,null,null,null,null,null,null,null,"","","",""]
[null,null,null,null,null,null,null,null,null,null,null,null,null,null,null,null,"","","",""]
[null,null,null,null,null,null,null,null,null,null,null,null,null,null,null,null,"","","",""]
[null,null,null,null,null,null,null,null,null,null,null,null,null,null,null,null,"","","",""]
[null,null,null,null,null,null,null,null,null,null,null,null,null,null,null,null,"","","",""]
[null,null,null,null,null,null,null,null,null,null,null,null,null,null,null,null,"","","",""]
[null,null,null,null,null,null,null,null,null,null,null,null,null,null,null,null,"","","",""]
[null,null,null,null,null,null,null,null,null,null,null,null,null,null,null,null,"","","",""]
[null,null,null,null,null,null,null,null,null,null,null,null,null,null,null,null,"","","",""]
[null,null,null,null,null,null,null,null,null,null,null,null,null,null,null,null,"","","",""]
[null,null,null,null,null,null,null,null,null,null,null,null,null,null,null,null,"","","",""]
[null,null,null,null,null,null,null,null,null,null,null,null,null,null,null,null,"","","",""]
[null,null,null,null,null,null,null,null,null,null,null,null,null,null,null,null,"","","",""]
[null,null,null,null,null,null,null,null,null,null,null,null,null,null,null,null,"","","",""]
[null,null,null,null,null,null,null,null,null,null,null,null,null,null,null,null,"","","",""]
[null,null,null,null,null,null,null,null,null,null,null,null,null,null,null,null,"","","",""]
[null,null,null,null,null,null,null,null,null,null,null,null,null,null,null,null,"","","",""]
[null,null,null,null,null,null,null,null,null,null,null,null,null,null,null,null,"","","",""]
[null,null,null,null,null,null,null,null,null,null,null,null,null,null,null,null,"","","",""]
[null,null,null,null,null,null,null,null,null,null,null,null,null,null,null,null,"","","",""]
[null,null,null,null,null,null,null,null,null,null,null,null,null,null,null,null,"","","",""]
[null,null,null,null,null,null,null,null,null,null,null,null,null,null,null,null,"","","",""]
[null,null,null,null,null,null,null,null,null,null,null,null,null,null,null,null,"","","",""]
[null,null,null,null,null,null,null,null,null,null,null,null,null,null,null,null,"","","",""]
[null,null,null,null,null,null,null,null,null,null,null,null,null,null,null,null,"","","",""]
[null,null,null,null,null,null,null,null,null,null,null,null,null,null,null,null,"","","",""]
[null,null,null,null,null,null,null,null,null,null,null,null,null,null,null,null,"","","",""]
[null,null,null,null,null,null,null,null,null,null,null,null,null,null,null,null,"","","",""]
[null,null,null,null,null,null,null,null,null,null,null,null,null,null,null,null,"","","",""]
[null,null,null,null,null,null,null,null,null,null,null,null,null,null,null,null,"","","",""]
[null,null,null,null,null,null,null,null,null,null,null,null,null,null,null,null,"","","",""]
[null,null,null,null,null,null,null,null,null,null,null,null,null,null,null,null,{"$f":"IFERROR(M521/I521,\"\")","v":""},{"$f":"IFERROR(N521/J521,\"\")","v":""},{"$f":"IFERROR(O521/K521,\"\")","v":""},{"$f":"IFERROR(P521/L521,\"\")","v":""}]
[null,null,null,null,null,null,null,null,null,null,null,null,null,null,null,null,"","","",""]
[null,null,null,null,null,null,null,null,null,null,null,null,null,null,null,null,"","","",""]
[null,null,null,null,null,null,null,null,null,null,null,null,null,null,null,null,"","","",""]
[null,null,null,null,null,null,null,null,null,null,null,null,null,null,null,null,"","","",""]
[null,null,null,null,null,null,null,null,null,null,null,null,null,null,null,null,"","","",""]
[null,null,null,null,null,null,null,null,null,null,null,null,null,null,null,null,"","","",""]
[null,null,null,null,null,null,null,null,null,null,null,null,null,null,null,null,"","","",""]
[null,null,null,null,null,null,null,null,null,null,null,null,null,null,null,null,"","","",""]
[null,null,null,null,null,null,null,null,null,null,null,null,null,null,null,null,"","","",""]
[null,null,null,null,null,null,null,null,null,null,null,null,null,null,null,null,"","","",""]
[null,null,null,null,null,null,null,null,null,null,null,null,null,null,null,null,"","","",""]
[null,null,null,null,null,null,null,null,null,null,null,null,null,null,null,null,"","","",""]
[null,null,null,null,null,null,null,null,null,null,null,null,null,null,null,null,"","","",""]
[null,null,null,null,null,null,null,null,null,null,null,null,null,null,null,null,"","","",""]
[null,null,null,null,null,null,null,null,null,null,null,null,null,null,null,null,"","","",""]
[null,null,null,null,null,null,null,null,null,null,null,null,null,null,null,null,"","","",""]
[null,null,null,null,null,null,null,null,null,null,null,null,null,null,null,null,"","","",""]
[null,null,null,null,null,null,null,null,null,null,null,null,null,null,null,null,"","","",""]
[null,null,null,null,null,null,null,null,null,null,null,null,null,null,null,null,"","","",""]
[null,null,null,null,null,null,null,null,null,null,null,null,null,null,null,null,"","","",""]
[null,null,null,null,null,null,null,null,null,null,null,null,null,null,null,null,"","","",""]
[null,null,null,null,null,null,null,null,null,null,null,null,null,null,null,null,"","","",""]
[null,null,null,null,null,null,null,null,null,null,null,null,null,null,null,null,"","","",""]
[null,null,null,null,null,null,null,null,null,null,null,null,null,null,null,null,"","","",""]
[null,null,null,null,null,null,null,null,null,null,null,null,null,null,null,null,"","","",""]
[null,null,null,null,null,null,null,null,null,null,null,null,null,null,null,null,"","","",""]
[null,null,null,null,null,null,null,null,null,null,null,null,null,null,null,null,"","","",""]
[null,null,null,null,null,null,null,null,null,null,null,null,null,null,null,null,"","","",""]
[null,null,null,null,null,null,null,null,null,null,null,null,null,null,null,null,"","","",""]
[null,null,null,null,null,null,null,null,null,null,null,null,null,null,null,null,"","","",""]
[null,null,null,null,null,null,null,null,null,null,null,null,null,null,null,null,"","","",""]
[null,null,null,null,null,null,null,null,null,null,null,null,null,null,null,null,"","","",""]
[null,null,null,null,null,null,null,null,null,null,null,null,null,null,null,null,"","","",""]
[null,null,null,null,null,null,null,null,null,null,null,null,null,null,null,null,"","","",""]
[null,null,null,null,null,null,null,null,null,null,null,null,null,null,null,null,"","","",""]
[null,null,null,null,null,null,null,null,null,null,null,null,null,null,null,null,"","","",""]
[null,null,null,null,null,null,null,null,null,null,null,null,null,null,null,null,"","","",""]
[null,null,null,null,null,null,null,null,null,null,null,null,null,null,null,null,"","","",""]
[null,null,null,null,null,null,null,null,null,null,null,null,null,null,null,null,"","","",""]
[null,null,null,null,null,null,null,null,null,null,null,null,null,null,null,null,"","","",""]
[null,null,null,null,null,null,null,null,null,null,null,null,null,null,null,null,"","","",""]
[null,null,null,null,null,null,null,null,null,null,null,null,null,null,null,null,"","","",""]
[null,null,null,null,null,null,null,null,null,null,null,null,null,null,null,null,"","","",""]
[null,null,null,null,null,null,null,null,null,null,null,null,null,null,null,null,"","","",""]
[null,null,null,null,null,null,null,null,null,null,null,null,null,null,null,null,"","","",""]
[null,null,null,null,null,null,null,null,null,null,null,null,null,null,null,null,"","","",""]
[null,null,null,null,null,null,null,null,null,null,null,null,null,null,null,null,"","","",""]
[null,null,null,null,null,null,null,null,null,null,null,null,null,null,null,null,"","","",""]
[null,null,null,null,null,null,null,null,null,null,null,null,null,null,null,null,"","","",""]
[null,null,null,null,null,null,null,null,null,null,null,null,null,null,null,null,"","","",""]
[null,null,null,null,null,null,null,null,null,null,null,null,null,null,null,null,"","","",""]
[null,null,null,null,null,null,null,null,null,null,null,null,null,null,null,null,"","","",""]
[null,null,null,null,null,null,null,null,null,null,null,null,null,null,null,null,"","","",""]
[null,null,null,null,null,null,null,null,null,null,null,null,null,null,null,null,"","","",""]
[null,null,null,null,null,null,null,null,null,null,null,null,null,null,null,null,"","","",""]
[null,null,null,null,null,null,null,null,null,null,null,null,null,null,null,null,"","","",""]
[null,null,null,null,null,null,null,null,null,null,null,null,null,null,null,null,"","","",""]
[null,null,null,null,null,null,null,null,null,null,null,null,null,null,null,null,"","","",""]
[null,null,null,null,null,null,null,null,null,null,null,null,null,null,null,null,"","","",""]
[null,null,null,null,null,null,null,null,null,null,null,null,null,null,null,null,"","","",""]
[null,null,null,null,null,null,null,null,null,null,null,null,null,null,null,null,"","","",""]
[null,null,null,null,null,null,null,null,null,null,null,null,null,null,null,null,"","","",""]
[null,null,null,null,null,null,null,null,null,null,null,null,null,null,null,null,"","","",""]
[null,null,null,null,null,null,null,null,null,null,null,null,null,null,null,null,{"$f":"IFERROR(M585/I585,\"\")","v":""},{"$f":"IFERROR(N585/J585,\"\")","v":""},{"$f":"IFERROR(O585/K585,\"\")","v":""},{"$f":"IFERROR(P585/L585,\"\")","v":""}]
[null,null,null,null,null,null,null,null,null,null,null,null,null,null,null,null,"","","",""]
[null,null,null,null,null,null,null,null,null,null,null,null,null,null,null,null,"","","",""]
[null,null,null,null,null,null,null,null,null,null,null,null,null,null,null,null,"","","",""]
[null,null,null,null,null,null,null,null,null,null,null,null,null,null,null,null,"","","",""]
[null,null,null,null,null,null,null,null,null,null,null,null,null,null,null,null,"","","",""]
[null,null,null,null,null,null,null,null,null,null,null,null,null,null,null,null,"","","",""]
[null,null,null,null,null,null,null,null,null,null,null,null,null,null,null,null,"","","",""]
[null,null,null,null,null,null,null,null,null,null,null,null,null,null,null,null,"","","",""]
[null,null,null,null,null,null,null,null,null,null,null,null,null,null,null,null,"","","",""]
[null,null,null,null,null,null,null,null,null,null,null,null,null,null,null,null,"","","",""]
[null,null,null,null,null,null,null,null,null,null,null,null,null,null,null,null,"","","",""]
[null,null,null,null,null,null,null,null,null,null,null,null,null,null,null,null,"","","",""]
[null,null,null,null,null,null,null,null,null,null,null,null,null,null,null,null,"","","",""]
[null,null,null,null,null,null,null,null,null,null,null,null,null,null,null,null,"","","",""]
[null,null,null,null,null,null,null,null,null,null,null,null,null,null,null,null,"","","",""]
[null,null,null,null,null,null,null,null,null,null,null,null,null,null,null,null,"","","",""]
[null,null,null,null,null,null,null,null,null,null,null,null,null,null,null,null,"","","",""]
[null,null,null,null,null,null,null,null,null,null,null,null,null,null,null,null,"","","",""]
[null,null,null,null,null,null,null,null,null,null,null,null,null,null,null,null,"","","",""]
[null,null,null,null,null,null,null,null,null,null,null,null,null,null,null,null,"","","",""]
[null,null,null,null,null,null,null,null,null,null,null,null,null,null,null,null,"","","",""]
[null,null,null,null,null,null,null,null,null,null,null,null,null,null,null,null,"","","",""]
[null,null,null,null,null,null,null,null,null,null,null,null,null,null,null,null,"","","",""]
[null,null,null,null,null,null,null,null,null,null,null,null,null,null,null,null,"","","",""]
[null,null,null,null,null,null,null,null,null,null,null,null,null,null,null,null,"","","",""]
[null,null,null,null,null,null,null,null,null,null,null,null,null,null,null,null,"","","",""]
[null,null,null,null,null,null,null,null,null,null,null,null,null,null,null,null,"","","",""]
[null,null,null,null,null,null,null,null,null,null,null,null,null,null,null,null,"","","",""]
[null,null,null,null,null,null,null,null,null,null,null,null,null,null,null,null,"","","",""]
[null,null,null,null,null,null,null,null,null,null,null,null,null,null,null,null,"","","",""]
[null,null,null,null,null,null,null,null,null,null,null,null,null,null,null,null,"","","",""]
[null,null,null,null,null,null,null,null,null,null,null,null,null,null,null,null,"","","",""]
[null,null,null,null,null,null,null,null,null,null,null,null,null,null,null,null,"","","",""]
[null,null,null,null,null,null,null,null,null,null,null,null,null,null,null,null,"","","",""]
[null,null,null,null,null,null,null,null,null,null,null,null,null,null,null,null,"","","",""]
[null,null,null,null,null,null,null,null,null,null,null,null,null,null,null,null,"","","",""]
[null,null,null,null,null,null,null,null,null,null,null,null,null,null,null,null,"","","",""]
[null,null,null,null,null,null,null,null,null,null,null,null,null,null,null,null,"","","",""]
[null,null,null,null,null,null,null,null,null,null,null,null,null,null,null,null,"","","",""]
[null,null,null,null,null,null,null,null,null,null,null,null,null,null,null,null,"","","",""]
[null,null,null,null,null,null,null,null,null,null,null,null,null,null,null,null,"","","",""]
[null,null,null,null,null,null,null,null,null,null,null,null,null,null,null,null,"","","",""]
[null,null,null,null,null,null,null,null,null,null,null,null,null,null,null,null,"","","",""]
[null,null,null,null,null,null,null,null,null,null,null,null,null,null,null,null,"","","",""]
[null,null,null,null,null,null,null,null,null,null,null,null,null,null,null,null,"","","",""]
[null,null,null,null,null,null,null,null,null,null,null,null,null,null,null,null,"","","",""]
[null,null,null,null,null,null,null,null,null,null,null,null,null,null,null,null,"","","",""]
[null,null,null,null,null,null,null,null,null,null,null,null,null,null,null,null,"","","",""]
[null,null,null,null,null,null,null,null,null,null,null,null,null,null,null,null,"","","",""]
[null,null,null,null,null,null,null,null,null,null,null,null,null,null,null,null,"","","",""]
[null,null,null,null,null,null,null,null,null,null,null,null,null,null,null,null,"","","",""]
[null,null,null,null,null,null,null,null,null,null,null,null,null,null,null,null,"","","",""]
[null,null,null,null,null,null,null,null,null,null,null,null,null,null,null,null,"","","",""]
[null,null,null,null,null,null,null,null,null,null,null,null,null,null,null,null,"","","",""]
[null,null,null,null,null,null,null,null,null,null,null,null,null,null,null,null,"","","",""]
[null,null,null,null,null,null,null,null,null,null,null,null,null,null,null,null,"","","",""]
[null,null,null,null,null,null,null,null,null,null,null,null,null,null,null,null,"","","",""]
[null,null,null,null,null,null,null,null,null,null,null,null,null,null,null,null,"","","",""]
[null,null,null,null,null,null,null,null,null,null,null,null,null,null,null,null,"","","",""]
[null,null,null,null,null,null,null,null,null,null,null,null,null,null,null,null,"","","",""]
[null,null,null,null,null,null,null,null,null,null,null,null,null,null,null,null,"","","",""]
[null,null,null,null,null,null,null,null,null,null,null,null,null,null,null,null,"","","",""]
[null,null,null,null,null,null,null,null,null,null,null,null,null,null,null,null,"","","",""]
[null,null,null,null,null,null,null,null,null,null,null,null,null,null,null,null,{"$f":"IFERROR(M649/I649,\"\")","v":""},{"$f":"IFERROR(N649/J649,\"\")","v":""},{"$f":"IFERROR(O649/K649,\"\")","v":""},{"$f":"IFERROR(P649/L649,\"\")","v":""}]
[null,null,null,null,null,null,null,null,null,null,null,null,null,null,null,null,"","","",""]
[null,null,null,null,null,null,null,null,null,null,null,null,null,null,null,null,"","","",""]
[null,null,null,null,null,null,null,null,null,null,null,null,null,null,null,null,"","","",""]
[null,null,null,null,null,null,null,null,null,null,null,null,null,null,null,null,"","","",""]
[null,null,null,null,null,null,null,null,null,null,null,null,null,null,null,null,"","","",""]
[null,null,null,null,null,null,null,null,null,null,null,null,null,null,null,null,"","","",""]
[null,null,null,null,null,null,null,null,null,null,null,null,null,null,null,null,"","","",""]
[null,null,null,null,null,null,null,null,null,null,null,null,null,null,null,null,"","","",""]
[null,null,null,null,null,null,null,null,null,null,null,null,null,null,null,null,"","","",""]
[null,null,null,null,null,null,null,null,null,null,null,null,null,null,null,null,"","","",""]
[null,null,null,null,null,null,null,null,null,null,null,null,null,null,null,null,"","","",""]
[null,null,null,null,null,null,null,null,null,null,null,null,null,null,null,null,"","","",""]
[null,null,null,null,null,null,null,null,null,null,null,null,null,null,null,null,"","","",""]
[null,null,null,null,null,null,null,null,null,null,null,null,null,null,null,null,"","","",""]
[null,null,null,null,null,null,null,null,null,null,null,null,null,null,null,null,"","","",""]
[null,null,null,null,null,null,null,null,null,null,null,null,null,null,null,null,"","","",""]
[null,null,null,null,null,null,null,null,null,null,null,null,null,null,null,null,"","","",""]
[null,null,null,null,null,null,null,null,null,null,null,null,null,null,null,null,"","","",""]
[null,null,null,null,null,null,null,null,null,null,null,null,null,null,null,null,"","","",""]
[null,null,null,null,null,null,null,null,null,null,null,null,null,null,null,null,"","","",""]
[null,null,null,null,null,null,null,null,null,null,null,null,null,null,null,null,"","","",""]
[null,null,null,null,null,null,null,null,null,null,null,null,null,null,null,null,"","","",""]
[null,null,null,null,null,null,null,null,null,null,null,null,null,null,null,null,"","","",""]
[null,null,null,null,null,null,null,null,null,null,null,null,null,null,null,null,"","","",""]
[null,null,null,null,null,null,null,null,null,null,null,null,null,null,null,null,"","","",""]
[null,null,null,null,null,null,null,null,null,null,null,null,null,null,null,null,"","","",""]
[null,null,null,null,null,null,null,null,null,null,null,null,null,null,null,null,"","","",""]
[null,null,null,null,null,null,null,null,null,null,null,null,null,null,null,null,"","","",""]
[null,null,null,null,null,null,null,null,null,null,null,null,null,null,null,null,"","","",""]
[null,null,null,null,null,null,null,null,null,null,null,null,null,null,null,null,"","","",""]
[null,null,null,null,null,null,null,null,null,null,null,null,null,null,null,null,"","","",""]
[null,null,null,null,null,null,null,null,null,null,null,null,null,null,null,null,"","","",""]
[null,null,null,null,null,null,null,null,null,null,null,null,null,null,null,null,"","","",""]
[null,null,null,null,null,null,null,null,null,null,null,null,null,null,null,null,"","","",""]
[null,null,null,null,null,null,null,null,null,null,null,null,null,null,null,null,"","","",""]
[null,null,null,null,null,null,null,null,null,null,null,null,null,null,null,null,"","","",""]
[null,null,null,null,null,null,null,null,null,null,null,null,null,null,null,null,"","","",""]
[null,null,null,null,null,null,null,null,null,null,null,null,null,null,null,null,"","","",""]
[null,null,null,null,null,null,null,null,null,null,null,null,null,null,null,null,"","","",""]
[null,null,null,null,null,null,null,null,null,null,null,null,null,null,null,null,"","","",""]
[null,null,null,null,null,null,null,null,null,null,null,null,null,null,null,null,"","","",""]
[null,null,null,null,null,null,null,null,null,null,null,null,null,null,null,null,"","","",""]
[null,null,null,null,null,null,null,null,null,null,null,null,null,null,null,null,"","","",""]
[null,null,null,null,null,null,null,null,null,null,null,null,null,null,null,null,"","","",""]
[null,null,null,null,null,null,null,null,null,null,null,null,null,null,null,null,"","","",""]
[null,null,null,null,null,null,null,null,null,null,null,null,null,null,null,null,"","","",""]
[null,null,null,null,null,null,null,null,null,null,null,null,null,null,null,null,"","","",""]
[null,null,null,null,null,null,null,null,null,null,null,null,null,null,null,null,"","","",""]
[null,null,null,null,null,null,null,null,null,null,null,null,null,null,null,null,"","","",""]
[null,null,null,null,null,null,null,null,null,null,null,null,null,null,null,null,"","","",""]
[null,null,null,null,null,null,null,null,null,null,null,null,null,null,null,null,"","","",""]
[null,null,null,null,null,null,null,null,null,null,null,null,null,null,null,null,"","","",""]
[null,null,null,null,null,null,null,null,null,null,null,null,null,null,null,null,"","","",""]
[null,null,null,null,null,null,null,null,null,null,null,null,null,null,null,null,"","","",""]
[null,null,null,null,null,null,null,null,null,null,null,null,null,null,null,null,"","","",""]
[null,null,null,null,null,null,null,null,null,null,null,null,null,null,null,null,"","","",""]
[null,null,null,null,null,null,null,null,null,null,null,null,null,null,null,null,"","","",""]
[null,null,null,null,null,null,null,null,null,null,null,null,null,null,null,null,"","","",""]
[null,null,null,null,null,null,null,null,null,null,null,null,null,null,null,null,"","","",""]
[null,null,null,null,null,null,null,null,null,null,null,null,null,null,null,null,"","","",""]
[null,null,null,null,null,null,null,null,null,null,null,null,null,null,null,null,"","","",""]
[null,null,null,null,null,null,null,null,null,null,null,null,null,null,null,null,"","","",""]
[null,null,null,null,null,null,null,null,null,null,null,null,null,null,null,null,"","","",""]
[null,null,null,null,null,null,null,null,null,null,null,null,null,null,null,null,{"$f":"IFERROR(M713/I713,\"\")","v":""},{"$f":"IFERROR(N713/J713,\"\")","v":""},{"$f":"IFERROR(O713/K713,\"\")","v":""},{"$f":"IFERROR(P713/L713,\"\")","v":""}]
[null,null,null,null,null,null,null,null,null,null,null,null,null,null,null,null,"","","",""]
[null,null,null,null,null,null,null,null,null,null,null,null,null,null,null,null,"","","",""]
[null,null,null,null,null,null,null,null,null,null,null,null,null,null,null,null,"","","",""]
[null,null,null,null,null,null,null,null,null,null,null,null,null,null,null,null,"","","",""]
[null,null,null,null,null,null,null,null,null,null,null,null,null,null,null,null,"","","",""]
[null,null,null,null,null,null,null,null,null,null,null,null,null,null,null,null,"","","",""]
[null,null,null,null,null,null,null,null,null,null,null,null,null,null,null,null,"","","",""]
[null,null,null,null,null,null,null,null,null,null,null,null,null,null,null,null,"","","",""]
[null,null,null,null,null,null,null,null,null,null,null,null,null,null,null,null,"","","",""]
[null,null,null,null,null,null,null,null,null,null,null,null,null,null,null,null,"","","",""]
[null,null,null,null,null,null,null,null,null,null,null,null,null,null,null,null,"","","",""]
[null,null,null,null,null,null,null,null,null,null,null,null,null,null,null,null,"","","",""]
[null,null,null,null,null,null,null,null,null,null,null,null,null,null,null,null,"","","",""]
[null,null,null,null,null,null,null,null,null,null,null,null,null,null,null,null,"","","",""]
[null,null,null,null,null,null,null,null,null,null,null,null,null,null,null,null,"","","",""]
[null,null,null,null,null,null,null,null,null,null,null,null,null,null,null,null,"","","",""]
[null,null,null,null,null,null,null,null,null,null,null,null,null,null,null,null,"","","",""]
[null,null,null,null,null,null,null,null,null,null,null,null,null,null,null,null,"","","",""]
[null,null,null,null,null,null,null,null,null,null,null,null,null,null,null,null,"","","",""]
[null,null,null,null,null,null,null,null,null,null,null,null,null,null,null,null,"","","",""]
[null,null,null,null,null,null,null,null,null,null,null,null,null,null,null,null,"","","",""]
[null,null,null,null,null,null,null,null,null,null,null,null,null,null,null,null,"","","",""]
[null,null,null,null,null,null,null,null,null,null,null,null,null,null,null,null,"","","",""]
[null,null,null,null,null,null,null,null,null,null,null,null,null,null,null,null,"","","",""]
[null,null,null,null,null,null,null,null,null,null,null,null,null,null,null,null,"","","",""]
[null,null,null,null,null,null,null,null,null,null,null,null,null,null,null,null,"","","",""]
[null,null,null,null,null,null,null,null,null,null,null,null,null,null,null,null,"","","",""]
[null,null,null,null,null,null,null,null,null,null,null,null,null,null,null,null,"","","",""]
[null,null,null,null,null,null,null,null,null,null,null,null,null,null,null,null,"","","",""]
[null,null,null,null,null,null,null,null,null,null,null,null,null,null,null,null,"","","",""]
[null,null,null,null,null,null,null,null,null,null,null,null,null,null,null,null,"","","",""]
[null,null,null,null,null,null,null,null,null,null,null,null,null,null,null,null,"","","",""]
[null,null,null,null,null,null,null,null,null,null,null,null,null,null,null,null,"","","",""]
[null,null,null,null,null,null,null,null,null,null,null,null,null,null,null,null,"","","",""]
[null,null,null,null,null,null,null,null,null,null,null,null,null,null,null,null,"","","",""]
[null,null,null,null,null,null,null,null,null,null,null,null,null,null,null,null,"","","",""]
[null,null,null,null,null,null,null,null,null,null,null,null,null,null,null,null,"","","",""]
[null,null,null,null,null,null,null,null,null,null,null,null,null,null,null,null,"","","",""]
[null,null,null,null,null,null,null,null,null,null,null,null,null,null,null,null,"","","",""]
[null,null,null,null,null,null,null,null,null,null,null,null,null,null,null,null,"","","",""]
[null,null,null,null,null,null,null,null,null,null,null,null,null,null,null,null,"","","",""]
[null,null,null,null,null,null,null,null,null,null,null,null,null,null,null,null,"","","",""]
[null,null,null,null,null,null,null,null,null,null,null,null,null,null,null,null,"","","",""]
[null,null,null,null,null,null,null,null,null,null,null,null,null,null,null,null,"","","",""]
[null,null,null,null,null,null,null,null,null,null,null,null,null,null,null,null,"","","",""]
[null,null,null,null,null,null,null,null,null,null,null,null,null,null,null,null,"","","",""]
[null,null,null,null,null,null,null,null,null,null,null,null,null,null,null,null,"","","",""]
[null,null,null,null,null,null,null,null,null,null,null,null,null,null,null,null,"","","",""]
[null,null,null,null,null,null,null,null,null,null,null,null,null,null,null,null,"","","",""]
[null,null,null,null,null,null,null,null,null,null,null,null,null,null,null,null,"","","",""]
[null,null,null,null,null,null,null,null,null,null,null,null,null,null,null,null,"","","",""]
[null,null,null,null,null,null,null,null,null,null,null,null,null,null,null,null,"","","",""]
[null,null,null,null,null,null,null,null,null,null,null,null,null,null,null,null,"","","",""]
[null,null,null,null,null,null,null,null,null,null,null,null,null,null,null,null,"","","",""]
[null,null,null,null,null,null,null,null,null,null,null,null,null,null,null,null,"","","",""]
[null,null,null,null,null,null,null,null,null,null,null,null,null,null,null,null,"","","",""]
[null,null,null,null,null,null,null,null,null,null,null,null,null,null,null,null,"","","",""]
[null,null,null,null,null,null,null,null,null,null,null,null,null,null,null,null,"","","",""]
[null,null,null,null,null,null,null,null,null,null,null,null,null,null,null,null,"","","",""]
[null,null,null,null,null,null,null,null,null,null,null,null,null,null,null,null,"","","",""]
[null,null,null,null,null,null,null,null,null,null,null,null,null,null,null,null,"","","",""]
[null,null,null,null,null,null,null,null,null,null,null,null,null,null,null,null,"","","",""]
[null,null,null,null,null,null,null,null,null,null,null,null,null,null,null,null,"","","",""]
[null,null,null,null,null,null,null,null,null,null,null,null,null,null,null,null,{"$f":"IFERROR(M777/I777,\"\")","v":""},{"$f":"IFERROR(N777/J777,\"\")","v":""},{"$f":"IFERROR(O777/K777,\"\")","v":""},{"$f":"IFERROR(P777/L777,\"\")","v":""}]
[null,null,null,null,null,null,null,null,null,null,null,null,null,null,null,null,"","","",""]
[null,null,null,null,null,null,null,null,null,null,null,null,null,null,null,null,"","","",""]
[null,null,null,null,null,null,null,null,null,null,null,null,null,null,null,null,"","","",""]
[null,null,null,null,null,null,null,null,null,null,null,null,null,null,null,null,"","","",""]
[null,null,null,null,null,null,null,null,null,null,null,null,null,null,null,null,"","","",""]
[null,null,null,null,null,null,null,null,null,null,null,null,null,null,null,null,"","","",""]
[null,null,null,null,null,null,null,null,null,null,null,null,null,null,null,null,"","","",""]
[null,null,null,null,null,null,null,null,null,null,null,null,null,null,null,null,"","","",""]
[null,null,null,null,null,null,null,null,null,null,null,null,null,null,null,null,"","","",""]
[null,null,null,null,null,null,null,null,null,null,null,null,null,null,null,null,"","","",""]
[null,null,null,null,null,null,null,null,null,null,null,null,null,null,null,null,"","","",""]
[null,null,null,null,null,null,null,null,null,null,null,null,null,null,null,null,"","","",""]
[null,null,null,null,null,null,null,null,null,null,null,null,null,null,null,null,"","","",""]
[null,null,null,null,null,null,null,null,null,null,null,null,null,null,null,null,"","","",""]
[null,null,null,null,null,null,null,null,null,null,null,null,null,null,null,null,"","","",""]
[null,null,null,null,null,null,null,null,null,null,null,null,null,null,null,null,"","","",""]
[null,null,null,null,null,null,null,null,null,null,null,null,null,null,null,null,"","","",""]
[null,null,null,null,null,null,null,null,null,null,null,null,null,null,null,null,"","","",""]
[null,null,null,null,null,null,null,null,null,null,null,null,null,null,null,null,"","","",""]
[null,null,null,null,null,null,null,null,null,null,null,null,null,null,null,null,"","","",""]
[null,null,null,null,null,null,null,null,null,null,null,null,null,null,null,null,"","","",""]
[null,null,null,null,null,null,null,null,null,null,null,null,null,null,null,null,"","","",""]
[null,null,null,null,null,null,null,null,null,null,null,null,null,null,null,null,"","","",""]
[null,null,null,null,null,null,null,null,null,null,null,null,null,null,null,null,"","","",""]
[null,null,null,null,null,null,null,null,null,null,null,null,null,null,null,null,"","","",""]
[null,null,null,null,null,null,null,null,null,null,null,null,null,null,null,null,"","","",""]
[null,null,null,null,null,null,null,null,null,null,null,null,null,null,null,null,"","","",""]
[null,null,null,null,null,null,null,null,null,null,null,null,null,null,null,null,"","","",""]
[null,null,null,null,null,null,null,null,null,null,null,null,null,null,null,null,"","","",""]
[null,null,null,null,null,null,null,null,null,null,null,null,null,null,null,null,"","","",""]
[null,null,null,null,null,null,null,null,null,null,null,null,null,null,null,null,"","","",""]
[null,null,null,null,null,null,null,null,null,null,null,null,null,null,null,null,"","","",""]
[null,null,null,null,null,null,null,null,null,null,null,null,null,null,null,null,"","","",""]
[null,null,null,null,null,null,null,null,null,null,null,null,null,null,null,null,"","","",""]
[null,null,null,null,null,null,null,null,null,null,null,null,null,null,null,null,"","","",""]
[null,null,null,null,null,null,null,null,null,null,null,null,null,null,null,null,"","","",""]
[null,null,null,null,null,null,null,null,null,null,null,null,null,null,null,null,"","","",""]
[null,null,null,null,null,null,null,null,null,null,null,null,null,null,null,null,"","","",""]
[null,null,null,null,null,null,null,null,null,null,null,null,null,null,null,null,"","","",""]
[null,null,null,null,null,null,null,null,null,null,null,null,null,null,null,null,"","","",""]
[null,null,null,null,null,null,null,null,null,null,null,null,null,null,null,null,"","","",""]
[null,null,null,null,null,null,null,null,null,null,null,null,null,null,null,null,"","","",""]
[null,null,null,null,null,null,null,null,null,null,null,null,null,null,null,null,"","","",""]
[null,null,null,null,null,null,null,null,null,null,null,null,null,null,null,null,"","","",""]
[null,null,null,null,null,null,null,null,null,null,null,null,null,null,null,null,"","","",""]
[null,null,null,null,null,null,null,null,null,null,null,null,null,null,null,null,"","","",""]
[null,null,null,null,null,null,null,null,null,null,null,null,null,null,null,null,"","","",""]
[null,null,null,null,null,null,null,null,null,null,null,null,null,null,null,null,"","","",""]
[null,null,null,null,null,null,null,null,null,null,null,null,null,null,null,null,"","","",""]
[null,null,null,null,null,null,null,null,null,null,null,null,null,null,null,null,"","","",""]
[null,null,null,null,null,null,null,null,null,null,null,null,null,null,null,null,"","","",""]
[null,null,null,null,null,null,null,null,null,null,null,null,null,null,null,null,"","","",""]
[null,null,null,null,null,null,null,null,null,null,null,null,null,null,null,null,"","","",""]
[null,null,null,null,null,null,null,null,null,null,null,null,null,null,null,null,"","","",""]
[null,null,null,null,null,null,null,null,null,null,null,null,null,null,null,null,"","","",""]
[null,null,null,null,null,null,null,null,null,null,null,null,null,null,null,null,"","","",""]
[null,null,null,null,null,null,null,null,null,null,null,null,null,null,null,null,"","","",""]
[null,null,null,null,null,null,null,null,null,null,null,null,null,null,null,null,"","","",""]
[null,null,null,null,null,null,null,null,null,null,null,null,null,null,null,null,"","","",""]
[null,null,null,null,null,null,null,null,null,null,null,null,null,null,null,null,"","","",""]
[null,null,null,null,null,null,null,null,null,null,null,null,null,null,null,null,"","","",""]
[null,null,null,null,null,null,null,null,null,null,null,null,null,null,null,null,"","","",""]
[null,null,null,null,null,null,null,null,null,null,null,null,null,null,null,null,"","","",""]
[null,null,null,null,null,null,null,null,null,null,null,null,null,null,null,null,{"$f":"IFERROR(M841/I841,\"\")","v":""},{"$f":"IFERROR(N841/J841,\"\")","v":""},{"$f":"IFERROR(O841/K841,\"\")","v":""},{"$f":"IFERROR(P841/L841,\"\")","v":""}]
[null,null,null,null,null,null,null,null,null,null,null,null,null,null,null,null,"","","",""]
[null,null,null,null,null,null,null,null,null,null,null,null,null,null,null,null,"","","",""]
[null,null,null,null,null,null,null,null,null,null,null,null,null,null,null,null,"","","",""]
[null,null,null,null,null,null,null,null,null,null,null,null,null,null,null,null,"","","",""]
[null,null,null,null,null,null,null,null,null,null,null,null,null,null,null,null,"","","",""]
[null,null,null,null,null,null,null,null,null,null,null,null,null,null,null,null,"","","",""]
[null,null,null,null,null,null,null,null,null,null,null,null,null,null,null,null,"","","",""]
[null,null,null,null,null,null,null,null,null,null,null,null,null,null,null,null,"","","",""]
[null,null,null,null,null,null,null,null,null,null,null,null,null,null,null,null,"","","",""]
[null,null,null,null,null,null,null,null,null,null,null,null,null,null,null,null,"","","",""]
[null,null,null,null,null,null,null,null,null,null,null,null,null,null,null,null,"","","",""]
[null,null,null,null,null,null,null,null,null,null,null,null,null,null,null,null,"","","",""]
[null,null,null,null,null,null,null,null,null,null,null,null,null,null,null,null,"","","",""]
[null,null,null,null,null,null,null,null,null,null,null,null,null,null,null,null,"","","",""]
[null,null,null,null,null,null,null,null,null,null,null,null,null,null,null,null,"","","",""]
[null,null,null,null,null,null,null,null,null,null,null,null,null,null,null,null,"","","",""]
[null,null,null,null,null,null,null,null,null,null,null,null,null,null,null,null,"","","",""]
[null,null,null,null,null,null,null,null,null,null,null,null,null,null,null,null,"","","",""]
[null,null,null,null,null,null,null,null,null,null,null,null,null,null,null,null,"","","",""]
[null,null,null,null,null,null,null,null,null,null,null,null,null,null,null,null,"","","",""]
[null,null,null,null,null,null,null,null,null,null,null,null,null,null,null,null,"","","",""]
[null,null,null,null,null,null,null,null,null,null,null,null,null,null,null,null,"","","",""]
[null,null,null,null,null,null,null,null,null,null,null,null,null,null,null,null,"","","",""]
[null,null,null,null,null,null,null,null,null,null,null,null,null,null,null,null,"","","",""]
[null,null,null,null,null,null,null,null,null,null,null,null,null,null,null,null,"","","",""]
[null,null,null,null,null,null,null,null,null,null,null,null,null,null,null,null,"","","",""]
[null,null,null,null,null,null,null,null,null,null,null,null,null,null,null,null,"","","",""]
[null,null,null,null,null,null,null,null,null,null,null,null,null,null,null,null,"","","",""]
[null,null,null,null,null,null,null,null,null,null,null,null,null,null,null,null,"","","",""]
[null,null,null,null,null,null,null,null,null,null,null,null,null,null,null,null,"","","",""]
[null,null,null,null,null,null,null,null,null,null,null,null,null,null,null,null,"","","",""]
[null,null,null,null,null,null,null,null,null,null,null,null,null,null,null,null,"","","",""]
[null,null,null,null,null,null,null,null,null,null,null,null,null,null,null,null,"","","",""]
[null,null,null,null,null,null,null,null,null,null,null,null,null,null,null,null,"","","",""]
[null,null,null,null,null,null,null,null,null,null,null,null,null,null,null,null,"","","",""]
[null,null,null,null,null,null,null,null,null,null,null,null,null,null,null,null,"","","",""]
[null,null,null,null,null,null,null,null,null,null,null,null,null,null,null,null,"","","",""]
[null,null,null,null,null,null,null,null,null,null,null,null,null,null,null,null,"","","",""]
[null,null,null,null,null,null,null,null,null,null,null,null,null,null,null,null,"","","",""]
[null,null,null,null,null,null,null,null,null,null,null,null,null,null,null,null,"","","",""]
[null,null,null,null,null,null,null,null,null,null,null,null,null,null,null,null,"","","",""]
[null,null,null,null,null,null,null,null,null,null,null,null,null,null,null,null,"","","",""]
[null,null,null,null,null,null,null,null,null,null,null,null,null,null,null,null,"","","",""]
[null,null,null,null,null,null,null,null,null,null,null,null,null,null,null,null,"","","",""]
[null,null,null,null,null,null,null,null,null,null,null,null,null,null,null,null,"","","",""]
[null,null,null,null,null,null,null,null,null,null,null,null,null,null,null,null,"","","",""]
[null,null,null,null,null,null,null,null,null,null,null,null,null,null,null,null,"","","",""]
[null,null,null,null,null,null,null,null,null,null,null,null,null,null,null,null,"","","",""]
[null,null,null,null,null,null,null,null,null,null,null,null,null,null,null,null,"","","",""]
[null,null,null,null,null,null,null,null,null,null,null,null,null,null,null,null,"","","",""]
[null,null,null,null,null,null,null,null,null,null,null,null,null,null,null,null,"","","",""]
[null,null,null,null,null,null,null,null,null,null,null,null,null,null,null,null,"","","",""]
[null,null,null,null,null,null,null,null,null,null,null,null,null,null,null,null,"","","",""]
[null,null,null,null,null,null,null,null,null,null,null,null,null,null,null,null,"","","",""]
[null,null,null,null,null,null,null,null,null,null,null,null,null,null,null,null,"","","",""]
[null,null,null,null,null,null,null,null,null,null,null,null,null,null,null,null,"","","",""]
[null,null,null,null,null,null,null,null,null,null,null,null,null,null,null,null,"","","",""]
[null,null,null,null,null,null,null,null,null,null,null,null,null,null,null,null,"","","",""]
[null,null,null,null,null,null,null,null,null,null,null,null,null,null,null,null,"","","",""]
[null,null,null,null,null,null,null,null,null,null,null,null,null,null,null,null,"","","",""]
[null,null,null,null,null,null,null,null,null,null,null,null,null,null,null,null,"","","",""]
[null,null,null,null,null,null,null,null,null,null,null,null,null,null,null,null,"","","",""]
[null,null,null,null,null,null,null,null,null,null,null,null,null,null,null,null,"","","",""]
[null,null,null,null,null,null,null,null,null,null,null,null,null,null,null,null,{"$f":"IFERROR(M905/I905,\"\")","v":""},{"$f":"IFERROR(N905/J905,\"\")","v":""},{"$f":"IFERROR(O905/K905,\"\")","v":""},{"$f":"IFERROR(P905/L905,\"\")","v":""}]
[null,null,null,null,null,null,null,null,null,null,null,null,null,null,null,null,"","","",""]
[null,null,null,null,null,null,null,null,null,null,null,null,null,null,null,null,"","","",""]
[null,null,null,null,null,null,null,null,null,null,null,null,null,null,null,null,"","","",""]
[null,null,null,null,null,null,null,null,null,null,null,null,null,null,null,null,"","","",""]
[null,null,null,null,null,null,null,null,null,null,null,null,null,null,null,null,"","","",""]
[null,null,null,null,null,null,null,null,null,null,null,null,null,null,null,null,"","","",""]
[null,null,null,null,null,null,null,null,null,null,null,null,null,null,null,null,"","","",""]
[null,null,null,null,null,null,null,null,null,null,null,null,null,null,null,null,"","","",""]
[null,null,null,null,null,null,null,null,null,null,null,null,null,null,null,null,"","","",""]
[null,null,null,null,null,null,null,null,null,null,null,null,null,null,null,null,"","","",""]
[null,null,null,null,null,null,null,null,null,null,null,null,null,null,null,null,"","","",""]
[null,null,null,null,null,null,null,null,null,null,null,null,null,null,null,null,"","","",""]
[null,null,null,null,null,null,null,null,null,null,null,null,null,null,null,null,"","","",""]
[null,null,null,null,null,null,null,null,null,null,null,null,null,null,null,null,"","","",""]
[null,null,null,null,null,null,null,null,null,null,null,null,null,null,null,null,"","","",""]
[null,null,null,null,null,null,null,null,null,null,null,null,null,null,null,null,"","","",""]
[null,null,null,null,null,null,null,null,null,null,null,null,null,null,null,null,"","","",""]
[null,null,null,null,null,null,null,null,null,null,null,null,null,null,null,null,"","","",""]
[null,null,null,null,null,null,null,null,null,null,null,null,null,null,null,null,"","","",""]
[null,null,null,null,null,null,null,null,null,null,null,null,null,null,null,null,"","","",""]
[null,null,null,null,null,null,null,null,null,null,null,null,null,null,null,null,"","","",""]
[null,null,null,null,null,null,null,null,null,null,null,null,null,null,null,null,"","","",""]
[null,null,null,null,null,null,null,null,null,null,null,null,null,null,null,null,"","","",""]
[null,null,null,null,null,null,null,null,null,null,null,null,null,null,null,null,"","","",""]
[null,null,null,null,null,null,null,null,null,null,null,null,null,null,null,null,"","","",""]
[null,null,null,null,null,null,null,null,null,null,null,null,null,null,null,null,"","","",""]
[null,null,null,null,null,null,null,null,null,null,null,null,null,null,null,null,"","","",""]
[null,null,null,null,null,null,null,null,null,null,null,null,null,null,null,null,"","","",""]
[null,null,null,null,null,null,null,null,null,null,null,null,null,null,null,null,"","","",""]
[null,null,null,null,null,null,null,null,null,null,null,null,null,null,null,null,"","","",""]
[null,null,null,null,null,null,null,null,null,null,null,null,null,null,null,null,"","","",""]
[null,null,null,null,null,null,null,null,null,null,null,null,null,null,null,null,"","","",""]
[null,null,null,null,null,null,null,null,null,null,null,null,null,null,null,null,"","","",""]
[null,null,null,null,null,null,null,null,null,null,null,null,null,null,null,null,"","","",""]
[null,null,null,null,null,null,null,null,null,null,null,null,null,null,null,null,"","","",""]
[null,null,null,null,null,null,null,null,null,null,null,null,null,null,null,null,"","","",""]
[null,null,null,null,null,null,null,null,null,null,null,null,null,null,null,null,"","","",""]
[null,null,null,null,null,null,null,null,null,null,null,null,null,null,null,null,"","","",""]
[null,null,null,null,null,null,null,null,null,null,null,null,null,null,null,null,"","","",""]
[null,null,null,null,null,null,null,null,null,null,null,null,null,null,null,null,"","","",""]
[null,null,null,null,null,null,null,null,null,null,null,null,null,null,null,null,"","","",""]
[null,null,null,null,null,null,null,null,null,null,null,null,null,null,null,null,"","","",""]
[null,null,null,null,null,null,null,null,null,null,null,null,null,null,null,null,"","","",""]
[null,null,null,null,null,null,null,null,null,null,null,null,null,null,null,null,"","","",""]
[null,null,null,null,null,null,null,null,null,null,null,null,null,null,null,null,"","","",""]
[null,null,null,null,null,null,null,null,null,null,null,null,null,null,null,null,"","","",""]
[null,null,null,null,null,null,null,null,null,null,null,null,null,null,null,null,"","","",""]
[null,null,null,null,null,null,null,null,null,null,null,null,null,null,null,null,"","","",""]
[null,null,null,null,null,null,null,null,null,null,null,null,null,null,null,null,"","","",""]
[null,null,null,null,null,null,null,null,null,null,null,null,null,null,null,null,"","","",""]
[null,null,null,null,null,null,null,null,null,null,null,null,null,null,null,null,"","","",""]
[null,null,null,null,null,null,null,null,null,null,null,null,null,null,null,null,"","","",""]
[null,null,null,null,null,null,null,null,null,null,null,null,null,null,null,null,"","","",""]
[null,null,null,null,null,null,null,null,null,null,null,null,null,null,null,null,"","","",""]
[null,null,null,null,null,null,null,null,null,null,null,null,null,null,null,null,"","","",""]
[null,null,null,null,null,null,null,null,null,null,null,null,null,null,null,null,"","","",""]
[null,null,null,null,null,null,null,null,null,null,null,null,null,null,null,null,"","","",""]
[null,null,null,null,null,null,null,null,null,null,null,null,null,null,null,null,"","","",""]
[null,null,null,null,null,null,null,null,null,null,null,null,null,null,null,null,"","","",""]
[null,null,null,null,null,null,null,null,null,null,null,null,null,null,null,null,"","","",""]
[null,null,null,null,null,null,null,null,null,null,null,null,null,null,null,null,"","","",""]
[null,null,null,null,null,null,null,null,null,null,null,null,null,null,null,null,"","","",""]
[null,null,null,null,null,null,null,null,null,null,null,null,null,null,null,null,"","","",""]
[null,null,null,null,null,null,null,null,null,null,null,null,null,null,null,null,{"$f":"IFERROR(M969/I969,\"\")","v":""},{"$f":"IFERROR(N969/J969,\"\")","v":""},{"$f":"IFERROR(O969/K969,\"\")","v":""},{"$f":"IFERROR(P969/L969,\"\")","v":""}]
[null,null,null,null,null,null,null,null,null,null,null,null,null,null,null,null,"","","",""]
[null,null,null,null,null,null,null,null,null,null,null,null,null,null,null,null,"","","",""]
[null,null,null,null,null,null,null,null,null,null,null,null,null,null,null,null,"","","",""]
[null,null,null,null,null,null,null,null,null,null,null,null,null,null,null,null,"","","",""]
[null,null,null,null,null,null,null,null,null,null,null,null,null,null,null,null,"","","",""]
[null,null,null,null,null,null,null,null,null,null,null,null,null,null,null,null,"","","",""]
[null,null,null,null,null,null,null,null,null,null,null,null,null,null,null,null,"","","",""]
[null,null,null,null,null,null,null,null,null,null,null,null,null,null,null,null,"","","",""]
[null,null,null,null,null,null,null,null,null,null,null,null,null,null,null,null,"","","",""]
[null,null,null,null,null,null,null,null,null,null,null,null,null,null,null,null,"","","",""]
[null,null,null,null,null,null,null,null,null,null,null,null,null,null,null,null,"","","",""]
[null,null,null,null,null,null,null,null,null,null,null,null,null,null,null,null,"","","",""]
[null,null,null,null,null,null,null,null,null,null,null,null,null,null,null,null,"","","",""]
[null,null,null,null,null,null,null,null,null,null,null,null,null,null,null,null,"","","",""]
[null,null,null,null,null,null,null,null,null,null,null,null,null,null,null,null,"","","",""]
[null,null,null,null,null,null,null,null,null,null,null,null,null,null,null,null,"","","",""]
[null,null,null,null,null,null,null,null,null,null,null,null,null,null,null,null,"","","",""]
[null,null,null,null,null,null,null,null,null,null,null,null,null,null,null,null,"","","",""]
[null,null,null,null,null,null,null,null,null,null,null,null,null,null,null,null,"","","",""]
[null,null,null,null,null,null,null,null,null,null,null,null,null,null,null,null,"","","",""]
[null,null,null,null,null,null,null,null,null,null,null,null,null,null,null,null,"","","",""]
[null,null,null,null,null,null,null,null,null,null,null,null,null,null,null,null,"","","",""]
[null,null,null,null,null,null,null,null,null,null,null,null,null,null,null,null,"","","",""]
[null,null,null,null,null,null,null,null,null,null,null,null,null,null,null,null,"","","",""]
[null,null,null,null,null,null,null,null,null,null,null,null,null,null,null,null,"","","",""]
[null,null,null,null,null,null,null,null,null,null,null,null,null,null,null,null,"","","",""]
[null,null,null,null,null,null,null,null,null,null,null,null,null,null,null,null,"","","",""]
[null,null,null,null,null,null,null,null,null,null,null,null,null,null,null,null,"","","",""]
[null,null,null,null,null,null,null,null,null,null,null,null,null,null,null,null,"","","",""]
[null,null,null,null,null,null,null,null,null,null,null,null,null,null,null,null,"","","",""]
[null,null,null,null,null,null,null,null,null,null,null,null,null,null,null,null,"","","",""]
[null,null,null,null,null,null,null,null,null,null,null,null,null,null,null,null,"","","",""]
[null,null,null,null,null,null,null,null,null,null,null,null,null,null,null,null,"","","",""]
[null,null,null,null,null,null,null,null,null,null,null,null,null,null,null,null,"","","",""]
[null,null,null,null,null,null,null,null,null,null,null,null,null,null,null,null,"","","",""]
[null,null,null,null,null,null,null,null,null,null,null,null,null,null,null,null,"","","",""]
[null,null,null,null,null,null,null,null,null,null,null,null,null,null,null,null,"","","",""]
[null,null,null,null,null,null,null,null,null,null,null,null,null,null,null,null,"","","",""]
[null,null,null,null,null,null,null,null,null,null,null,null,null,null,null,null,"","","",""]
[null,null,null,null,null,null,null,null,null,null,null,null,null,null,null,null,"","","",""]
[null,null,null,null,null,null,null,null,null,null,null,null,null,null,null,null,"","","",""]
[null,null,null,null,null,null,null,null,null,null,null,null,null,null,null,null,"","","",""]
[null,null,null,null,null,null,null,null,null,null,null,null,null,null,null,null,"","","",""]
[null,null,null,null,null,null,null,null,null,null,null,null,null,null,null,null,"","","",""]
[null,null,null,null,null,null,null,null,null,null,null,null,null,null,null,null,"","","",""]
[null,null,null,null,null,null,null,null,null,null,null,null,null,null,null,null,"","","",""]
[null,null,null,null,null,null,null,null,null,null,null,null,null,null,null,null,"","","",""]
[null,null,null,null,null,null,null,null,null,null,null,null,null,null,null,null,"","","",""]
[null,null,null,null,null,null,null,null,null,null,null,null,null,null,null,null,"","","",""]
[null,null,null,null,null,null,null,null,null,null,null,null,null,null,null,null,"","","",""]
[null,null,null,null,null,null,null,null,null,null,null,null,null,null,null,null,"","","",""]
[null,null,null,null,null,null,null,null,null,null,null,null,null,null,null,null,"","","",""]
[null,null,null,null,null,null,null,null,null,null,null,null,null,null,null,null,"","","",""]
[null,null,null,null,null,null,null,null,null,null,null,null,null,null,null,null,"","","",""]
[null,null,null,null,null,null,null,null,null,null,null,null,null,null,null,null,"","","",""]
[null,null,null,null,null,null,null,null,null,null,null,null,null,null,null,null,"","","",""]
[null,null,null,null,null,null,null,null,null,null,null,null,null,null,null,null,"","","",""]
[null,null,null,null,null,null,null,null,null,null,null,null,null,null,null,null,"","","",""]
[null,null,null,null,null,null,null,null,null,null,null,null,null,null,null,null,"","","",""]
[null,null,null,null,null,null,null,null,null,null,null,null,null,null,null,null,"","","",""]
[null,null,null,null,null,null,null,null,null,null,null,null,null,null,null,null,"","","",""]
[null,null,null,null,null,null,null,null,null,null,null,null,null,null,null,null,"","","",""]
[null,null,null,null,null,null,null,null,null,null,null,null,null,null,null,null,"","","",""]
[null,null,null,null,null,null,null,null,null,null,null,null,null,null,null,null,{"$f":"IFERROR(M1033/I1033,\"\")","v":""},{"$f":"IFERROR(N1033/J1033,\"\")","v":""},{"$f":"IFERROR(O1033/K1033,\"\")","v":""},{"$f":"IFERROR(P1033/L1033,\"\")","v":""}]
[null,null,null,null,null,null,null,null,null,null,null,null,null,null,null,null,"","","",""]
[null,null,null,null,null,null,null,null,null,null,null,null,null,null,null,null,"","","",""]
[null,null,null,null,null,null,null,null,null,null,null,null,null,null,null,null,"","","",""]
[null,null,null,null,null,null,null,null,null,null,null,null,null,null,null,null,"","","",""]
[null,null,null,null,null,null,null,null,null,null,null,null,null,null,null,null,"","","",""]
[null,null,null,null,null,null,null,null,null,null,null,null,null,null,null,null,"","","",""]
[null,null,null,null,null,null,null,null,null,null,null,null,null,null,null,null,"","","",""]
[null,null,null,null,null,null,null,null,null,null,null,null,null,null,null,null,"","","",""]
[null,null,null,null,null,null,null,null,null,null,null,null,null,null,null,null,"","","",""]
[null,null,null,null,null,null,null,null,null,null,null,null,null,null,null,null,"","","",""]
[null,null,null,null,null,null,null,null,null,null,null,null,null,null,null,null,"","","",""]
[null,null,null,null,null,null,null,null,null,null,null,null,null,null,null,null,"","","",""]
[null,null,null,null,null,null,null,null,null,null,null,null,null,null,null,null,"","","",""]
[null,null,null,null,null,null,null,null,null,null,null,null,null,null,null,null,"","","",""]
[null,null,null,null,null,null,null,null,null,null,null,null,null,null,null,null,"","","",""]
[null,null,null,null,null,null,null,null,null,null,null,null,null,null,null,null,"","","",""]
[null,null,null,null,null,null,null,null,null,null,null,null,null,null,null,null,"","","",""]
[null,null,null,null,null,null,null,null,null,null,null,null,null,null,null,null,"","","",""]
[null,null,null,null,null,null,null,null,null,null,null,null,null,null,null,null,"","","",""]
[null,null,null,null,null,null,null,null,null,null,null,null,null,null,null,null,"","","",""]
[null,null,null,null,null,null,null,null,null,null,null,null,null,null,null,null,"","","",""]
[null,null,null,null,null,null,null,null,null,null,null,null,null,null,null,null,"","","",""]
[null,null,null,null,null,null,null,null,null,null,null,null,null,null,null,null,"","","",""]
[null,null,null,null,null,null,null,null,null,null,null,null,null,null,null,null,"","","",""]
[null,null,null,null,null,null,null,null,null,null,null,null,null,null,null,null,"","","",""]
[null,null,null,null,null,null,null,null,null,null,null,null,null,null,null,null,"","","",""]
[null,null,null,null,null,null,null,null,null,null,null,null,null,null,null,null,"","","",""]
[null,null,null,null,null,null,null,null,null,null,null,null,null,null,null,null,"","","",""]
[null,null,null,null,null,null,null,null,null,null,null,null,null,null,null,null,"","","",""]
[null,null,null,null,null,null,null,null,null,null,null,null,null,null,null,null,"","","",""]
[null,null,null,null,null,null,null,null,null,null,null,null,null,null,null,null,"","","",""]
[null,null,null,null,null,null,null,null,null,null,null,null,null,null,null,null,"","","",""]
[null,null,null,null,null,null,null,null,null,null,null,null,null,null,null,null,"","","",""]
[null,null,null,null,null,null,null,null,null,null,null,null,null,null,null,null,"","","",""]
[null,null,null,null,null,null,null,null,null,null,null,null,null,null,null,null,"","","",""]
[null,null,null,null,null,null,null,null,null,null,null,null,null,null,null,null,"","","",""]
[null,null,null,null,null,null,null,null,null,null,null,null,null,null,null,null,"","","",""]
[null,null,null,null,null,null,null,null,null,null,null,null,null,null,null,null,"","","",""]
[null,null,null,null,null,null,null,null,null,null,null,null,null,null,null,null,"","","",""]
[null,null,null,null,null,null,null,null,null,null,null,null,null,null,null,null,"","","",""]
[null,null,null,null,null,null,null,null,null,null,null,null,null,null,null,null,"","","",""]
[null,null,null,null,null,null,null,null,null,null,null,null,null,null,null,null,"","","",""]
[null,null,null,null,null,null,null,null,null,null,null,null,null,null,null,null,"","","",""]
[null,null,null,null,null,null,null,null,null,null,null,null,null,null,null,null,"","","",""]
[null,null,null,null,null,null,null,null,null,null,null,null,null,null,null,null,"","","",""]
[null,null,null,null,null,null,null,null,null,null,null,null,null,null,null,null,"","","",""]
[null,null,null,null,null,null,null,null,null,null,null,null,null,null,null,null,"","","",""]
[null,null,null,null,null,null,null,null,null,null,null,null,null,null,null,null,"","","",""]
[null,null,null,null,null,null,null,null,null,null,null,null,null,null,null,null,"","","",""]
[null,null,null,null,null,null,null,null,null,null,null,null,null,null,null,null,"","","",""]
[null,null,null,null,null,null,null,null,null,null,null,null,null,null,null,null,"","","",""]
[null,null,null,null,null,null,null,null,null,null,null,null,null,null,null,null,"","","",""]
[null,null,null,null,null,null,null,null,null,null,null,null,null,null,null,null,"","","",""]
[null,null,null,null,null,null,null,null,null,null,null,null,null,null,null,null,"","","",""]
[null,null,null,null,null,null,null,null,null,null,null,null,null,null,null,null,"","","",""]
[null,null,null,null,null,null,null,null,null,null,null,null,null,null,null,null,"","","",""]
[null,null,null,null,null,null,null,null,null,null,null,null,null,null,null,null,"","","",""]
[null,null,null,null,null,null,null,null,null,null,null,null,null,null,null,null,"","","",""]
[null,null,null,null,null,null,null,null,null,null,null,null,null,null,null,null,"","","",""]
[null,null,null,null,null,null,null,null,null,null,null,null,null,null,null,null,"","","",""]
[null,null,null,null,null,null,null,null,null,null,null,null,null,null,null,null,"","","",""]
[null,null,null,null,null,null,null,null,null,null,null,null,null,null,null,null,"","","",""]
[null,null,null,null,null,null,null,null,null,null,null,null,null,null,null,null,"","","",""]
[null,null,null,null,null,null,null,null,null,null,null,null,null,null,null,null,{"$f":"IFERROR(M1097/I1097,\"\")","v":""},{"$f":"IFERROR(N1097/J1097,\"\")","v":""},{"$f":"IFERROR(O1097/K1097,\"\")","v":""},{"$f":"IFERROR(P1097/L1097,\"\")","v":""}]
[null,null,null,null,null,null,null,null,null,null,null,null,null,null,null,null,"","","",""]
[null,null,null,null,null,null,null,null,null,null,null,null,null,null,null,null,"","","",""]
[null,null,null,null,null,null,null,null,null,null,null,null,null,null,null,null,"","","",""]
[null,null,null,null,null,null,null,null,null,null,null,null,null,null,null,null,"","","",""]
[null,null,null,null,null,null,null,null,null,null,null,null,null,null,null,null,"","","",""]
[null,null,null,null,null,null,null,null,null,null,null,null,null,null,null,null,"","","",""]
[null,null,null,null,null,null,null,null,null,null,null,null,null,null,null,null,"","","",""]
[null,null,null,null,null,null,null,null,null,null,null,null,null,null,null,null,"","","",""]
[null,null,null,null,null,null,null,null,null,null,null,null,null,null,null,null,"","","",""]
[null,null,null,null,null,null,null,null,null,null,null,null,null,null,null,null,"","","",""]
[null,null,null,null,null,null,null,null,null,null,null,null,null,null,null,null,"","","",""]
[null,null,null,null,null,null,null,null,null,null,null,null,null,null,null,null,"","","",""]
[null,null,null,null,null,null,null,null,null,null,null,null,null,null,null,null,"","","",""]
[null,null,null,null,null,null,null,null,null,null,null,null,null,null,null,null,"","","",""]
[null,null,null,null,null,null,null,null,null,null,null,null,null,null,null,null,"","","",""]
[null,null,null,null,null,null,null,null,null,null,null,null,null,null,null,null,"","","",""]
[null,null,null,null,null,null,null,null,null,null,null,null,null,null,null,null,"","","",""]
[null,null,null,null,null,null,null,null,null,null,null,null,null,null,null,null,"","","",""]
[null,null,null,null,null,null,null,null,null,null,null,null,null,null,null,null,"","","",""]
[null,null,null,null,null,null,null,null,null,null,null,null,null,null,null,null,"","","",""]
[null,null,null,null,null,null,null,null,null,null,null,null,null,null,null,null,"","","",""]
[null,null,null,null,null,null,null,null,null,null,null,null,null,null,null,null,"","","",""]
[null,null,null,null,null,null,null,null,null,null,null,null,null,null,null,null,"","","",""]
[null,null,null,null,null,null,null,null,null,null,null,null,null,null,null,null,"","","",""]
[null,null,null,null,null,null,null,null,null,null,null,null,null,null,null,null,"","","",""]
[null,null,null,null,null,null,null,null,null,null,null,null,null,null,null,null,"","","",""]
[null,null,null,null,null,null,null,null,null,null,null,null,null,null,null,null,"","","",""]
[null,null,null,null,null,null,null,null,null,null,null,null,null,null,null,null,"","","",""]
[null,null,null,null,null,null,null,null,null,null,null,null,null,null,null,null,"","","",""]
[null,null,null,null,null,null,null,null,null,null,null,null,null,null,null,null,"","","",""]
[null,null,null,null,null,null,null,null,null,null,null,null,null,null,null,null,"","","",""]
[null,null,null,null,null,null,null,null,null,null,null,null,null,null,null,null,"","","",""]
[null,null,null,null,null,null,null,null,null,null,null,null,null,null,null,null,"","","",""]
[null,null,null,null,null,null,null,null,null,null,null,null,null,null,null,null,"","","",""]
[null,null,null,null,null,null,null,null,null,null,null,null,null,null,null,null,"","","",""]
[null,null,null,null,null,null,null,null,null,null,null,null,null,null,null,null,"","","",""]
[null,null,null,null,null,null,null,null,null,null,null,null,null,null,null,null,"","","",""]
[null,null,null,null,null,null,null,null,null,null,null,null,null,null,null,null,"","","",""]
[null,null,null,null,null,null,null,null,null,null,null,null,null,null,null,null,"","","",""]
[null,null,null,null,null,null,null,null,null,null,null,null,null,null,null,null,"","","",""]
[null,null,null,null,null,null,null,null,null,null,null,null,null,null,null,null,"","","",""]
[null,null,null,null,null,null,null,null,null,null,null,null,null,null,null,null,"","","",""]
[null,null,null,null,null,null,null,null,null,null,null,null,null,null,null,null,"","","",""]
[null,null,null,null,null,null,null,null,null,null,null,null,null,null,null,null,"","","",""]
[null,null,null,null,null,null,null,null,null,null,null,null,null,null,null,null,"","","",""]
[null,null,null,null,null,null,null,null,null,null,null,null,null,null,null,null,"","","",""]
[null,null,null,null,null,null,null,null,null,null,null,null,null,null,null,null,"","","",""]
[null,null,null,null,null,null,null,null,null,null,null,null,null,null,null,null,"","","",""]
[null,null,null,null,null,null,null,null,null,null,null,null,null,null,null,null,"","","",""]
[null,null,null,null,null,null,null,null,null,null,null,null,null,null,null,null,"","","",""]
[null,null,null,null,null,null,null,null,null,null,null,null,null,null,null,null,"","","",""]
[null,null,null,null,null,null,null,null,null,null,null,null,null,null,null,null,"","","",""]
[null,null,null,null,null,null,null,null,null,null,null,null,null,null,null,null,"","","",""]
[null,null,null,null,null,null,null,null,null,null,null,null,null,null,null,null,"","","",""]
[null,null,null,null,null,null,null,null,null,null,null,null,null,null,null,null,"","","",""]
[null,null,null,null,null,null,null,null,null,null,null,null,null,null,null,null,"","","",""]
[null,null,null,null,null,null,null,null,null,null,null,null,null,null,null,null,"","","",""]
[null,null,null,null,null,null,null,null,null,null,null,null,null,null,null,null,"","","",""]
[null,null,null,null,null,null,null,null,null,null,null,null,null,null,null,null,"","","",""]
[null,null,null,null,null,null,null,null,null,null,null,null,null,null,null,null,"","","",""]
[null,null,null,null,null,null,null,null,null,null,null,null,null,null,null,null,"","","",""]
[null,null,null,null,null,null,null,null,null,null,null,null,null,null,null,null,"","","",""]
[null,null,null,null,null,null,null,null,null,null,null,null,null,null,null,null,"","","",""]
[null,null,null,null,null,null,null,null,null,null,null,null,null,null,null,null,{"$f":"IFERROR(M1161/I1161,\"\")","v":""},{"$f":"IFERROR(N1161/J1161,\"\")","v":""},{"$f":"IFERROR(O1161/K1161,\"\")","v":""},{"$f":"IFERROR(P1161/L1161,\"\")","v":""}]
[null,null,null,null,null,null,null,null,null,null,null,null,null,null,null,null,"","","",""]
[null,null,null,null,null,null,null,null,null,null,null,null,null,null,null,null,"","","",""]
[null,null,null,null,null,null,null,null,null,null,null,null,null,null,null,null,"","","",""]
[null,null,null,null,null,null,null,null,null,null,null,null,null,null,null,null,"","","",""]
[null,null,null,null,null,null,null,null,null,null,null,null,null,null,null,null,"","","",""]
[null,null,null,null,null,null,null,null,null,null,null,null,null,null,null,null,"","","",""]
[null,null,null,null,null,null,null,null,null,null,null,null,null,null,null,null,"","","",""]
[null,null,null,null,null,null,null,null,null,null,null,null,null,null,null,null,"","","",""]
[null,null,null,null,null,null,null,null,null,null,null,null,null,null,null,null,"","","",""]
[null,null,null,null,null,null,null,null,null,null,null,null,null,null,null,null,"","","",""]
[null,null,null,null,null,null,null,null,null,null,null,null,null,null,null,null,"","","",""]
[null,null,null,null,null,null,null,null,null,null,null,null,null,null,null,null,"","","",""]
[null,null,null,null,null,null,null,null,null,null,null,null,null,null,null,null,"","","",""]
[null,null,null,null,null,null,null,null,null,null,null,null,null,null,null,null,"","","",""]
[null,null,null,null,null,null,null,null,null,null,null,null,null,null,null,null,"","","",""]
[null,null,null,null,null,null,null,null,null,null,null,null,null,null,null,null,"","","",""]
[null,null,null,null,null,null,null,null,null,null,null,null,null,null,null,null,"","","",""]
[null,null,null,null,null,null,null,null,null,null,null,null,null,null,null,null,"","","",""]
[null,null,null,null,null,null,null,null,null,null,null,null,null,null,null,null,"","","",""]
[null,null,null,null,null,null,null,null,null,null,null,null,null,null,null,null,"","","",""]
[null,null,null,null,null,null,null,null,null,null,null,null,null,null,null,null,"","","",""]
[null,null,null,null,null,null,null,null,null,null,null,null,null,null,null,null,"","","",""]
[null,null,null,null,null,null,null,null,null,null,null,null,null,null,null,null,"","","",""]
[null,null,null,null,null,null,null,null,null,null,null,null,null,null,null,null,"","","",""]
[null,null,null,null,null,null,null,null,null,null,null,null,null,null,null,null,"","","",""]
[null,null,null,null,null,null,null,null,null,null,null,null,null,null,null,null,"","","",""]
[null,null,null,null,null,null,null,null,null,null,null,null,null,null,null,null,"","","",""]
[null,null,null,null,null,null,null,null,null,null,null,null,null,null,null,null,"","","",""]
[null,null,null,null,null,null,null,null,null,null,null,null,null,null,null,null,"","","",""]
[null,null,null,null,null,null,null,null,null,null,null,null,null,null,null,null,"","","",""]
[null,null,null,null,null,null,null,null,null,null,null,null,null,null,null,null,"","","",""]
[null,null,null,null,null,null,null,null,null,null,null,null,null,null,null,null,"","","",""]
[null,null,null,null,null,null,null,null,null,null,null,null,null,null,null,null,"","","",""]
[null,null,null,null,null,null,null,null,null,null,null,null,null,null,null,null,"","","",""]
[null,null,null,null,null,null,null,null,null,null,null,null,null,null,null,null,"","","",""]
[null,null,null,null,null,null,null,null,null,null,null,null,null,null,null,null,"","","",""]
[null,null,null,null,null,null,null,null,null,null,null,null,null,null,null,null,"","","",""]
[null,null,null,null,null,null,null,null,null,null,null,null,null,null,null,null,"","","",""]
[null,null,null,null,null,null,null,null,null,null,null,null,null,null,null,null,"","","",""]
[null,null,null,null,null,null,null,null,null,null,null,null,null,null,null,null,"","","",""]
[null,null,null,null,null,null,null,null,null,null,null,null,null,null,null,null,"","","",""]
[null,null,null,null,null,null,null,null,null,null,null,null,null,null,null,null,"","","",""]
[null,null,null,null,null,null,null,null,null,null,null,null,null,null,null,null,"","","",""]
[null,null,null,null,null,null,null,null,null,null,null,null,null,null,null,null,"","","",""]
[null,null,null,null,null,null,null,null,null,null,null,null,null,null,null,null,"","","",""]
[null,null,null,null,null,null,null,null,null,null,null,null,null,null,null,null,"","","",""]
[null,null,null,null,null,null,null,null,null,null,null,null,null,null,null,null,"","","",""]
[null,null,null,null,null,null,null,null,null,null,null,null,null,null,null,null,"","","",""]
[null,null,null,null,null,null,null,null,null,null,null,null,null,null,null,null,"","","",""]
[null,null,null,null,null,null,null,null,null,null,null,null,null,null,null,null,"","","",""]
[null,null,null,null,null,null,null,null,null,null,null,null,null,null,null,null,"","","",""]
[null,null,null,null,null,null,null,null,null,null,null,null,null,null,null,null,"","","",""]
[null,null,null,null,null,null,null,null,null,null,null,null,null,null,null,null,"","","",""]
[null,null,null,null,null,null,null,null,null,null,null,null,null,null,null,null,"","","",""]
[null,null,null,null,null,null,null,null,null,null,null,null,null,null,null,null,"","","",""]
[null,null,null,null,null,null,null,null,null,null,null,null,null,null,null,null,"","","",""]
[null,null,null,null,null,null,null,null,null,null,null,null,null,null,null,null,"","","",""]
[null,null,null,null,null,null,null,null,null,null,null,null,null,null,null,null,"","","",""]
[null,null,null,null,null,null,null,null,null,null,null,null,null,null,null,null,"","","",""]
[null,null,null,null,null,null,null,null,null,null,null,null,null,null,null,null,"","","",""]
[null,null,null,null,null,null,null,null,null,null,null,null,null,null,null,null,"","","",""]
[null,null,null,null,null,null,null,null,null,null,null,null,null,null,null,null,"","","",""]
[null,null,null,null,null,null,null,null,null,null,null,null,null,null,null,null,"","","",""]
[null,null,null,null,null,null,null,null,null,null,null,null,null,null,null,null,{"$f":"IFERROR(M1225/I1225,\"\")","v":""},{"$f":"IFERROR(N1225/J1225,\"\")","v":""},{"$f":"IFERROR(O1225/K1225,\"\")","v":""},{"$f":"IFERROR(P1225/L1225,\"\")","v":""}]
[null,null,null,null,null,null,null,null,null,null,null,null,null,null,null,null,"","","",""]
[null,null,null,null,null,null,null,null,null,null,null,null,null,null,null,null,"","","",""]
[null,null,null,null,null,null,null,null,null,null,null,null,null,null,null,null,"","","",""]
[null,null,null,null,null,null,null,null,null,null,null,null,null,null,null,null,"","","",""]
[null,null,null,null,null,null,null,null,null,null,null,null,null,null,null,null,"","","",""]
[null,null,null,null,null,null,null,null,null,null,null,null,null,null,null,null,"","","",""]
[null,null,null,null,null,null,null,null,null,null,null,null,null,null,null,null,"","","",""]
[null,null,null,null,null,null,null,null,null,null,null,null,null,null,null,null,"","","",""]
[null,null,null,null,null,null,null,null,null,null,null,null,null,null,null,null,"","","",""]
[null,null,null,null,null,null,null,null,null,null,null,null,null,null,null,null,"","","",""]
[null,null,null,null,null,null,null,null,null,null,null,null,null,null,null,null,"","","",""]
[null,null,null,null,null,null,null,null,null,null,null,null,null,null,null,null,"","","",""]
[null,null,null,null,null,null,null,null,null,null,null,null,null,null,null,null,"","","",""]
[null,null,null,null,null,null,null,null,null,null,null,null,null,null,null,null,"","","",""]
[null,null,null,null,null,null,null,null,null,null,null,null,null,null,null,null,"","","",""]
[null,null,null,null,null,null,null,null,null,null,null,null,null,null,null,null,"","","",""]
[null,null,null,null,null,null,null,null,null,null,null,null,null,null,null,null,"","","",""]
[null,null,null,null,null,null,null,null,null,null,null,null,null,null,null,null,"","","",""]
[null,null,null,null,null,null,null,null,null,null,null,null,null,null,null,null,"","","",""]
[null,null,null,null,null,null,null,null,null,null,null,null,null,null,null,null,"","","",""]
[null,null,null,null,null,null,null,null,null,null,null,null,null,null,null,null,"","","",""]
[null,null,null,null,null,null,null,null,null,null,null,null,null,null,null,null,"","","",""]
[null,null,null,null,null,null,null,null,null,null,null,null,null,null,null,null,"","","",""]
[null,null,null,null,null,null,null,null,null,null,null,null,null,null,null,null,"","","",""]
[null,null,null,null,null,null,null,null,null,null,null,null,null,null,null,null,"","","",""]
[null,null,null,null,null,null,null,null,null,null,null,null,null,null,null,null,"","","",""]
[null,null,null,null,null,null,null,null,null,null,null,null,null,null,null,null,"","","",""]
[null,null,null,null,null,null,null,null,null,null,null,null,null,null,null,null,"","","",""]
[null,null,null,null,null,null,null,null,null,null,null,null,null,null,null,null,"","","",""]
[null,null,null,null,null,null,null,null,null,null,null,null,null,null,null,null,"","","",""]
[null,null,null,null,null,null,null,null,null,null,null,null,null,null,null,null,"","","",""]
[null,null,null,null,null,null,null,null,null,null,null,null,null,null,null,null,"","","",""]
[null,null,null,null,null,null,null,null,null,null,null,null,null,null,null,null,"","","",""]
[null,null,null,null,null,null,null,null,null,null,null,null,null,null,null,null,"","","",""]
[null,null,null,null,null,null,null,null,null,null,null,null,null,null,null,null,"","","",""]
[null,null,null,null,null,null,null,null,null,null,null,null,null,null,null,null,"","","",""]
[null,null,null,null,null,null,null,null,null,null,null,null,null,null,null,null,"","","",""]
[null,null,null,null,null,null,null,null,null,null,null,null,null,null,null,null,"","","",""]
[null,null,null,null,null,null,null,null,null,null,null,null,null,null,null,null,"","","",""]
[null,null,null,null,null,null,null,null,null,null,null,null,null,null,null,null,"","","",""]
[null,null,null,null,null,null,null,null,null,null,null,null,null,null,null,null,"","","",""]
[null,null,null,null,null,null,null,null,null,null,null,null,null,null,null,null,"","","",""]
[null,null,null,null,null,null,null,null,null,null,null,null,null,null,null,null,"","","",""]
[null,null,null,null,null,null,null,null,null,null,null,null,null,null,null,null,"","","",""]
[null,null,null,null,null,null,null,null,null,null,null,null,null,null,null,null,"","","",""]
[null,null,null,null,null,null,null,null,null,null,null,null,null,null,null,null,"","","",""]
[null,null,null,null,null,null,null,null,null,null,null,null,null,null,null,null,"","","",""]
[null,null,null,null,null,null,null,null,null,null,null,null,null,null,null,null,"","","",""]
[null,null,null,null,null,null,null,null,null,null,null,null,null,null,null,null,"","","",""]
[null,null,null,null,null,null,null,null,null,null,null,null,null,null,null,null,"","","",""]
[null,null,null,null,null,null,null,null,null,null,null,null,null,null,null,null,"","","",""]
[null,null,null,null,null,null,null,null,null,null,null,null,null,null,null,null,"","","",""]
[null,null,null,null,null,null,null,null,null,null,null,null,null,null,null,null,"","","",""]
[null,null,null,null,null,null,null,null,null,null,null,null,null,null,null,null,"","","",""]
[null,null,null,null,null,null,null,null,null,null,null,null,null,null,null,null,"","","",""]
[null,null,null,null,null,null,null,null,null,null,null,null,null,null,null,null,"","","",""]
[null,null,null,null,null,null,null,null,null,null,null,null,null,null,null,null,"","","",""]
[null,null,null,null,null,null,null,null,null,null,null,null,null,null,null,null,"","","",""]
[null,null,null,null,null,null,null,null,null,null,null,null,null,null,null,null,"","","",""]
[null,null,null,null,null,null,null,null,null,null,null,null,null,null,null,null,"","","",""]
[null,null,null,null,null,null,null,null,null,null,null,null,null,null,null,null,"","","",""]
[null,null,null,null,null,null,null,null,null,null,null,null,null,null,null,null,"","","",""]
[null,null,null,null,null,null,null,null,null,null,null,null,null,null,null,null,"","","",""]
[null,null,null,null,null,null,null,null,null,null,null,null,null,null,null,null,{"$f":"IFERROR(M1289/I1289,\"\")","v":""},{"$f":"IFERROR(N1289/J1289,\"\")","v":""},{"$f":"IFERROR(O1289/K1289,\"\")","v":""},{"$f":"IFERROR(P1289/L1289,\"\")","v":""}]
[null,null,null,null,null,null,null,null,null,null,null,null,null,null,null,null,"","","",""]
[null,null,null,null,null,null,null,null,null,null,null,null,null,null,null,null,"","","",""]
[null,null,null,null,null,null,null,null,null,null,null,null,null,null,null,null,"","","",""]
[null,null,null,null,null,null,null,null,null,null,null,null,null,null,null,null,"","","",""]
[null,null,null,null,null,null,null,null,null,null,null,null,null,null,null,null,"","","",""]
[null,null,null,null,null,null,null,null,null,null,null,null,null,null,null,null,"","","",""]
[null,null,null,null,null,null,null,null,null,null,null,null,null,null,null,null,"","","",""]
[null,null,null,null,null,null,null,null,null,null,null,null,null,null,null,null,"","","",""]
[null,null,null,null,null,null,null,null,null,null,null,null,null,null,null,null,"","","",""]
[null,null,null,null,null,null,null,null,null,null,null,null,null,null,null,null,"","","",""]
[null,null,null,null,null,null,null,null,null,null,null,null,null,null,null,null,"","","",""]
[null,null,null,null,null,null,null,null,null,null,null,null,null,null,null,null,"","","",""]
[null,null,null,null,null,null,null,null,null,null,null,null,null,null,null,null,"","","",""]
[null,null,null,null,null,null,null,null,null,null,null,null,null,null,null,null,"","","",""]
[null,null,null,null,null,null,null,null,null,null,null,null,null,null,null,null,"","","",""]
[null,null,null,null,null,null,null,null,null,null,null,null,null,null,null,null,"","","",""]
[null,null,null,null,null,null,null,null,null,null,null,null,null,null,null,null,"","","",""]
[null,null,null,null,null,null,null,null,null,null,null,null,null,null,null,null,"","","",""]
[null,null,null,null,null,null,null,null,null,null,null,null,null,null,null,null,"","","",""]
[null,null,null,null,null,null,null,null,null,null,null,null,null,null,null,null,"","","",""]
[null,null,null,null,null,null,null,null,null,null,null,null,null,null,null,null,"","","",""]
[null,null,null,null,null,null,null,null,null,null,null,null,null,null,null,null,"","","",""]
[null,null,null,null,null,null,null,null,null,null,null,null,null,null,null,null,"","","",""]
[null,null,null,null,null,null,null,null,null,null,null,null,null,null,null,null,"","","",""]
[null,null,null,null,null,null,null,null,null,null,null,null,null,null,null,null,"","","",""]
[null,null,null,null,null,null,null,null,null,null,null,null,null,null,null,null,"","","",""]
[null,null,null,null,null,null,null,null,null,null,null,null,null,null,null,null,"","","",""]
[null,null,null,null,null,null,null,null,null,null,null,null,null,null,null,null,"","","",""]
[null,null,null,null,null,null,null,null,null,null,null,null,null,null,null,null,"","","",""]
[null,null,null,null,null,null,null,null,null,null,null,null,null,null,null,null,"","","",""]
[null,null,null,null,null,null,null,null,null,null,null,null,null,null,null,null,"","","",""]
[null,null,null,null,null,null,null,null,null,null,null,null,null,null,null,null,"","","",""]
[null,null,null,null,null,null,null,null,null,null,null,null,null,null,null,null,"","","",""]
[null,null,null,null,null,null,null,null,null,null,null,null,null,null,null,null,"","","",""]
[null,null,null,null,null,null,null,null,null,null,null,null,null,null,null,null,"","","",""]
[null,null,null,null,null,null,null,null,null,null,null,null,null,null,null,null,"","","",""]
[null,null,null,null,null,null,null,null,null,null,null,null,null,null,null,null,"","","",""]
[null,null,null,null,null,null,null,null,null,null,null,null,null,null,null,null,"","","",""]
[null,null,null,null,null,null,null,null,null,null,null,null,null,null,null,null,"","","",""]
[null,null,null,null,null,null,null,null,null,null,null,null,null,null,null,null,"","","",""]
[null,null,null,null,null,null,null,null,null,null,null,null,null,null,null,null,"","","",""]
[null,null,null,null,null,null,null,null,null,null,null,null,null,null,null,null,"","","",""]
[null,null,null,null,null,null,null,null,null,null,null,null,null,null,null,null,"","","",""]
[null,null,null,null,null,null,null,null,null,null,null,null,null,null,null,null,"","","",""]
[null,null,null,null,null,null,null,null,null,null,null,null,null,null,null,null,"","","",""]
[null,null,null,null,null,null,null,null,null,null,null,null,null,null,null,null,"","","",""]
[null,null,null,null,null,null,null,null,null,null,null,null,null,null,null,null,"","","",""]
[null,null,null,null,null,null,null,null,null,null,null,null,null,null,null,null,"","","",""]
[null,null,null,null,null,null,null,null,null,null,null,null,null,null,null,null,"","","",""]
[null,null,null,null,null,null,null,null,null,null,null,null,null,null,null,null,"","","",""]
[null,null,null,null,null,null,null,null,null,null,null,null,null,null,null,null,"","","",""]
[null,null,null,null,null,null,null,null,null,null,null,null,null,null,null,null,"","","",""]
[null,null,null,null,null,null,null,null,null,null,null,null,null,null,null,null,"","","",""]
[null,null,null,null,null,null,null,null,null,null,null,null,null,null,null,null,"","","",""]
[null,null,null,null,null,null,null,null,null,null,null,null,null,null,null,null,"","","",""]
[null,null,null,null,null,null,null,null,null,null,null,null,null,null,null,null,"","","",""]
[null,null,null,null,null,null,null,null,null,null,null,null,null,null,null,null,"","","",""]
[null,null,null,null,null,null,null,null,null,null,null,null,null,null,null,null,"","","",""]
[null,null,null,null,null,null,null,null,null,null,null,null,null,null,null,null,"","","",""]
[null,null,null,null,null,null,null,null,null,null,null,null,null,null,null,null,"","","",""]
[null,null,null,null,null,null,null,null,null,null,null,null,null,null,null,null,"","","",""]
[null,null,null,null,null,null,null,null,null,null,null,null,null,null,null,null,"","","",""]
[null,null,null,null,null,null,null,null,null,null,null,null,null,null,null,null,"","","",""]
[null,null,null,null,null,null,null,null,null,null,null,null,null,null,null,null,{"$f":"IFERROR(M1353/I1353,\"\")","v":""},{"$f":"IFERROR(N1353/J1353,\"\")","v":""},{"$f":"IFERROR(O1353/K1353,\"\")","v":""},{"$f":"IFERROR(P1353/L1353,\"\")","v":""}]
[null,null,null,null,null,null,null,null,null,null,null,null,null,null,null,null,"","","",""]
[null,null,null,null,null,null,null,null,null,null,null,null,null,null,null,null,"","","",""]
[null,null,null,null,null,null,null,null,null,null,null,null,null,null,null,null,"","","",""]
[null,null,null,null,null,null,null,null,null,null,null,null,null,null,null,null,"","","",""]
[null,null,null,null,null,null,null,null,null,null,null,null,null,null,null,null,"","","",""]
[null,null,null,null,null,null,null,null,null,null,null,null,null,null,null,null,"","","",""]
[null,null,null,null,null,null,null,null,null,null,null,null,null,null,null,null,"","","",""]
[null,null,null,null,null,null,null,null,null,null,null,null,null,null,null,null,"","","",""]
[null,null,null,null,null,null,null,null,null,null,null,null,null,null,null,null,"","","",""]
[null,null,null,null,null,null,null,null,null,null,null,null,null,null,null,null,"","","",""]
[null,null,null,null,null,null,null,null,null,null,null,null,null,null,null,null,"","","",""]
[null,null,null,null,null,null,null,null,null,null,null,null,null,null,null,null,"","","",""]
[null,null,null,null,null,null,null,null,null,null,null,null,null,null,null,null,"","","",""]
[null,null,null,null,null,null,null,null,null,null,null,null,null,null,null,null,"","","",""]
[null,null,null,null,null,null,null,null,null,null,null,null,null,null,null,null,"","","",""]
[null,null,null,null,null,null,null,null,null,null,null,null,null,null,null,null,"","","",""]
[null,null,null,null,null,null,null,null,null,null,null,null,null,null,null,null,"","","",""]
[null,null,null,null,null,null,null,null,null,null,null,null,null,null,null,null,"","","",""]
[null,null,null,null,null,null,null,null,null,null,null,null,null,null,null,null,"","","",""]
[null,null,null,null,null,null,null,null,null,null,null,null,null,null,null,null,"","","",""]
[null,null,null,null,null,null,null,null,null,null,null,null,null,null,null,null,"","","",""]
[null,null,null,null,null,null,null,null,null,null,null,null,null,null,null,null,"","","",""]
[null,null,null,null,null,null,null,null,null,null,null,null,null,null,null,null,"","","",""]
[null,null,null,null,null,null,null,null,null,null,null,null,null,null,null,null,"","","",""]
[null,null,null,null,null,null,null,null,null,null,null,null,null,null,null,null,"","","",""]
[null,null,null,null,null,null,null,null,null,null,null,null,null,null,null,null,"","","",""]
[null,null,null,null,null,null,null,null,null,null,null,null,null,null,null,null,"","","",""]
[null,null,null,null,null,null,null,null,null,null,null,null,null,null,null,null,"","","",""]
[null,null,null,null,null,null,null,null,null,null,null,null,null,null,null,null,"","","",""]
[null,null,null,null,null,null,null,null,null,null,null,null,null,null,null,null,"","","",""]
[null,null,null,null,null,null,null,null,null,null,null,null,null,null,null,null,"","","",""]
[null,null,null,null,null,null,null,null,null,null,null,null,null,null,null,null,"","","",""]
[null,null,null,null,null,null,null,null,null,null,null,null,null,null,null,null,"","","",""]
[null,null,null,null,null,null,null,null,null,null,null,null,null,null,null,null,"","","",""]
[null,null,null,null,null,null,null,null,null,null,null,null,null,null,null,null,"","","",""]
[null,null,null,null,null,null,null,null,null,null,null,null,null,null,null,null,"","","",""]
[null,null,null,null,null,null,null,null,null,null,null,null,null,null,null,null,"","","",""]
[null,null,null,null,null,null,null,null,null,null,null,null,null,null,null,null,"","","",""]
[null,null,null,null,null,null,null,null,null,null,null,null,null,null,null,null,"","","",""]
[null,null,null,null,null,null,null,null,null,null,null,null,null,null,null,null,"","","",""]
[null,null,null,null,null,null,null,null,null,null,null,null,null,null,null,null,"","","",""]
[null,null,null,null,null,null,null,null,null,null,null,null,null,null,null,null,"","","",""]
[null,null,null,null,null,null,null,null,null,null,null,null,null,null,null,null,"","","",""]
[null,null,null,null,null,null,null,null,null,null,null,null,null,null,null,null,"","","",""]
[null,null,null,null,null,null,null,null,null,null,null,null,null,null,null,null,"","","",""]
[null,null,null,null,null,null,null,null,null,null,null,null,null,null,null,null,"","","",""]
[null,null,null,null,null,null,null,null,null,null,null,null,null,null,null,null,"","","",""]
[null,null,null,null,null,null,null,null,null,null,null,null,null,null,null,null,"","","",""]
[null,null,null,null,null,null,null,null,null,null,null,null,null,null,null,null,"","","",""]
[null,null,null,null,null,null,null,null,null,null,null,null,null,null,null,null,"","","",""]
[null,null,null,null,null,null,null,null,null,null,null,null,null,null,null,null,"","","",""]
[null,null,null,null,null,null,null,null,null,null,null,null,null,null,null,null,"","","",""]
[null,null,null,null,null,null,null,null,null,null,null,null,null,null,null,null,"","","",""]
[null,null,null,null,null,null,null,null,null,null,null,null,null,null,null,null,"","","",""]
[null,null,null,null,null,null,null,null,null,null,null,null,null,null,null,null,"","","",""]
[null,null,null,null,null,null,null,null,null,null,null,null,null,null,null,null,"","","",""]
[null,null,null,null,null,null,null,null,null,null,null,null,null,null,null,null,"","","",""]
[null,null,null,null,null,null,null,null,null,null,null,null,null,null,null,null,"","","",""]
[null,null,null,null,null,null,null,null,null,null,null,null,null,null,null,null,"","","",""]
[null,null,null,null,null,null,null,null,null,null,null,null,null,null,null,null,"","","",""]
[null,null,null,null,null,null,null,null,null,null,null,null,null,null,null,null,"","","",""]
[null,null,null,null,null,null,null,null,null,null,null,null,null,null,null,null,"","","",""]
[null,null,null,null,null,null,null,null,null,null,null,null,null,null,null,null,"","","",""]
[null,null,null,null,null,null,null,null,null,null,null,null,null,null,null,null,{"$f":"IFERROR(M1417/I1417,\"\")","v":""},{"$f":"IFERROR(N1417/J1417,\"\")","v":""},{"$f":"IFERROR(O1417/K1417,\"\")","v":""},{"$f":"IFERROR(P1417/L1417,\"\")","v":""}]
[null,null,null,null,null,null,null,null,null,null,null,null,null,null,null,null,"","","",""]
[null,null,null,null,null,null,null,null,null,null,null,null,null,null,null,null,"","","",""]
[null,null,null,null,null,null,null,null,null,null,null,null,null,null,null,null,"","","",""]
[null,null,null,null,null,null,null,null,null,null,null,null,null,null,null,null,"","","",""]
[null,null,null,null,null,null,null,null,null,null,null,null,null,null,null,null,"","","",""]
[null,null,null,null,null,null,null,null,null,null,null,null,null,null,null,null,"","","",""]
[null,null,null,null,null,null,null,null,null,null,null,null,null,null,null,null,"","","",""]
[null,null,null,null,null,null,null,null,null,null,null,null,null,null,null,null,"","","",""]
[null,null,null,null,null,null,null,null,null,null,null,null,null,null,null,null,"","","",""]
[null,null,null,null,null,null,null,null,null,null,null,null,null,null,null,null,"","","",""]
[null,null,null,null,null,null,null,null,null,null,null,null,null,null,null,null,"","","",""]
[null,null,null,null,null,null,null,null,null,null,null,null,null,null,null,null,"","","",""]
[null,null,null,null,null,null,null,null,null,null,null,null,null,null,null,null,"","","",""]
[null,null,null,null,null,null,null,null,null,null,null,null,null,null,null,null,"","","",""]
[null,null,null,null,null,null,null,null,null,null,null,null,null,null,null,null,"","","",""]
[null,null,null,null,null,null,null,null,null,null,null,null,null,null,null,null,"","","",""]
[null,null,null,null,null,null,null,null,null,null,null,null,null,null,null,null,"","","",""]
[null,null,null,null,null,null,null,null,null,null,null,null,null,null,null,null,"","","",""]
[null,null,null,null,null,null,null,null,null,null,null,null,null,null,null,null,"","","",""]
[null,null,null,null,null,null,null,null,null,null,null,null,null,null,null,null,"","","",""]
[null,null,null,null,null,null,null,null,null,null,null,null,null,null,null,null,"","","",""]
[null,null,null,null,null,null,null,null,null,null,null,null,null,null,null,null,"","","",""]
[null,null,null,null,null,null,null,null,null,null,null,null,null,null,null,null,"","","",""]
[null,null,null,null,null,null,null,null,null,null,null,null,null,null,null,null,"","","",""]
[null,null,null,null,null,null,null,null,null,null,null,null,null,null,null,null,"","","",""]
[null,null,null,null,null,null,null,null,null,null,null,null,null,null,null,null,"","","",""]
[null,null,null,null,null,null,null,null,null,null,null,null,null,null,null,null,"","","",""]
[null,null,null,null,null,null,null,null,null,null,null,null,null,null,null,null,"","","",""]
[null,null,null,null,null,null,null,null,null,null,null,null,null,null,null,null,"","","",""]
[null,null,null,null,null,null,null,null,null,null,null,null,null,null,null,null,"","","",""]
[null,null,null,null,null,null,null,null,null,null,null,null,null,null,null,null,"","","",""]
[null,null,null,null,null,null,null,null,null,null,null,null,null,null,null,null,"","","",""]
[null,null,null,null,null,null,null,null,null,null,null,null,null,null,null,null,"","","",""]
[null,null,null,null,null,null,null,null,null,null,null,null,null,null,null,null,"","","",""]
[null,null,null,null,null,null,null,null,null,null,null,null,null,null,null,null,"","","",""]
[null,null,null,null,null,null,null,null,null,null,null,null,null,null,null,null,"","","",""]
[null,null,null,null,null,null,null,null,null,null,null,null,null,null,null,null,"","","",""]
[null,null,null,null,null,null,null,null,null,null,null,null,null,null,null,null,"","","",""]

{"sheet":"LISTAS PERSONALIZADAS","index":11,"n_rows":3,"n_cols":2,"rows_kept":3,"cut":false,"hidden":true,"merged":[]}
[]
["OBJETIVOS ESPECÍFICOS","ESO4.1;ESO4.2;ESO4.3;ESO4.4;ESO4.5;ESO4.6;ESO4.7;ESO4.8;ESO4.9;ESO4.10;ESO4.11;ESO4.12;ESO4.13"]
["REGIONES","M;T;L;O"]

{"sheet":"Programas","index":12,"n_rows":23,"n_cols":2,"rows_kept":23,"cut":false,"hidden":true,"merged":[]}
["CCI","TÍTULO PROGRAMA"]
["2021ES05SFPR001","FSE+ Empleo Juvenil "]
["2021ES05SFPR002","FSE+ de Educación y Formación, Empleo y  Economía Social "]
["2021ES05SFPR003","FSE+ de Inclusión Social, Garantía Infantil y Lucha Contra la Pobreza "]
["2021ES05SFPR004","FSE+ de Asistencia Material Básica "]
["2021ES05SFPR005","FSE+ C.A. Andalucía "]
["2021ES05SFPR006","FSE+ C.A. Aragón "]
["2021ES05SFPR007 ","FSE+  Principado de Asturias "]
["2021ES05SFPR008","FSE+ C.A. Illes Balears "]
["2021ES05SFPR009 ","FSE+ C.A. Canarias "]
["2021ES05SFPR010 ","FSE+ C.A. Cantabria "]
["2021ES05SFPR011 ","FSE+ C.A. Cataluña "]
["2021ES05SFPR012","FSE+ C.A. Castilla-La Mancha "]
["2021ES05SFPR013 ","FSE+ C.A. Castilla y León"]
["2021ES05SFPR014","FSE+ Ciudad A. de Ceuta "]
["2021ES05SFPR015","FSE+ Comunitat Valenciana"]
["2021ES05SFPR016","FSE+ C.A. Extremadura "]
["2021ES05SFPR017","FSE+ C.A. Galicia "]
["2021ES05SFPR018","FSE+ C.A. La Rioja"]
["2021ES05SFPR019","FSE+ C. de Madrid "]
["2021ES05SFPR020","FSE+ Ciudad A. de Melilla  "]
["2021ES05SFPR021","FSE+ Región de Murcia"]
["2021ES05SFPR022","FSE+ C. Foral de Navarra"]

{"sheet":"Fondos","index":13,"n_rows":2,"n_cols":2,"rows_kept":2,"cut":false,"hidden":true,"merged":[]}
["CÓDIGO","DESCRIPCIÓN"]
["ESF","ESF+"]

{"sheet":"Tasa cofinanciación","index":14,"n_rows":9,"n_cols":5,"rows_kept":9,"cut":false,"hidden":true,"merged":[]}
[]
[]
[null,null,null,"CODIGO","Tasa de cofinanciación"]
[null,null,null,0.85,"Menos desarrolladas"]
[null,null,null,0.6,"Transición"]
[null,null,null,0.4,"Más desarrolladas"]
[null,null,null,0.85,"Regiones ultraperiféricas o regiones septentrionales escasamente pobladas"]
[null,null,null,0.9,"BASICO"]
[null,null,null,0.95,"Prioridad 6"]

{"sheet":"Prioridades","index":15,"n_rows":9,"n_cols":2,"rows_kept":9,"cut":false,"hidden":true,"merged":[]}
["CÓDIGO","PRIORIDAD"]
[1,"Empleo, adaptabilidad, emprendimiento y economía social - FSE+"]
[2,"Inclusión social - FSE+ "]
[3,"Educación y formación - FSE+ "]
[4,"Lucha contra la privación material - FSE+ "]
[5,"Empleo juvenil - FSE+"]
[6,"Acciones sociales innovadoras - FSE+ "]
[7,"Garantía Infantil - FSE+ "]
[8,"Empleo, inclusión social y educación RUP - FSE+ RUP 85%"]

{"sheet":"Objeticos específicos","index":16,"n_rows":14,"n_cols":2,"rows_kept":14,"cut":false,"hidden":true,"merged":[]}
["CÓDIGO","OBJETIVO ESPECÍFICO"]
["ESO4.1","a) mejorar el acceso al empleo y las medidas de activación para el empleo de los demandantes de empleo, en particular de los jóvenes, especialmente mediante la aplicación de la Garantía Juvenil, los desempleados de larga duración y los grupos desfavorecidos, así como de las personas inactivas, así como mediante la promoción del empleo por cuenta propia y la economía social "]
["ESO4.2","b) modernizar las instituciones y los servicios del mercado de trabajo para evaluar y prever las necesidades de capacidades y garantizar una asistencia oportuna y personalizada y el apoyo a la adecuación entre la oferta y la demanda en el mercado de trabajo,  las transiciones y la movilidad;"]
["ESO4.3","c) promover una participación equilibrada de género en el mercado de trabajo, unas condiciones de trabajo equitativas y una mejora del equilibrio entre la vida laboral y la familiar, en particular mediante el acceso a unos servicios asequibles de atención a la infancia y de atención a personas dependientes;"]
["ESO4.4","d) promover la adaptación de los trabajadores, las empresas y los emprendedores al cambio, el envejecimiento activo y saludable y un entorno de trabajo saludable y bien adaptado que aborde los riesgos para la salud;"]
["ESO4.5","e) mejorar la calidad, inclusividad, eficacia y pertinencia para el mercado laboral de los sistemas de educación y formación, también mediante la validación del aprendizaje no formal e informal, para apoyar la adquisición de competencias clave, incluidas las capacidades empresariales y digitales, y promoviendo la introducción de sistemas de formación dual y de formación de aprendices;"]
["ESO4.6","f) promover la igualdad de acceso a una educación y una formación de calidad e inclusivas y su culminación, en particular para los grupos desfavorecidos, desde la educación infantil y cuidados de la primera infancia, pasando por la educación y la formación generales y profesionales, hasta la educación superior, así como la educación y el aprendizaje de las personas adultas, facilitando también la movilidad para el aprendizaje para todos y la accesibilidad de las personas con discapacidad;"]
["ESO4.7","g) promover el aprendizaje permanente, en particular mediante oportunidades para todos de mejora y reciclaje flexibles de las capacidades teniendo en cuenta las capacidades empresariales y digitales, una mejor previsión de los cambios y nuevos requisitos de capacidades, habida cuenta de las necesidades del mercado de trabajo, facilitando las transiciones profesionales y promoviendo la movilidad profesional"]
["ESO4.8","h) fomentar la inclusión activa al objeto de promover la igualdad de oportunidades, la no discriminación y la participación activa, y mejorar la empleabilidad, en particular para los grupos desfavorecidos;"]
["ESO4.9","i) promover la integración socioeconómica de los nacionales de terceros países, incluidos los migrantes;"]
["ESO4.10","j) promover la integración socioeconómica de las comunidades marginadas, como la población romaní;"]
["ESO4.11","k) mejorar la igualdad y la oportunidad del acceso a unos servicios de calidad, sostenibles y asequibles, incluidos los servicios que promueven el acceso a la vivienda y a una atención centrada en las personas, incluida la asistencia sanitaria; modernizar los sistemas de protección social, también fomentando el acceso a la protección social, con especial atención a los menores y los grupos desfavorecidos; mejorar la accesibilidad, también para personas con discapacidad, la efectividad y la resiliencia de los sistemas de asistencia sanitaria y de los servicios de cuidados de larga duración;"]
["ESO4.12","l) promover la integración social de las personas en riesgo de pobreza o exclusión social, incluidas las personas más desfavorecidas y la población infantil;"]
["ESO4.13","m) hacer frente a la privación material mediante alimentos y/o prestación de asistencia material básica a las personas más desfavorecidas, en particular a los menores, y establecer medidas de acompañamiento que apoyen su inclusión social."]

{"sheet":"Categorías de región","index":17,"n_rows":5,"n_cols":4,"rows_kept":5,"cut":false,"hidden":true,"merged":[]}
["CÓDIGO SFC","CATEGORÍAS DE REGIÓN","Código FSEPLUS","CATEGORÍA DE REGIÓN"]
["L","Less Developed","MeD","Menos desarrolladas"]
["T","Transition","EnT","Transición"]
["M","More Developed","MaD","Más desarrolladas"]
["O","Outermost or Northern Sparsely Populated","RUP","Regiones ultraperiféricas o regiones septentrionales escasamente pobladas"]

{"sheet":"Aplicación art 94 o 95","index":18,"n_rows":6,"n_cols":2,"rows_kept":6,"cut":false,"hidden":true,"merged":[]}
["CÓDIGO","ARTÍCULO 94 o  95 "]
["N/A","No aplican art. 94 ni art. 95"]
["ART94-PRO","Artículo 94. Programa. Apéndice 1."]
["ART94-REG","Artículo 94. Reglamento Delegado."]
["ART95-PRO","Artículo 95. Programa. Apéndice 1."]
["ART95-REG","Artículo 95. Reglamento Delegado."]

{"sheet":"Métodos de Gestión","index":19,"n_rows":8,"n_cols":2,"rows_kept":8,"cut":false,"hidden":true,"merged":[]}
["CÓDIGO","MÉTODO DE GESTIÓN"]
["GD-ED","Gestión directa: Ejecución directa"]
["GD-CONV","Gestión directa: Convenios"]
["GD-ENC","Gestión directa: Encomienda de gestión"]
["GD-MP","Gestión directa: Encargo a medios propios"]
["GC-CONC","Gestión directa: Conciertos"]
["GI-CONT","Gestión Indirecta: Contrato"]
["CS","Convocatoria de subvenciones"]

{"sheet":"Tipología de operación","index":20,"n_rows":26,"n_cols":2,"rows_kept":26,"cut":false,"hidden":true,"merged":[]}
["CODIGO","TIPOLOGÍA DE OPERACIÓN"]
["1A","Formación a lo largo de la vida laboral "]
["1B","Formación Profesional"]
["1C","Formación de Personal Investigador y Ayudas Predoctorales e impulso a la investigación"]
[2,"Itinerarios Integrados"]
[3,"Orientación académica y/o profesional"]
[4,"Becas y ayudas para la educación y la formación"]
["5A","Ayudas para el fomento de la contratación"]
["5B","Bonificaciones y reducciones de cuotas a la Seguridad Social"]
["5C","Ayudas para el fomento del empleo protegido"]
[6,"Apoyo a los emprendedores y a la creación de empresas"]
["7A","Ayudas a la movilidad geográfica y funcional de trabajadores"]
["7B","Ayudas para mejoras de sistemas en las empresas"]
[8,"Iniciativas locales de empleo, pactos territoriales y otras ayudas en el ámbito local"]
[9,"Acciones frente al abandono escolar"]
[10,"Innovación social"]
[11,"Ayudas a redes y asociaciones"]
[12,"Impulso y promoción de la conciliación de la vida laboral y familia, así como de la igualdad de oportunidades, de la igualdad de trato, de la no discriminación y del fomento de la autonomía personal"]
["13A","Actualizaciones curriculares y de los catálogos de cualificaciones"]
["13B","Mejora del funcionamiento y calidad del Sistema Educativo y de la Formación Profesional"]
[14,"Actuaciones de modernización y mejora de los servicios de empleo y mercado de trabajo"]
[15,"Provisiones de ayuda de alimentos y productos básicos, así como medidas sociolaborales de acompañamiento que se recogen en el Programa Básico"]
[16,"Acciones de carácter socio-sanitario "]
[17,"Intervenciones centradas en la lucha para erradicar la exclusión de vivienda"]
[18,"Medidas de intervención directa y de los servicios sociales"]
["Pendiente","Requiere nueva tipología"]

{"sheet":"CAMPO DE INTERVENCIÓN","index":21,"n_rows":58,"n_cols":2,"rows_kept":58,"cut":false,"hidden":true,"merged":[]}
["CODIGO","CAMPO DE INTERVENCIÓN"]
[121,"Infraestructuras para la educación y el cuidado de la primera infancia"]
[122,"Infraestructuras para la enseñanza primaria y secundaria"]
[123,"Infraestructuras para la enseñanza superior"]
[124,"Infraestructuras para la educación y la formación profesional y el aprendizaje de adultos"]
[125,"Infraestructuras de vivienda para migrantes, refugiados y personas bajo protección internacional o que soliciten protección internacional"]
[126,"Infraestructuras de vivienda (para personas distintas de los migrantes, refugiados y personas bajo protección internacional o que soliciten protección internacional)"]
[127,"Otras infraestructuras sociales que contribuyen a la inclusión social en la comunidad"]
[128,"Infraestructuras sanitarias "]
[129,"Equipos sanitarios "]
[130,"Bienes muebles para servicios sanitarios"]
[131,"Digitalización en el sector sanitario "]
[132,"Equipos y suministros críticos necesarios para hacer frente a una situación de emergencia "]
[133,"Infraestructuras de acogida temporal para migrantes, refugiados y personas bajo protección internacional o que soliciten protección internacional"]
[134,"Medidas para mejorar el acceso al empleo "]
[135,"Medidas para fomentar el acceso al empleo de los desempleados de larga duración "]
[136,"Ayuda específica para el empleo juvenil y la integración socioeconómica de los jóvenes"]
[137,"Apoyo al trabajo por cuenta propia y a la creación de empresas"]
[138,"Apoyo para la economía social y las empresas sociales"]
[139,"Medidas para modernizar y reforzar las instituciones y servicios del mercado laboral para evaluar y anticipar las necesidades en materia de capacidades y garantizar una asistencia personalizada y oportuna"]
[140,"Apoyo a la adecuación entre la demanda y la oferta de empleo y las transiciones en el mercado laboral "]
[141,"Apoyo a la movilidad laboral"]
[142,"Medidas para promover la participación de las mujeres y reducir la segregación de género en el mercado laboral"]
[143,"Medidas de fomento del equilibrio entre vida privada y vida laboral, incluido el acceso a los servicios de guardería y de atención a las personas dependientes"]
[144,"Medidas para un entorno de trabajo sano y bien adaptado para hacer frente a los riesgos para la salud, incluida la promoción de la actividad física"]
[145,"Apoyo al desarrollo de las capacidades digitales"]
[146,"Apoyo a la adaptación al cambio de trabajadores, empresas y emprendedores"]
[147,"Medidas para fomentar el envejecimiento activo y saludable"]
[148,"Apoyo a la educación y el cuidado de la primera infancia (excluidas las infraestructuras)"]
[149,"Apoyo a la enseñanza primaria y secundaria (excluidas las infraestructuras)"]
[150,"Apoyo a la enseñanza terciaria (excluidas las infraestructuras)"]
[151,"Apoyo a la educación de personas adultas (excluidas las infraestructuras)"]
[152,"Medidas para promover la igualdad de oportunidades y la participación activa en la sociedad"]
[153,"Vías de integración y reintegración en el mundo laboral de las personas desfavorecidas"]
[154,"Medidas destinadas a mejorar el acceso de colectivos marginados como los gitanos a la educación y el empleo, y a promover su inclusión social"]
[155,"Apoyo a la sociedad civil activa con las comunidades marginadas, como la gitana"]
[156,"Acciones específicas destinadas a aumentar la participación de nacionales de terceros países en el empleo"]
[157,"Medidas para la integración social de los nacionales de terceros países"]
[158,"Medidas para mejorar el acceso equitativo y oportuno a servicios de calidad, sostenibles y asequibles"]
[159,"Medidas para mejorar la prestación de servicios locales y familiares"]
[160,"Medidas para mejorar la accesibilidad, la eficacia y la resiliencia de los sistemas sanitarios (excluidas las infraestructuras)"]
[161,"Medidas destinadas a mejorar el acceso a los cuidados de larga duración (excluidas las infraestructuras)"]
[162,"Medidas para modernizar los sistemas de protección social, incluido el fomento del acceso a la protección social"]
[163,"Promoción de la integración social de personas en riesgo de pobreza o exclusión social, en particular las más desfavorecidas y los niños"]
[164,"Subsanar las carencias materiales de los más desfavorecidos mediante la provisión de alimentos o asistencia material, incluidas medidas de acompañamiento."]
[170,"Mejora de la capacidad de las autoridades responsables de los programas y de los organismos vinculados a la ejecución de los Fondos"]
[171,"Mejora de la cooperación con socios tanto internos como externos al Estado miembro "]
[172,"Financiación cruzada en el marco del FEDER (apoyo a acciones asimilables a las del FSE+ necesarias para la ejecución satisfactoria de la parte del FEDER de la operación y relacionadas directamente con ella)."]
[173,"Mejora de la capacidad institucional de las autoridades públicas y las partes interesadas para implementar los proyectos e iniciativas de cooperación territorial en un contexto transfronterizo, transnacional, marítimo e interregional"]
[174,"Interreg: gestión del cruce fronterizo y gestión de la movilidad y la migración "]
[175,"Regiones ultraperiféricas: compensación de los costes adicionales derivados del déficit de accesibilidad y la fragmentación territorial"]
[176,"Regiones ultraperiféricas: acción específica de compensación de los costes adicionales derivados de factores relativos al tamaño del mercado"]
[177,"Regiones ultraperiféricas: ayudas para compensar los costes adicionales derivados de las condiciones climáticas y las dificultades del terreno"]
[178,"Regiones ultraperiféricas: aeropuertos "]
[179,"Información y comunicación"]
[180,"Preparación, ejecución, seguimiento y control"]
[181,"Evaluación y estudios, recogida de datos"]
[182,"Refuerzo de la capacidad de las autoridades de los Estados miembros, los beneficiarios y los socios pertinentes"]

{"sheet":"Forma de ayuda","index":22,"n_rows":7,"n_cols":2,"rows_kept":7,"cut":false,"hidden":true,"merged":[]}
["CODIGO","FORMA DE AYUDA"]
["01","Subvención"]
["02","Ayuda mediante instrumentos financieros: capital o cuasicapital"]
["03","Ayuda mediante instrumentos financieros: préstamo"]
["04","Ayuda mediante instrumentos financieros: garantía"]
["05","Apoyo mediante instrumentos financieros: Subvenciones en una operación de instrumentos financieros"]
["06","Premio"]

{"sheet":"D. Intervención territorial","index":23,"n_rows":34,"n_cols":3,"rows_kept":34,"cut":false,"hidden":true,"merged":[]}
["CODIGO","D. Aplicación territorial","DESCRIPCION"]
["01","01-Inversión territorial integrada","Barrios urbanos"]
["02","01-Inversión territorial integrada","Ciudades, municipios y extrarradio"]
["03","01-Inversión territorial integrada","Zonas urbanas funcionales"]
["04","01-Inversión territorial integrada","Zonas rurales"]
["05","01-Inversión territorial integrada","Zonas montañosas"]
["06","01-Inversión territorial integrada","Islas y zonas costeras"]
["07","01-Inversión territorial integrada","Zonas con escasa densidad de población"]
["08","01-Inversión territorial integrada","Otros tipos de territorios destinatarios"]
["09","02-Desarrollo local participativo","Barrios urbanos"]
[10,"02-Desarrollo local participativo","Ciudades, municipios y extrarradio"]
[11,"02-Desarrollo local participativo","Zonas urbanas funcionales"]
[12,"02-Desarrollo local participativo","Zonas rurales"]
[13,"02-Desarrollo local participativo","Zonas montañosas"]
[14,"02-Desarrollo local participativo","Islas y zonas costeras"]
[15,"02-Desarrollo local participativo","Zonas con escasa densidad de población"]
[16,"02-Desarrollo local participativo","Otros tipos de territorios destinatarios"]
[17,"03-Otro tipo de instrumento territorial","Barrios urbanos"]
[18,"03-Otro tipo de instrumento territorial","Ciudades, municipios y extrarradio"]
[19,"03-Otro tipo de instrumento territorial","Zonas urbanas funcionales"]
[20,"03-Otro tipo de instrumento territorial","Zonas rurales"]
[21,"03-Otro tipo de instrumento territorial","Zonas montañosas"]
[22,"03-Otro tipo de instrumento territorial","Islas y zonas costeras"]
[23,"03-Otro tipo de instrumento territorial","Zonas con escasa densidad de población"]
[24,"03-Otro tipo de instrumento territorial","Otros tipos de territorios destinatarios"]
[25,"04-Otros enfoques","Barrios urbanos"]
[26,"04-Otros enfoques","Ciudades, municipios y extrarradio"]
[27,"04-Otros enfoques","Zonas urbanas funcionales"]
[28,"04-Otros enfoques","Zonas rurales"]
[29,"04-Otros enfoques","Zonas montañosas"]
[30,"04-Otros enfoques","Islas y zonas costeras"]
[31,"04-Otros enfoques","Zonas con escasa densidad de población"]
[32,"04-Otros enfoques","Otros tipos de territorios destinatarios"]
[33,"04-Otros enfoques","Sin enfoque territorial"]

{"sheet":"D. Actividad económica","index":24,"n_rows":27,"n_cols":2,"rows_kept":27,"cut":false,"hidden":true,"merged":[]}
["CODIGO","D. ACTIVIDAD ECONÓMICA"]
["01","Agricultura y silvicultura"]
["02","Pesca"]
["03","Acuicultura"]
["04","Otros sectores de la economía azul"]
["05","Elaboración de productos alimenticios y bebidas"]
["06","Industria textil y de la confección"]
["07","Fabricación de material de transporte"]
["08","Fabricación de productos informáticos, electrónicos y ópticos"]
["09","Otras industrias manufactureras no especificadas"]
[10,"Construcción"]
[11,"Industrias de extracción (incluida la extracción de productos energéticos)"]
[12,"Energía eléctrica, gas, vapor, agua caliente y aire acondicionado"]
[13,"Suministro de agua, actividades de saneamiento, gestión de residuos y descontaminación"]
[14,"Transporte y almacenamiento"]
[15,"Actividades de información y comunicaciones, incluidas las telecomunicaciones, los servicios de información, la programación de ordenadores, la consultoría y otras actividades relacionadas"]
[16,"Comercio al por mayor y al por menor"]
[17,"Turismo y hostelería"]
[18,"Actividades financieras y de seguros"]
[19,"Actividades inmobiliarias y de alquiler; servicios prestados a las empresas"]
[20,"Administración pública"]
[21,"Enseñanza"]
[22,"Actividades sanitarias"]
[23,"Asistencia social, servicios prestados a la comunidad y servicios sociales y personales"]
[24,"Actividades relacionadas con el medio ambiente y el cambio climático"]
[25,"Artes, espectáculos, industrias creativas y ocio"]
[26,"Otros servicios no especificados"]

{"sheet":"D. Ubicación","index":25,"n_rows":21,"n_cols":2,"rows_kept":21,"cut":false,"hidden":true,"merged":[]}
["CÓDIGO","D. UBICACIÓN"]
["ES11","Galicia"]
["ES12","Principado de Asturias"]
["ES13","Cantabria"]
["ES21","País Vasco"]
["ES22","Comunidad Foral de Navarra"]
["ES23","La Rioja"]
["ES24","Aragón"]
["ES30","Comunidad de Madrid"]
["ES41","Castilla y León"]
["ES42","Castilla La Mancha"]
["ES43","Extremadura"]
["ES51","Cataluña"]
["ES52","Comunitad Valenciana"]
["ES53","Illes Balears"]
["ES61","Andalucía"]
["ES62","Región de Murcia"]
["ES63","Ciudad Autónoma de Ceuta"]
["ES64","Ciudad Autónoma de Melilla"]
["ES70","Canarias"]
["ES","Todas"]

{"sheet":"D. Tema secundario del FSE+","index":26,"n_rows":11,"n_cols":13,"rows_kept":11,"cut":false,"hidden":true,"merged":[]}
["CODIGO","D. Tema secundario del FSE+",null,"CODIGO\nT.SEC 01","CODIGO\nT.SEC 02","CODIGO\nT.SEC 03","CODIGO\nT.SEC 04","CODIGO\nT.SEC 05","CODIGO\nT.SEC 06","CODIGO\nT.SEC 07","CODIGO\nT.SEC 08","CODIGO\nT.SEC 09","CODIGO\nT.SEC 10"]
["01","Contribución a las competencias y empleos verdes y a la economía ecológica"]
["02","Desarrollo de capacidades y empleos digitales",null,"01","02","03","04","05","06","07","08","09","10"]
["03","Inversión en investigación e innovación y especialización inteligente"]
["04","Inversión en pequeñas y medianas empresas (pymes)"]
["05","No discriminación"]
["06","Hacer frente a la pobreza infantil"]
["07","Capacitación de los interlocutores sociales"]
["08","Capacitación de las organizaciones de la sociedad civil"]
["09","No procede"]
["10","Abordar los retos señalados en Semestre Europeo "]

{"sheet":"D. Igualdad de género","index":27,"n_rows":4,"n_cols":2,"rows_kept":4,"cut":false,"hidden":true,"merged":[]}
["CODIGO","D. IGUALDAD DE GÉNERO"]
["01","Proyectos centrados en las cuestiones de género "]
["02","Proyectos que integran la perspectiva de género "]
["03","Neutralidad desde el punto de vista del género"]

{"sheet":"Macrorregionales y Cuencas M","index":28,"n_rows":12,"n_cols":2,"rows_kept":12,"cut":false,"hidden":true,"merged":[]}
["CODE","D. MACRORREGIONAL Y DE LAS CUENCAS MARÍTIMAS\t"]
["11","No contribución a las estrategias macrorregionales y de las cuencas marítimas."]
["10","Estrategia para la Región del Mediterráneo Occidental"]
["09","Mar del Norte"]
["08","Mar Mediterráneo"]
["07","Mar Negro"]
["06","Estrategia para la Región Atlántica"]
["05","Océano Ártico"]
["04","Estrategia para la Región del Danubio"]
["03","Estrategia para la Región del Mar Báltico"]
["02","Estrategia para la Región Alpina"]
["01","Estrategia para la Región del Adriático y del Jónico"]